Body Name,Body,Date,Department,Published Vendor Name,Summary of Purpose (SeRCOP),Amount,Merchant Code,Transaction Number,Supplier 
Sandwell Metropolitan Borough Council,http://www.sandwell.gov.uk/info/200202/performance_and_spending/1079/payments_over_500,01-Nov-2021,Adult Social Care,WMCA OPERATIONS LTD,Total Adult Social Care,13629.00,Residential - Short Term,2122P08_CR00001,135917
Sandwell Metropolitan Borough Council,http://www.sandwell.gov.uk/info/200202/performance_and_spending/1079/payments_over_500,01-Nov-2021,Adults Social Care Capital,AXIS EUROPE PLC                                                           02,Adults Social Care Capital,6085.27,Deferred Charges/Grant Payments,2122P08_CR00002,64946
Sandwell Metropolitan Borough Council,http://www.sandwell.gov.uk/info/200202/performance_and_spending/1079/payments_over_500,17-Nov-2021,Adults Social Care Capital,AXIS EUROPE PLC                                                           02,Adults Social Care Capital,45000.00,Deferred Charges/Grant Payments,2122P08_CR00003,64946
Sandwell Metropolitan Borough Council,http://www.sandwell.gov.uk/info/200202/performance_and_spending/1079/payments_over_500,17-Nov-2021,Adults Social Care Capital,AXIS EUROPE PLC                                                           02,Adults Social Care Capital,5677.82,Deferred Charges/Grant Payments,2122P08_CR00004,64946
Sandwell Metropolitan Borough Council,http://www.sandwell.gov.uk/info/200202/performance_and_spending/1079/payments_over_500,30-Nov-2021,Adults Social Care Capital,DLM BUILDING & MAINTENANCE LTD,Adults Social Care Capital,10883.96,Deferred Charges/Grant Payments,2122P08_CR00005,137596
Sandwell Metropolitan Borough Council,http://www.sandwell.gov.uk/info/200202/performance_and_spending/1079/payments_over_500,01-Nov-2021,Adults Social Care Capital,DOLPHIN LIFTS MIDLANDS LTD,Adults Social Care Capital,1210.00,Deferred Charges/Grant Payments,2122P08_CR00006,123852
Sandwell Metropolitan Borough Council,http://www.sandwell.gov.uk/info/200202/performance_and_spending/1079/payments_over_500,01-Nov-2021,Adults Social Care Capital,JOHN GILLESPIE CONTRACTORS LTD,Adults Social Care Capital,3367.64,Deferred Charges/Grant Payments,2122P08_CR00007,82566
Sandwell Metropolitan Borough Council,http://www.sandwell.gov.uk/info/200202/performance_and_spending/1079/payments_over_500,05-Nov-2021,Adults Social Care Capital,LIFT & ENGINEERING SERVICES LTD,Adults Social Care Capital,8170.38,"CIP - New Construction,Conversion, Enhancement & Reno",2122P08_CR00008,77003962
Sandwell Metropolitan Borough Council,http://www.sandwell.gov.uk/info/200202/performance_and_spending/1079/payments_over_500,01-Nov-2021,Adults Social Care Capital,LIFT & ENGINEERING SERVICES LTD,Adults Social Care Capital,552.36,"CIP - New Construction,Conversion, Enhancement & Reno",2122P08_CR00009,77003962
Sandwell Metropolitan Borough Council,http://www.sandwell.gov.uk/info/200202/performance_and_spending/1079/payments_over_500,01-Nov-2021,Adults Social Care Capital,LIFT & ENGINEERING SERVICES LTD,Adults Social Care Capital,1179.51,"CIP - New Construction,Conversion, Enhancement & Reno",2122P08_CR00010,77003962
Sandwell Metropolitan Borough Council,http://www.sandwell.gov.uk/info/200202/performance_and_spending/1079/payments_over_500,01-Nov-2021,Adults Social Care Capital,LIFT & ENGINEERING SERVICES LTD,Adults Social Care Capital,593.84,"CIP - New Construction,Conversion, Enhancement & Reno",2122P08_CR00011,77003962
Sandwell Metropolitan Borough Council,http://www.sandwell.gov.uk/info/200202/performance_and_spending/1079/payments_over_500,01-Nov-2021,Adults Social Care Capital,NOTTINGHAM REHAB LIMITED T/A NRS HEALTHCARE,Adults Social Care Capital,3532.00,Externally Purchased Professional Services ,2122P08_CR00012,01700495
Sandwell Metropolitan Borough Council,http://www.sandwell.gov.uk/info/200202/performance_and_spending/1079/payments_over_500,01-Nov-2021,Adults Social Care Capital,NOTTINGHAM REHAB LIMITED T/A NRS HEALTHCARE,Adults Social Care Capital,1092.00,Externally Purchased Professional Services ,2122P08_CR00013,01700495
Sandwell Metropolitan Borough Council,http://www.sandwell.gov.uk/info/200202/performance_and_spending/1079/payments_over_500,01-Nov-2021,Adults Social Care Capital,NOTTINGHAM REHAB LIMITED T/A NRS HEALTHCARE,Adults Social Care Capital,2442.00,Externally Purchased Professional Services ,2122P08_CR00014,01700495
Sandwell Metropolitan Borough Council,http://www.sandwell.gov.uk/info/200202/performance_and_spending/1079/payments_over_500,01-Nov-2021,Adults Social Care Capital,NOTTINGHAM REHAB LIMITED T/A NRS HEALTHCARE,Adults Social Care Capital,4492.00,Externally Purchased Professional Services ,2122P08_CR00015,01700495
Sandwell Metropolitan Borough Council,http://www.sandwell.gov.uk/info/200202/performance_and_spending/1079/payments_over_500,01-Nov-2021,Adults Social Care Capital,NOTTINGHAM REHAB LIMITED T/A NRS HEALTHCARE,Adults Social Care Capital,872.00,Externally Purchased Professional Services ,2122P08_CR00016,01700495
Sandwell Metropolitan Borough Council,http://www.sandwell.gov.uk/info/200202/performance_and_spending/1079/payments_over_500,01-Nov-2021,Adults Social Care Capital,NOTTINGHAM REHAB LIMITED T/A NRS HEALTHCARE,Adults Social Care Capital,7534.00,Externally Purchased Professional Services ,2122P08_CR00017,01700495
Sandwell Metropolitan Borough Council,http://www.sandwell.gov.uk/info/200202/performance_and_spending/1079/payments_over_500,01-Nov-2021,Adults Social Care Capital,STANNAH LIFT SERVICES LTD,Adults Social Care Capital,3424.00,Building Maintenance & Improvements,2122P08_CR00018,13887
Sandwell Metropolitan Borough Council,http://www.sandwell.gov.uk/info/200202/performance_and_spending/1079/payments_over_500,17-Nov-2021,Adults Social Care Capital,VINCI CONSTRUCTION LTD,Adults Social Care Capital,4391.00,Deferred Charges/Grant Payments,2122P08_CR00019,36361
Sandwell Metropolitan Borough Council,http://www.sandwell.gov.uk/info/200202/performance_and_spending/1079/payments_over_500,17-Nov-2021,Adults Social Care Capital,VINCI CONSTRUCTION LTD,Adults Social Care Capital,4748.87,Deferred Charges/Grant Payments,2122P08_CR00020,36361
Sandwell Metropolitan Borough Council,http://www.sandwell.gov.uk/info/200202/performance_and_spending/1079/payments_over_500,01-Nov-2021,Adults Social Care Capital,VINCI CONSTRUCTION LTD,Adults Social Care Capital,12214.62,Deferred Charges/Grant Payments,2122P08_CR00021,36361
Sandwell Metropolitan Borough Council,http://www.sandwell.gov.uk/info/200202/performance_and_spending/1079/payments_over_500,01-Nov-2021,Adults Social Care Capital,VINCI CONSTRUCTION LTD,Adults Social Care Capital,4933.67,Deferred Charges/Grant Payments,2122P08_CR00022,36361
Sandwell Metropolitan Borough Council,http://www.sandwell.gov.uk/info/200202/performance_and_spending/1079/payments_over_500,01-Nov-2021,Adults Social Care Capital,VINCI CONSTRUCTION LTD,Adults Social Care Capital,4719.83,Deferred Charges/Grant Payments,2122P08_CR00023,36361
Sandwell Metropolitan Borough Council,http://www.sandwell.gov.uk/info/200202/performance_and_spending/1079/payments_over_500,30-Nov-2021,Adults Social Care Capital,VINCI CONSTRUCTION LTD,Adults Social Care Capital,5251.19,Deferred Charges/Grant Payments,2122P08_CR00024,36361
Sandwell Metropolitan Borough Council,http://www.sandwell.gov.uk/info/200202/performance_and_spending/1079/payments_over_500,04-Nov-2021,Adults Social Care Capital,WILLMOTT DIXON CONSTRUCTION LIMITED,Adults Social Care Capital,840056.06,"CIP - New Construction,Conversion, Enhancement & Reno",2122P08_CR00025,34081
Sandwell Metropolitan Borough Council,http://www.sandwell.gov.uk/info/200202/performance_and_spending/1079/payments_over_500,14-Nov-2021,Adults Social Care Capital,HOME DESIGN,Adults Social Care Capital,7000.00,Deferred Charges/Grant Payments,2122P08_CR00026,141847
Sandwell Metropolitan Borough Council,http://www.sandwell.gov.uk/info/200202/performance_and_spending/1079/payments_over_500,08-Nov-2021,Adults Social Care Capital,REDACTED PERSONAL DATA,Adults Social Care Capital,20923.00,Deferred Charges/Grant Payments,2122P08_CR00027,REDACTED PERSONAL DATA
Sandwell Metropolitan Borough Council,http://www.sandwell.gov.uk/info/200202/performance_and_spending/1079/payments_over_500,10-Nov-2021,Adults Social Care Capital,REDACTED PERSONAL DATA,Adults Social Care Capital,5000.00,Deferred Charges/Grant Payments,2122P08_CR00028,REDACTED PERSONAL DATA
Sandwell Metropolitan Borough Council,http://www.sandwell.gov.uk/info/200202/performance_and_spending/1079/payments_over_500,03-Nov-2021,Adults Social Care Capital,SAFESPACES (CORNHOLME) LTD,Adults Social Care Capital,6770.11,Deferred Charges/Grant Payments,2122P08_CR00029,65847
Sandwell Metropolitan Borough Council,http://www.sandwell.gov.uk/info/200202/performance_and_spending/1079/payments_over_500,23-Nov-2021,Adults Social Care Capital,TDF DESIGN LIMITED,Adults Social Care Capital,12800.00,Deferred Charges/Grant Payments,2122P08_CR00030,10320
Sandwell Metropolitan Borough Council,http://www.sandwell.gov.uk/info/200202/performance_and_spending/1079/payments_over_500,01-Nov-2021,Adults Social Care Capital,TDF DESIGN LIMITED,Adults Social Care Capital,8757.26,Deferred Charges/Grant Payments,2122P08_CR00031,10320
Sandwell Metropolitan Borough Council,http://www.sandwell.gov.uk/info/200202/performance_and_spending/1079/payments_over_500,01-Nov-2021,Adults Social Care Capital,TDF DESIGN LIMITED,Adults Social Care Capital,10516.77,Deferred Charges/Grant Payments,2122P08_CR00032,10320
Sandwell Metropolitan Borough Council,http://www.sandwell.gov.uk/info/200202/performance_and_spending/1079/payments_over_500,01-Nov-2021,Adults Social Care Capital,TDF DESIGN LIMITED,Adults Social Care Capital,9361.96,Deferred Charges/Grant Payments,2122P08_CR00033,10320
Sandwell Metropolitan Borough Council,http://www.sandwell.gov.uk/info/200202/performance_and_spending/1079/payments_over_500,01-Nov-2021,Adults Social Care Capital,TDF DESIGN LIMITED,Adults Social Care Capital,3858.11,Deferred Charges/Grant Payments,2122P08_CR00034,10320
Sandwell Metropolitan Borough Council,http://www.sandwell.gov.uk/info/200202/performance_and_spending/1079/payments_over_500,01-Nov-2021,Childrens Services,121 CARZ,Childrens Services,2144.00,Public Transport,2122P08_CR00035,116848
Sandwell Metropolitan Borough Council,http://www.sandwell.gov.uk/info/200202/performance_and_spending/1079/payments_over_500,04-Nov-2021,Childrens Services,121 CARZ,Childrens Services,1128.00,Public Transport,2122P08_CR00036,116848
Sandwell Metropolitan Borough Council,http://www.sandwell.gov.uk/info/200202/performance_and_spending/1079/payments_over_500,04-Nov-2021,Childrens Services,121 CARZ,Childrens Services,1300.00,Public Transport,2122P08_CR00037,116848
Sandwell Metropolitan Borough Council,http://www.sandwell.gov.uk/info/200202/performance_and_spending/1079/payments_over_500,04-Nov-2021,Childrens Services,121 CARZ,Childrens Services,1060.55,Public Transport,2122P08_CR00038,116848
Sandwell Metropolitan Borough Council,http://www.sandwell.gov.uk/info/200202/performance_and_spending/1079/payments_over_500,04-Nov-2021,Childrens Services,121 CARZ,Childrens Services,1646.67,Public Transport,2122P08_CR00039,116848
Sandwell Metropolitan Borough Council,http://www.sandwell.gov.uk/info/200202/performance_and_spending/1079/payments_over_500,05-Nov-2021,Childrens Services,121 CARZ,Childrens Services,2391.67,Public Transport,2122P08_CR00040,116848
Sandwell Metropolitan Borough Council,http://www.sandwell.gov.uk/info/200202/performance_and_spending/1079/payments_over_500,05-Nov-2021,Childrens Services,121 CARZ,Childrens Services,1272.00,Public Transport,2122P08_CR00041,116848
Sandwell Metropolitan Borough Council,http://www.sandwell.gov.uk/info/200202/performance_and_spending/1079/payments_over_500,05-Nov-2021,Childrens Services,121 CARZ,Childrens Services,1300.00,Public Transport,2122P08_CR00042,116848
Sandwell Metropolitan Borough Council,http://www.sandwell.gov.uk/info/200202/performance_and_spending/1079/payments_over_500,05-Nov-2021,Childrens Services,121 CARZ,Childrens Services,1646.67,Public Transport,2122P08_CR00043,116848
Sandwell Metropolitan Borough Council,http://www.sandwell.gov.uk/info/200202/performance_and_spending/1079/payments_over_500,23-Nov-2021,Childrens Services,4 COMMUNITY TRUST CIC,Childrens Services,2340.00,Grant Payments,2122P08_CR00044,137880
Sandwell Metropolitan Borough Council,http://www.sandwell.gov.uk/info/200202/performance_and_spending/1079/payments_over_500,23-Nov-2021,Childrens Services,4 COMMUNITY TRUST CIC,Childrens Services,6226.00,Grant Payments,2122P08_CR00045,137880
Sandwell Metropolitan Borough Council,http://www.sandwell.gov.uk/info/200202/performance_and_spending/1079/payments_over_500,09-Nov-2021,Childrens Services,A OAKES LTD,Childrens Services,2125.00,Protective Clothing & Uniforms,2122P08_CR00046,01042944
Sandwell Metropolitan Borough Council,http://www.sandwell.gov.uk/info/200202/performance_and_spending/1079/payments_over_500,01-Nov-2021,Childrens Services,ABERFORD LTD T/A SMETHWICK & ALBION CARS,Childrens Services,960.00,External Contract Hire,2122P08_CR00047,133166
Sandwell Metropolitan Borough Council,http://www.sandwell.gov.uk/info/200202/performance_and_spending/1079/payments_over_500,10-Nov-2021,Childrens Services,AVANTI GAS LIMITED,Childrens Services,1388.05,Gas,2122P08_CR00048,60069
Sandwell Metropolitan Borough Council,http://www.sandwell.gov.uk/info/200202/performance_and_spending/1079/payments_over_500,02-Nov-2021,Childrens Services,BANGLADESHI WOMEN'S ASSOCIATION LIMITED,Childrens Services,716.39,Grants,2122P08_CR00049,69648
Sandwell Metropolitan Borough Council,http://www.sandwell.gov.uk/info/200202/performance_and_spending/1079/payments_over_500,01-Nov-2021,Childrens Services,BKSB LIMITED,Childrens Services,564.00,Licences,2122P08_CR00050,21062
Sandwell Metropolitan Borough Council,http://www.sandwell.gov.uk/info/200202/performance_and_spending/1079/payments_over_500,17-Nov-2021,Childrens Services,BLAKEMORE FOOD SERVICE LTD,Childrens Services,522.81,Catering Provisions,2122P08_CR00051,2518
Sandwell Metropolitan Borough Council,http://www.sandwell.gov.uk/info/200202/performance_and_spending/1079/payments_over_500,01-Nov-2021,Childrens Services,BSN ASSOCIATES LIMITED,Childrens Services,1010.75,Externally Purchased Professional Services ,2122P08_CR00052,152374
Sandwell Metropolitan Borough Council,http://www.sandwell.gov.uk/info/200202/performance_and_spending/1079/payments_over_500,16-Nov-2021,Childrens Services,CANAL & RIVER TRUST,Childrens Services,864.00,Licences,2122P08_CR00053,01631306
Sandwell Metropolitan Borough Council,http://www.sandwell.gov.uk/info/200202/performance_and_spending/1079/payments_over_500,01-Nov-2021,Childrens Services,CARLYLE LTD,Childrens Services,1010.75,Externally Purchased Professional Services ,2122P08_CR00054,01507965
Sandwell Metropolitan Borough Council,http://www.sandwell.gov.uk/info/200202/performance_and_spending/1079/payments_over_500,01-Nov-2021,Childrens Services,CARLYLE LTD,Childrens Services,1010.75,Externally Purchased Professional Services ,2122P08_CR00055,01507965
Sandwell Metropolitan Borough Council,http://www.sandwell.gov.uk/info/200202/performance_and_spending/1079/payments_over_500,01-Nov-2021,Childrens Services,CARLYLE LTD,Childrens Services,941.16,Externally Purchased Professional Services ,2122P08_CR00056,01507965
Sandwell Metropolitan Borough Council,http://www.sandwell.gov.uk/info/200202/performance_and_spending/1079/payments_over_500,01-Nov-2021,Childrens Services,CARLYLE LTD,Childrens Services,941.16,Externally Purchased Professional Services ,2122P08_CR00057,01507965
Sandwell Metropolitan Borough Council,http://www.sandwell.gov.uk/info/200202/performance_and_spending/1079/payments_over_500,18-Nov-2021,Childrens Services,CARLYLE LTD,Childrens Services,941.16,Externally Purchased Professional Services ,2122P08_CR00058,01507965
Sandwell Metropolitan Borough Council,http://www.sandwell.gov.uk/info/200202/performance_and_spending/1079/payments_over_500,23-Nov-2021,Childrens Services,CARLYLE LTD,Childrens Services,941.16,Externally Purchased Professional Services ,2122P08_CR00059,01507965
Sandwell Metropolitan Borough Council,http://www.sandwell.gov.uk/info/200202/performance_and_spending/1079/payments_over_500,23-Nov-2021,Childrens Services,CARLYLE LTD,Childrens Services,1010.75,Externally Purchased Professional Services ,2122P08_CR00060,01507965
Sandwell Metropolitan Borough Council,http://www.sandwell.gov.uk/info/200202/performance_and_spending/1079/payments_over_500,01-Nov-2021,Childrens Services,CERTAS ENERGY LIMITED,Childrens Services,2160.17,Gas,2122P08_CR00061,80421
Sandwell Metropolitan Borough Council,http://www.sandwell.gov.uk/info/200202/performance_and_spending/1079/payments_over_500,16-Nov-2021,Childrens Services,CERTAS ENERGY LIMITED,Childrens Services,2095.75,Oil,2122P08_CR00062,80421
Sandwell Metropolitan Borough Council,http://www.sandwell.gov.uk/info/200202/performance_and_spending/1079/payments_over_500,16-Nov-2021,Childrens Services,CHAPLINS ENTERTAINMENT LIMITED,Childrens Services,1368.00,Grants,2122P08_CR00063,01772924
Sandwell Metropolitan Borough Council,http://www.sandwell.gov.uk/info/200202/performance_and_spending/1079/payments_over_500,02-Nov-2021,Childrens Services,CHUBB FIRE & SECURITY LIMITED t/a CHUBB ELECTRONIC SECURITY,Childrens Services,1512.00,Security,2122P08_CR00064,81343
Sandwell Metropolitan Borough Council,http://www.sandwell.gov.uk/info/200202/performance_and_spending/1079/payments_over_500,02-Nov-2021,Childrens Services,CLASSIC CARS 1997,Childrens Services,51778.12,Public Transport,2122P08_CR00065,06005093
Sandwell Metropolitan Borough Council,http://www.sandwell.gov.uk/info/200202/performance_and_spending/1079/payments_over_500,04-Nov-2021,Childrens Services,COMMUNITY FOUNDATION,Childrens Services,1010.75,Externally Purchased Professional Services ,2122P08_CR00066,121601
Sandwell Metropolitan Borough Council,http://www.sandwell.gov.uk/info/200202/performance_and_spending/1079/payments_over_500,04-Nov-2021,Childrens Services,COMMUNITY FOUNDATION,Childrens Services,1010.75,Externally Purchased Professional Services ,2122P08_CR00067,121601
Sandwell Metropolitan Borough Council,http://www.sandwell.gov.uk/info/200202/performance_and_spending/1079/payments_over_500,22-Nov-2021,Childrens Services,COMMUNITY FOUNDATION,Childrens Services,560.00,Grants,2122P08_CR00068,121601
Sandwell Metropolitan Borough Council,http://www.sandwell.gov.uk/info/200202/performance_and_spending/1079/payments_over_500,01-Nov-2021,Childrens Services,CONFEDERATION OF BANGLADESHI ORGANISATIONS (CBO) LIMITED,Childrens Services,941.16,Grants,2122P08_CR00069,10034
Sandwell Metropolitan Borough Council,http://www.sandwell.gov.uk/info/200202/performance_and_spending/1079/payments_over_500,22-Nov-2021,Childrens Services,CONWAY PACKING SERVICES LTD,Childrens Services,941.16,Grants,2122P08_CR00070,151356
Sandwell Metropolitan Borough Council,http://www.sandwell.gov.uk/info/200202/performance_and_spending/1079/payments_over_500,11-Nov-2021,Childrens Services,CORONA ENERGY RETAIL 2 LIMITED,Childrens Services,1190.97,Gas,2122P08_CR00071,118395
Sandwell Metropolitan Borough Council,http://www.sandwell.gov.uk/info/200202/performance_and_spending/1079/payments_over_500,01-Nov-2021,Childrens Services,COUNTY CARS (2003) LIMITED,Childrens Services,60196.14,Public Transport,2122P08_CR00072,06002387
Sandwell Metropolitan Borough Council,http://www.sandwell.gov.uk/info/200202/performance_and_spending/1079/payments_over_500,07-Nov-2021,Childrens Services,COUNTY CARS (2003) LIMITED,Childrens Services,37423.78,Public Transport,2122P08_CR00073,06002387
Sandwell Metropolitan Borough Council,http://www.sandwell.gov.uk/info/200202/performance_and_spending/1079/payments_over_500,07-Nov-2021,Childrens Services,COUNTY CARS (2003) LIMITED,Childrens Services,83769.44,Public Transport,2122P08_CR00074,06002387
Sandwell Metropolitan Borough Council,http://www.sandwell.gov.uk/info/200202/performance_and_spending/1079/payments_over_500,07-Nov-2021,Childrens Services,COUNTY CARS (2003) LIMITED,Childrens Services,34803.33,Public Transport,2122P08_CR00075,06002387
Sandwell Metropolitan Borough Council,http://www.sandwell.gov.uk/info/200202/performance_and_spending/1079/payments_over_500,17-Nov-2021,Childrens Services,CREATIVE ACADEMIES LTD,Childrens Services,1000.00,Grant Payments,2122P08_CR00076,116825
Sandwell Metropolitan Borough Council,http://www.sandwell.gov.uk/info/200202/performance_and_spending/1079/payments_over_500,01-Nov-2021,Childrens Services,D J TRAVEL,Childrens Services,2968.00,Public Transport,2122P08_CR00077,96415
Sandwell Metropolitan Borough Council,http://www.sandwell.gov.uk/info/200202/performance_and_spending/1079/payments_over_500,01-Nov-2021,Childrens Services,DAFFODILS DAY NURSERY,Childrens Services,2021.50,Externally Purchased Professional Services ,2122P08_CR00078,122616
Sandwell Metropolitan Borough Council,http://www.sandwell.gov.uk/info/200202/performance_and_spending/1079/payments_over_500,01-Nov-2021,Childrens Services,DAFFODILS DAY NURSERY,Childrens Services,716.39,Externally Purchased Professional Services ,2122P08_CR00079,122616
Sandwell Metropolitan Borough Council,http://www.sandwell.gov.uk/info/200202/performance_and_spending/1079/payments_over_500,09-Nov-2021,Childrens Services,DAFFODILS DAY NURSERY,Childrens Services,1010.75,Externally Purchased Professional Services ,2122P08_CR00080,122616
Sandwell Metropolitan Borough Council,http://www.sandwell.gov.uk/info/200202/performance_and_spending/1079/payments_over_500,10-Nov-2021,Childrens Services,DIRECTION TRAINING & MANAGEMENT,Childrens Services,1000.00,Externally Purchased Professional Services ,2122P08_CR00081,01727395
Sandwell Metropolitan Borough Council,http://www.sandwell.gov.uk/info/200202/performance_and_spending/1079/payments_over_500,01-Nov-2021,Childrens Services,DROACH TRAVEL LTD,Childrens Services,18263.67,Public Transport,2122P08_CR00082,06002707
Sandwell Metropolitan Borough Council,http://www.sandwell.gov.uk/info/200202/performance_and_spending/1079/payments_over_500,01-Nov-2021,Childrens Services,DROACH TRAVEL LTD,Childrens Services,21474.61,Public Transport,2122P08_CR00083,06002707
Sandwell Metropolitan Borough Council,http://www.sandwell.gov.uk/info/200202/performance_and_spending/1079/payments_over_500,01-Nov-2021,Childrens Services,DUDLEY MBC,Childrens Services,5589.30,External Contract Hire,2122P08_CR00084,01349846
Sandwell Metropolitan Borough Council,http://www.sandwell.gov.uk/info/200202/performance_and_spending/1079/payments_over_500,22-Nov-2021,Childrens Services,FIRST RESPONSE (FIRST AID) LTD,Childrens Services,900.00,Externally Purchased Professional Services ,2122P08_CR00085,57372
Sandwell Metropolitan Borough Council,http://www.sandwell.gov.uk/info/200202/performance_and_spending/1079/payments_over_500,01-Nov-2021,Childrens Services,FUEL CARD SERVICES LIMITED,Childrens Services,539.97,Fuel ,2122P08_CR00086,113072
Sandwell Metropolitan Borough Council,http://www.sandwell.gov.uk/info/200202/performance_and_spending/1079/payments_over_500,01-Nov-2021,Childrens Services,GREEN DESTINATIONS LTD,Childrens Services,85259.03,Public Transport,2122P08_CR00087,109275
Sandwell Metropolitan Borough Council,http://www.sandwell.gov.uk/info/200202/performance_and_spending/1079/payments_over_500,04-Nov-2021,Childrens Services,GREEN DESTINATIONS LTD,Childrens Services,2115.39,Public Transport,2122P08_CR00088,109275
Sandwell Metropolitan Borough Council,http://www.sandwell.gov.uk/info/200202/performance_and_spending/1079/payments_over_500,09-Nov-2021,Childrens Services,GRESHAM OFFICE FURNITURE LTD,Childrens Services,1168.20,Equipment & Furniture ,2122P08_CR00089,93465
Sandwell Metropolitan Borough Council,http://www.sandwell.gov.uk/info/200202/performance_and_spending/1079/payments_over_500,01-Nov-2021,Childrens Services,GTG TRAINING LTD,Childrens Services,1195.00,Externally Purchased Professional Services ,2122P08_CR00090,148595
Sandwell Metropolitan Borough Council,http://www.sandwell.gov.uk/info/200202/performance_and_spending/1079/payments_over_500,01-Nov-2021,Childrens Services,HER MAJESTYS PRISON AND PROBATION SERVICE,Childrens Services,10542.00,Other Establishments,2122P08_CR00091,134815
Sandwell Metropolitan Borough Council,http://www.sandwell.gov.uk/info/200202/performance_and_spending/1079/payments_over_500,01-Nov-2021,Childrens Services,HER MAJESTYS PRISON AND PROBATION SERVICE,Childrens Services,9450.00,Other Establishments,2122P08_CR00092,134815
Sandwell Metropolitan Borough Council,http://www.sandwell.gov.uk/info/200202/performance_and_spending/1079/payments_over_500,01-Nov-2021,Childrens Services,HER MAJESTYS PRISON AND PROBATION SERVICE,Childrens Services,17794.00,Other Establishments,2122P08_CR00093,134815
Sandwell Metropolitan Borough Council,http://www.sandwell.gov.uk/info/200202/performance_and_spending/1079/payments_over_500,01-Nov-2021,Childrens Services,HER MAJESTYS PRISON AND PROBATION SERVICE,Childrens Services,23343.00,Other Establishments,2122P08_CR00094,134815
Sandwell Metropolitan Borough Council,http://www.sandwell.gov.uk/info/200202/performance_and_spending/1079/payments_over_500,01-Nov-2021,Childrens Services,HER MAJESTYS PRISON AND PROBATION SERVICE,Childrens Services,9765.00,Other Establishments,2122P08_CR00095,134815
Sandwell Metropolitan Borough Council,http://www.sandwell.gov.uk/info/200202/performance_and_spending/1079/payments_over_500,01-Nov-2021,Childrens Services,HER MAJESTYS PRISON AND PROBATION SERVICE,Childrens Services,1148.00,Other Establishments,2122P08_CR00096,134815
Sandwell Metropolitan Borough Council,http://www.sandwell.gov.uk/info/200202/performance_and_spending/1079/payments_over_500,01-Nov-2021,Childrens Services,INGESTRE ORANGERY AND GARDENS,Childrens Services,650.00,Materials & Consumables,2122P08_CR00097,127331
Sandwell Metropolitan Borough Council,http://www.sandwell.gov.uk/info/200202/performance_and_spending/1079/payments_over_500,01-Nov-2021,Childrens Services,IRON MAIDENS COMMERCIAL LAUNDRY LIMITED,Childrens Services,763.52,Laundry,2122P08_CR00098,124628
Sandwell Metropolitan Borough Council,http://www.sandwell.gov.uk/info/200202/performance_and_spending/1079/payments_over_500,01-Nov-2021,Childrens Services,JMB GLOBAL LTD,Childrens Services,1010.75,Externally Purchased Professional Services ,2122P08_CR00099,152360
Sandwell Metropolitan Borough Council,http://www.sandwell.gov.uk/info/200202/performance_and_spending/1079/payments_over_500,01-Nov-2021,Childrens Services,JMB GLOBAL LTD,Childrens Services,1010.75,Externally Purchased Professional Services ,2122P08_CR00100,152360
Sandwell Metropolitan Borough Council,http://www.sandwell.gov.uk/info/200202/performance_and_spending/1079/payments_over_500,01-Nov-2021,Childrens Services,JMB GLOBAL LTD,Childrens Services,716.39,Externally Purchased Professional Services ,2122P08_CR00101,152360
Sandwell Metropolitan Borough Council,http://www.sandwell.gov.uk/info/200202/performance_and_spending/1079/payments_over_500,01-Nov-2021,Childrens Services,JMB GLOBAL LTD,Childrens Services,941.16,Externally Purchased Professional Services ,2122P08_CR00102,152360
Sandwell Metropolitan Borough Council,http://www.sandwell.gov.uk/info/200202/performance_and_spending/1079/payments_over_500,01-Nov-2021,Childrens Services,JMB GLOBAL LTD,Childrens Services,941.16,Externally Purchased Professional Services ,2122P08_CR00103,152360
Sandwell Metropolitan Borough Council,http://www.sandwell.gov.uk/info/200202/performance_and_spending/1079/payments_over_500,22-Nov-2021,Childrens Services,JMB GLOBAL LTD,Childrens Services,560.00,Grants,2122P08_CR00104,152360
Sandwell Metropolitan Borough Council,http://www.sandwell.gov.uk/info/200202/performance_and_spending/1079/payments_over_500,01-Nov-2021,Childrens Services,JPC TRAVEL SOLUTION,Childrens Services,47569.09,Public Transport,2122P08_CR00105,138533
Sandwell Metropolitan Borough Council,http://www.sandwell.gov.uk/info/200202/performance_and_spending/1079/payments_over_500,15-Nov-2021,Childrens Services,LIONCOURT HOMES LIMITED,Childrens Services,560.00,Grants,2122P08_CR00106,133372
Sandwell Metropolitan Borough Council,http://www.sandwell.gov.uk/info/200202/performance_and_spending/1079/payments_over_500,15-Nov-2021,Childrens Services,LIONCOURT HOMES LIMITED,Childrens Services,560.00,Grants,2122P08_CR00107,133372
Sandwell Metropolitan Borough Council,http://www.sandwell.gov.uk/info/200202/performance_and_spending/1079/payments_over_500,01-Nov-2021,Childrens Services,LITTLE STARS DAY NURSERY,Childrens Services,5462.35,Grant Payments,2122P08_CR00108,107804
Sandwell Metropolitan Borough Council,http://www.sandwell.gov.uk/info/200202/performance_and_spending/1079/payments_over_500,18-Nov-2021,Childrens Services,LOCAL EDUCATION AND DEVELOPMENT,Childrens Services,528.29,Discretionary Awards,2122P08_CR00109,148259
Sandwell Metropolitan Borough Council,http://www.sandwell.gov.uk/info/200202/performance_and_spending/1079/payments_over_500,18-Nov-2021,Childrens Services,LOCAL EDUCATION AND DEVELOPMENT,Childrens Services,897.00,Discretionary Awards,2122P08_CR00110,148259
Sandwell Metropolitan Borough Council,http://www.sandwell.gov.uk/info/200202/performance_and_spending/1079/payments_over_500,15-Nov-2021,Childrens Services,MARK LAMSDALE,Childrens Services,800.00,Externally Purchased Professional Services ,2122P08_CR00111,26316
Sandwell Metropolitan Borough Council,http://www.sandwell.gov.uk/info/200202/performance_and_spending/1079/payments_over_500,01-Nov-2021,Childrens Services,MURRAY HALL COMMUNITY TRUST,Childrens Services,67881.46,Contract Payments,2122P08_CR00112,01627284
Sandwell Metropolitan Borough Council,http://www.sandwell.gov.uk/info/200202/performance_and_spending/1079/payments_over_500,01-Nov-2021,Childrens Services,MURRAY HALL COMMUNITY TRUST,Childrens Services,151965.45,Contract Payments,2122P08_CR00113,01627284
Sandwell Metropolitan Borough Council,http://www.sandwell.gov.uk/info/200202/performance_and_spending/1079/payments_over_500,22-Nov-2021,Childrens Services,NATALIE WESTON,Childrens Services,4127.00,Grant Payments,2122P08_CR00114,152056
Sandwell Metropolitan Borough Council,http://www.sandwell.gov.uk/info/200202/performance_and_spending/1079/payments_over_500,01-Nov-2021,Childrens Services,NEWAVE LTD,Childrens Services,818.48,Agency Staff,2122P08_CR00115,101666
Sandwell Metropolitan Borough Council,http://www.sandwell.gov.uk/info/200202/performance_and_spending/1079/payments_over_500,01-Nov-2021,Childrens Services,NEWAVE LTD,Childrens Services,1304.48,Agency Staff,2122P08_CR00116,101666
Sandwell Metropolitan Borough Council,http://www.sandwell.gov.uk/info/200202/performance_and_spending/1079/payments_over_500,01-Nov-2021,Childrens Services,NEWAVE LTD,Childrens Services,1875.00,Agency Staff,2122P08_CR00117,101666
Sandwell Metropolitan Borough Council,http://www.sandwell.gov.uk/info/200202/performance_and_spending/1079/payments_over_500,10-Nov-2021,Childrens Services,NEWAVE LTD,Childrens Services,780.00,Agency Staff,2122P08_CR00118,101666
Sandwell Metropolitan Borough Council,http://www.sandwell.gov.uk/info/200202/performance_and_spending/1079/payments_over_500,01-Nov-2021,Childrens Services,NEWAVE LTD,Childrens Services,624.00,Agency Staff,2122P08_CR00119,101666
Sandwell Metropolitan Borough Council,http://www.sandwell.gov.uk/info/200202/performance_and_spending/1079/payments_over_500,23-Nov-2021,Childrens Services,RB SPORTS ACTIVITIES LTD,Childrens Services,4400.00,Grant Payments,2122P08_CR00120,126163
Sandwell Metropolitan Borough Council,http://www.sandwell.gov.uk/info/200202/performance_and_spending/1079/payments_over_500,08-Nov-2021,Childrens Services,REDACTED PERSONAL DATA,Childrens Services,500.00,Grant Payments,2122P08_CR00121,REDACTED PERSONAL DATA
Sandwell Metropolitan Borough Council,http://www.sandwell.gov.uk/info/200202/performance_and_spending/1079/payments_over_500,01-Nov-2021,Childrens Services,REDACTED PERSONAL DATA T/A  AKAASH TRAVEL,Childrens Services,40348.33,Public Transport,2122P08_CR00122,REDACTED PERSONAL DATA
Sandwell Metropolitan Borough Council,http://www.sandwell.gov.uk/info/200202/performance_and_spending/1079/payments_over_500,01-Nov-2021,Childrens Services,ROYALE TRAINING LTD,Childrens Services,583.00,Externally Purchased Professional Services ,2122P08_CR00123,133604
Sandwell Metropolitan Borough Council,http://www.sandwell.gov.uk/info/200202/performance_and_spending/1079/payments_over_500,01-Nov-2021,Childrens Services,ROYALE TRAINING LTD,Childrens Services,583.00,Externally Purchased Professional Services ,2122P08_CR00124,133604
Sandwell Metropolitan Borough Council,http://www.sandwell.gov.uk/info/200202/performance_and_spending/1079/payments_over_500,01-Nov-2021,Childrens Services,ROYALE TRAINING LTD,Childrens Services,583.00,Externally Purchased Professional Services ,2122P08_CR00125,133604
Sandwell Metropolitan Borough Council,http://www.sandwell.gov.uk/info/200202/performance_and_spending/1079/payments_over_500,01-Nov-2021,Childrens Services,SANDWELL CITIZENS ADVICE BUREAUX,Childrens Services,1010.75,Externally Purchased Professional Services ,2122P08_CR00126,01760899
Sandwell Metropolitan Borough Council,http://www.sandwell.gov.uk/info/200202/performance_and_spending/1079/payments_over_500,01-Nov-2021,Childrens Services,SANDWELL CITIZENS ADVICE BUREAUX,Childrens Services,1010.75,Externally Purchased Professional Services ,2122P08_CR00127,01760899
Sandwell Metropolitan Borough Council,http://www.sandwell.gov.uk/info/200202/performance_and_spending/1079/payments_over_500,01-Nov-2021,Childrens Services,SANDWELL CITIZENS ADVICE BUREAUX,Childrens Services,941.16,Externally Purchased Professional Services ,2122P08_CR00128,01760899
Sandwell Metropolitan Borough Council,http://www.sandwell.gov.uk/info/200202/performance_and_spending/1079/payments_over_500,01-Nov-2021,Childrens Services,SANDWELL CITIZENS ADVICE BUREAUX,Childrens Services,1010.75,Externally Purchased Professional Services ,2122P08_CR00129,01760899
Sandwell Metropolitan Borough Council,http://www.sandwell.gov.uk/info/200202/performance_and_spending/1079/payments_over_500,01-Nov-2021,Childrens Services,SANDWELL CITIZENS ADVICE BUREAUX,Childrens Services,1010.75,Externally Purchased Professional Services ,2122P08_CR00130,01760899
Sandwell Metropolitan Borough Council,http://www.sandwell.gov.uk/info/200202/performance_and_spending/1079/payments_over_500,05-Nov-2021,Childrens Services,SANDWELL CITIZENS ADVICE BUREAUX,Childrens Services,1010.75,Externally Purchased Professional Services ,2122P08_CR00131,01760899
Sandwell Metropolitan Borough Council,http://www.sandwell.gov.uk/info/200202/performance_and_spending/1079/payments_over_500,05-Nov-2021,Childrens Services,SANDWELL CITIZENS ADVICE BUREAUX,Childrens Services,941.16,Externally Purchased Professional Services ,2122P08_CR00132,01760899
Sandwell Metropolitan Borough Council,http://www.sandwell.gov.uk/info/200202/performance_and_spending/1079/payments_over_500,05-Nov-2021,Childrens Services,SANDWELL CITIZENS ADVICE BUREAUX,Childrens Services,1010.75,Externally Purchased Professional Services ,2122P08_CR00133,01760899
Sandwell Metropolitan Borough Council,http://www.sandwell.gov.uk/info/200202/performance_and_spending/1079/payments_over_500,16-Nov-2021,Childrens Services,SANDWELL CITIZENS ADVICE BUREAUX,Childrens Services,1010.75,Externally Purchased Professional Services ,2122P08_CR00134,01760899
Sandwell Metropolitan Borough Council,http://www.sandwell.gov.uk/info/200202/performance_and_spending/1079/payments_over_500,16-Nov-2021,Childrens Services,SANDWELL CITIZENS ADVICE BUREAUX,Childrens Services,1010.75,Externally Purchased Professional Services ,2122P08_CR00135,01760899
Sandwell Metropolitan Borough Council,http://www.sandwell.gov.uk/info/200202/performance_and_spending/1079/payments_over_500,22-Nov-2021,Childrens Services,SANDWELL CITIZENS ADVICE BUREAUX,Childrens Services,1010.75,Externally Purchased Professional Services ,2122P08_CR00136,01760899
Sandwell Metropolitan Borough Council,http://www.sandwell.gov.uk/info/200202/performance_and_spending/1079/payments_over_500,01-Nov-2021,Childrens Services,SANDWELL CITIZENS ADVICE BUREAUX,Childrens Services,941.16,Grants,2122P08_CR00137,01760899
Sandwell Metropolitan Borough Council,http://www.sandwell.gov.uk/info/200202/performance_and_spending/1079/payments_over_500,05-Nov-2021,Childrens Services,SANDWELL CITIZENS ADVICE BUREAUX,Childrens Services,941.16,Grants,2122P08_CR00138,01760899
Sandwell Metropolitan Borough Council,http://www.sandwell.gov.uk/info/200202/performance_and_spending/1079/payments_over_500,01-Nov-2021,Childrens Services,SANDWELL CITIZENS ADVICE BUREAUX,Childrens Services,1010.75,Grants,2122P08_CR00139,01760899
Sandwell Metropolitan Borough Council,http://www.sandwell.gov.uk/info/200202/performance_and_spending/1079/payments_over_500,01-Nov-2021,Childrens Services,SANDWELL CITIZENS ADVICE BUREAUX,Childrens Services,1010.75,Grants,2122P08_CR00140,01760899
Sandwell Metropolitan Borough Council,http://www.sandwell.gov.uk/info/200202/performance_and_spending/1079/payments_over_500,10-Nov-2021,Childrens Services,SANDWELL CONSORTIUM CIC,Childrens Services,1010.75,Grants,2122P08_CR00141,104616
Sandwell Metropolitan Borough Council,http://www.sandwell.gov.uk/info/200202/performance_and_spending/1079/payments_over_500,10-Nov-2021,Childrens Services,SANDWELL CONSORTIUM CIC,Childrens Services,1010.75,Grants,2122P08_CR00142,104616
Sandwell Metropolitan Borough Council,http://www.sandwell.gov.uk/info/200202/performance_and_spending/1079/payments_over_500,10-Nov-2021,Childrens Services,SANDWELL CONSORTIUM CIC,Childrens Services,1010.75,Grants,2122P08_CR00143,104616
Sandwell Metropolitan Borough Council,http://www.sandwell.gov.uk/info/200202/performance_and_spending/1079/payments_over_500,10-Nov-2021,Childrens Services,SANDWELL CONSORTIUM CIC,Childrens Services,1010.75,Grants,2122P08_CR00144,104616
Sandwell Metropolitan Borough Council,http://www.sandwell.gov.uk/info/200202/performance_and_spending/1079/payments_over_500,11-Nov-2021,Childrens Services,SANDWELL CONSORTIUM CIC,Childrens Services,1010.75,Grants,2122P08_CR00145,104616
Sandwell Metropolitan Borough Council,http://www.sandwell.gov.uk/info/200202/performance_and_spending/1079/payments_over_500,23-Nov-2021,Childrens Services,SEDDON CONSTRUCTION LIMITED,Childrens Services,560.00,Grants,2122P08_CR00146,132999
Sandwell Metropolitan Borough Council,http://www.sandwell.gov.uk/info/200202/performance_and_spending/1079/payments_over_500,01-Nov-2021,Childrens Services,SHRED-IT LIMITED,Childrens Services,601.23,Waste Disposal Charges,2122P08_CR00147,01754926
Sandwell Metropolitan Borough Council,http://www.sandwell.gov.uk/info/200202/performance_and_spending/1079/payments_over_500,17-Nov-2021,Childrens Services,SIPS EDUCATION LTD,Childrens Services,2029.05,Catering Provisions,2122P08_CR00148,110784
Sandwell Metropolitan Borough Council,http://www.sandwell.gov.uk/info/200202/performance_and_spending/1079/payments_over_500,17-Nov-2021,Childrens Services,SIPS EDUCATION LTD,Childrens Services,2443.30,Catering Provisions,2122P08_CR00149,110784
Sandwell Metropolitan Borough Council,http://www.sandwell.gov.uk/info/200202/performance_and_spending/1079/payments_over_500,17-Nov-2021,Childrens Services,SIPS EDUCATION LTD,Childrens Services,2239.15,Catering Provisions,2122P08_CR00150,110784
Sandwell Metropolitan Borough Council,http://www.sandwell.gov.uk/info/200202/performance_and_spending/1079/payments_over_500,09-Nov-2021,Childrens Services,SIPS EDUCATION LTD,Childrens Services,25000.00,Contract Payments,2122P08_CR00151,110784
Sandwell Metropolitan Borough Council,http://www.sandwell.gov.uk/info/200202/performance_and_spending/1079/payments_over_500,01-Nov-2021,Childrens Services,SSE ENERGY SUPPLY LIMITED,Childrens Services,3114.12,Electricity,2122P08_CR00152,116134
Sandwell Metropolitan Borough Council,http://www.sandwell.gov.uk/info/200202/performance_and_spending/1079/payments_over_500,22-Nov-2021,Childrens Services,TERRA TEK LTD,Childrens Services,560.00,Grants,2122P08_CR00153,155508
Sandwell Metropolitan Borough Council,http://www.sandwell.gov.uk/info/200202/performance_and_spending/1079/payments_over_500,01-Nov-2021,Childrens Services,THANDI COACHES,Childrens Services,5250.00,External Contract Hire,2122P08_CR00154,31534
Sandwell Metropolitan Borough Council,http://www.sandwell.gov.uk/info/200202/performance_and_spending/1079/payments_over_500,19-Nov-2021,Childrens Services,"THE DOG, DUCK AND CAT TRUST",Childrens Services,1260.00,Discretionary Awards,2122P08_CR00155,135232
Sandwell Metropolitan Borough Council,http://www.sandwell.gov.uk/info/200202/performance_and_spending/1079/payments_over_500,01-Nov-2021,Childrens Services,THOMAS CHARLES FACILITIES & MAINTENANCE LTD,Childrens Services,780.00,Contract Cleaning,2122P08_CR00156,114170
Sandwell Metropolitan Borough Council,http://www.sandwell.gov.uk/info/200202/performance_and_spending/1079/payments_over_500,01-Nov-2021,Childrens Services,THOMAS CHARLES FACILITIES & MAINTENANCE LTD,Childrens Services,1980.00,Contract Cleaning,2122P08_CR00157,114170
Sandwell Metropolitan Borough Council,http://www.sandwell.gov.uk/info/200202/performance_and_spending/1079/payments_over_500,01-Nov-2021,Childrens Services,THOMAS CHARLES FACILITIES & MAINTENANCE LTD,Childrens Services,1980.00,Contract Cleaning,2122P08_CR00158,114170
Sandwell Metropolitan Borough Council,http://www.sandwell.gov.uk/info/200202/performance_and_spending/1079/payments_over_500,01-Nov-2021,Childrens Services,THOMAS CHARLES FACILITIES & MAINTENANCE LTD,Childrens Services,2970.00,Contract Cleaning,2122P08_CR00159,114170
Sandwell Metropolitan Borough Council,http://www.sandwell.gov.uk/info/200202/performance_and_spending/1079/payments_over_500,01-Nov-2021,Childrens Services,THOMAS CHARLES FACILITIES & MAINTENANCE LTD,Childrens Services,1980.00,Contract Cleaning,2122P08_CR00160,114170
Sandwell Metropolitan Borough Council,http://www.sandwell.gov.uk/info/200202/performance_and_spending/1079/payments_over_500,01-Nov-2021,Childrens Services,THOMAS CHARLES FACILITIES & MAINTENANCE LTD,Childrens Services,877.50,Contract Cleaning,2122P08_CR00161,114170
Sandwell Metropolitan Borough Council,http://www.sandwell.gov.uk/info/200202/performance_and_spending/1079/payments_over_500,01-Nov-2021,Childrens Services,TOH TAXIS,Childrens Services,1469.67,Public Transport,2122P08_CR00162,12250
Sandwell Metropolitan Borough Council,http://www.sandwell.gov.uk/info/200202/performance_and_spending/1079/payments_over_500,01-Nov-2021,Childrens Services,TOH TAXIS,Childrens Services,1409.68,Public Transport,2122P08_CR00163,12250
Sandwell Metropolitan Borough Council,http://www.sandwell.gov.uk/info/200202/performance_and_spending/1079/payments_over_500,01-Nov-2021,Childrens Services,TOH TAXIS,Childrens Services,1059.64,Public Transport,2122P08_CR00164,12250
Sandwell Metropolitan Borough Council,http://www.sandwell.gov.uk/info/200202/performance_and_spending/1079/payments_over_500,15-Nov-2021,Childrens Services,TOPPS MANAGEMENT & SUPPORT SERVICES LTD,Childrens Services,7142.80,Discretionary Awards,2122P08_CR00165,68846
Sandwell Metropolitan Borough Council,http://www.sandwell.gov.uk/info/200202/performance_and_spending/1079/payments_over_500,13-Nov-2021,Childrens Services,TOTALENERGIES GAS & POWER LTD,Childrens Services,898.40,Electricity,2122P08_CR00166,107605
Sandwell Metropolitan Borough Council,http://www.sandwell.gov.uk/info/200202/performance_and_spending/1079/payments_over_500,13-Nov-2021,Childrens Services,TOTALENERGIES GAS & POWER LTD,Childrens Services,703.90,Electricity,2122P08_CR00167,107605
Sandwell Metropolitan Borough Council,http://www.sandwell.gov.uk/info/200202/performance_and_spending/1079/payments_over_500,13-Nov-2021,Childrens Services,TOTALENERGIES GAS & POWER LTD,Childrens Services,558.84,Electricity,2122P08_CR00168,107605
Sandwell Metropolitan Borough Council,http://www.sandwell.gov.uk/info/200202/performance_and_spending/1079/payments_over_500,13-Nov-2021,Childrens Services,TOTALENERGIES GAS & POWER LTD,Childrens Services,898.11,Electricity,2122P08_CR00169,107605
Sandwell Metropolitan Borough Council,http://www.sandwell.gov.uk/info/200202/performance_and_spending/1079/payments_over_500,13-Nov-2021,Childrens Services,TOTALENERGIES GAS & POWER LTD,Childrens Services,1234.45,Electricity,2122P08_CR00170,107605
Sandwell Metropolitan Borough Council,http://www.sandwell.gov.uk/info/200202/performance_and_spending/1079/payments_over_500,12-Nov-2021,Childrens Services,TOTALENERGIES GAS & POWER LTD,Childrens Services,617.84,Electricity,2122P08_CR00171,107605
Sandwell Metropolitan Borough Council,http://www.sandwell.gov.uk/info/200202/performance_and_spending/1079/payments_over_500,13-Nov-2021,Childrens Services,TOTALENERGIES GAS & POWER LTD,Childrens Services,544.28,Electricity,2122P08_CR00172,107605
Sandwell Metropolitan Borough Council,http://www.sandwell.gov.uk/info/200202/performance_and_spending/1079/payments_over_500,01-Nov-2021,Childrens Services,WEST BROMWICH ALBION FC LTD,Childrens Services,500.00,Hire of Facilities,2122P08_CR00173,01606624
Sandwell Metropolitan Borough Council,http://www.sandwell.gov.uk/info/200202/performance_and_spending/1079/payments_over_500,01-Nov-2021,Childrens Services,WEST MIDLANDS TRAVEL LIMITED,Childrens Services,570.00,Public Transport,2122P08_CR00174,01736688
Sandwell Metropolitan Borough Council,http://www.sandwell.gov.uk/info/200202/performance_and_spending/1079/payments_over_500,08-Nov-2021,Childrens Services,YELLOW CARS,Childrens Services,22832.04,Public Transport,2122P08_CR00175,116819
Sandwell Metropolitan Borough Council,http://www.sandwell.gov.uk/info/200202/performance_and_spending/1079/payments_over_500,10-Nov-2021,Childrens Services,L J HILL & J L HILL,Childrens Services,545.45,External Contract Hire,2122P08_CR00176,147930
Sandwell Metropolitan Borough Council,http://www.sandwell.gov.uk/info/200202/performance_and_spending/1079/payments_over_500,10-Nov-2021,Childrens Services,REDACTED PERSONAL DATA,Childrens Services,509.05,External Contract Hire,2122P08_CR00177,REDACTED PERSONAL DATA
Sandwell Metropolitan Borough Council,http://www.sandwell.gov.uk/info/200202/performance_and_spending/1079/payments_over_500,10-Nov-2021,Childrens Services,REDACTED PERSONAL DATA,Childrens Services,727.27,External Contract Hire,2122P08_CR00178,REDACTED PERSONAL DATA
Sandwell Metropolitan Borough Council,http://www.sandwell.gov.uk/info/200202/performance_and_spending/1079/payments_over_500,10-Nov-2021,Childrens Services,REDACTED PERSONAL DATA,Childrens Services,727.27,External Contract Hire,2122P08_CR00179,REDACTED PERSONAL DATA
Sandwell Metropolitan Borough Council,http://www.sandwell.gov.uk/info/200202/performance_and_spending/1079/payments_over_500,10-Nov-2021,Childrens Services,REDACTED PERSONAL DATA,Childrens Services,545.45,External Contract Hire,2122P08_CR00180,REDACTED PERSONAL DATA
Sandwell Metropolitan Borough Council,http://www.sandwell.gov.uk/info/200202/performance_and_spending/1079/payments_over_500,10-Nov-2021,Childrens Services,REDACTED PERSONAL DATA,Childrens Services,545.45,External Contract Hire,2122P08_CR00181,REDACTED PERSONAL DATA
Sandwell Metropolitan Borough Council,http://www.sandwell.gov.uk/info/200202/performance_and_spending/1079/payments_over_500,10-Nov-2021,Childrens Services,REDACTED PERSONAL DATA,Childrens Services,727.28,External Contract Hire,2122P08_CR00182,REDACTED PERSONAL DATA
Sandwell Metropolitan Borough Council,http://www.sandwell.gov.uk/info/200202/performance_and_spending/1079/payments_over_500,10-Nov-2021,Childrens Services,REDACTED PERSONAL DATA,Childrens Services,727.27,External Contract Hire,2122P08_CR00183,REDACTED PERSONAL DATA
Sandwell Metropolitan Borough Council,http://www.sandwell.gov.uk/info/200202/performance_and_spending/1079/payments_over_500,10-Nov-2021,Childrens Services,REDACTED PERSONAL DATA,Childrens Services,727.28,External Contract Hire,2122P08_CR00184,REDACTED PERSONAL DATA
Sandwell Metropolitan Borough Council,http://www.sandwell.gov.uk/info/200202/performance_and_spending/1079/payments_over_500,10-Nov-2021,Childrens Services,REDACTED PERSONAL DATA,Childrens Services,545.45,External Contract Hire,2122P08_CR00185,REDACTED PERSONAL DATA
Sandwell Metropolitan Borough Council,http://www.sandwell.gov.uk/info/200202/performance_and_spending/1079/payments_over_500,10-Nov-2021,Childrens Services,REDACTED PERSONAL DATA,Childrens Services,818.17,External Contract Hire,2122P08_CR00186,REDACTED PERSONAL DATA
Sandwell Metropolitan Borough Council,http://www.sandwell.gov.uk/info/200202/performance_and_spending/1079/payments_over_500,10-Nov-2021,Childrens Services,REDACTED PERSONAL DATA,Childrens Services,545.45,External Contract Hire,2122P08_CR00187,REDACTED PERSONAL DATA
Sandwell Metropolitan Borough Council,http://www.sandwell.gov.uk/info/200202/performance_and_spending/1079/payments_over_500,10-Nov-2021,Childrens Services,REDACTED PERSONAL DATA,Childrens Services,1090.90,External Contract Hire,2122P08_CR00188,REDACTED PERSONAL DATA
Sandwell Metropolitan Borough Council,http://www.sandwell.gov.uk/info/200202/performance_and_spending/1079/payments_over_500,10-Nov-2021,Childrens Services,REDACTED PERSONAL DATA,Childrens Services,545.45,External Contract Hire,2122P08_CR00189,REDACTED PERSONAL DATA
Sandwell Metropolitan Borough Council,http://www.sandwell.gov.uk/info/200202/performance_and_spending/1079/payments_over_500,10-Nov-2021,Childrens Services,REDACTED PERSONAL DATA,Childrens Services,545.45,External Contract Hire,2122P08_CR00190,REDACTED PERSONAL DATA
Sandwell Metropolitan Borough Council,http://www.sandwell.gov.uk/info/200202/performance_and_spending/1079/payments_over_500,10-Nov-2021,Childrens Services,REDACTED PERSONAL DATA,Childrens Services,727.27,External Contract Hire,2122P08_CR00191,REDACTED PERSONAL DATA
Sandwell Metropolitan Borough Council,http://www.sandwell.gov.uk/info/200202/performance_and_spending/1079/payments_over_500,10-Nov-2021,Childrens Services,REDACTED PERSONAL DATA,Childrens Services,909.09,External Contract Hire,2122P08_CR00192,REDACTED PERSONAL DATA
Sandwell Metropolitan Borough Council,http://www.sandwell.gov.uk/info/200202/performance_and_spending/1079/payments_over_500,10-Nov-2021,Childrens Services,REDACTED PERSONAL DATA,Childrens Services,545.45,External Contract Hire,2122P08_CR00193,REDACTED PERSONAL DATA
Sandwell Metropolitan Borough Council,http://www.sandwell.gov.uk/info/200202/performance_and_spending/1079/payments_over_500,10-Nov-2021,Childrens Services,REDACTED PERSONAL DATA,Childrens Services,545.45,External Contract Hire,2122P08_CR00194,REDACTED PERSONAL DATA
Sandwell Metropolitan Borough Council,http://www.sandwell.gov.uk/info/200202/performance_and_spending/1079/payments_over_500,10-Nov-2021,Childrens Services,REDACTED PERSONAL DATA,Childrens Services,545.45,External Contract Hire,2122P08_CR00195,REDACTED PERSONAL DATA
Sandwell Metropolitan Borough Council,http://www.sandwell.gov.uk/info/200202/performance_and_spending/1079/payments_over_500,10-Nov-2021,Childrens Services,REDACTED PERSONAL DATA,Childrens Services,727.28,External Contract Hire,2122P08_CR00196,REDACTED PERSONAL DATA
Sandwell Metropolitan Borough Council,http://www.sandwell.gov.uk/info/200202/performance_and_spending/1079/payments_over_500,10-Nov-2021,Childrens Services,REDACTED PERSONAL DATA,Childrens Services,800.00,External Contract Hire,2122P08_CR00197,REDACTED PERSONAL DATA
Sandwell Metropolitan Borough Council,http://www.sandwell.gov.uk/info/200202/performance_and_spending/1079/payments_over_500,10-Nov-2021,Childrens Services,REDACTED PERSONAL DATA,Childrens Services,545.45,External Contract Hire,2122P08_CR00198,REDACTED PERSONAL DATA
Sandwell Metropolitan Borough Council,http://www.sandwell.gov.uk/info/200202/performance_and_spending/1079/payments_over_500,10-Nov-2021,Childrens Services,REDACTED PERSONAL DATA,Childrens Services,727.28,External Contract Hire,2122P08_CR00199,REDACTED PERSONAL DATA
Sandwell Metropolitan Borough Council,http://www.sandwell.gov.uk/info/200202/performance_and_spending/1079/payments_over_500,10-Nov-2021,Childrens Services,REDACTED PERSONAL DATA,Childrens Services,727.27,External Contract Hire,2122P08_CR00200,REDACTED PERSONAL DATA
Sandwell Metropolitan Borough Council,http://www.sandwell.gov.uk/info/200202/performance_and_spending/1079/payments_over_500,10-Nov-2021,Childrens Services,REDACTED PERSONAL DATA,Childrens Services,545.45,External Contract Hire,2122P08_CR00201,REDACTED PERSONAL DATA
Sandwell Metropolitan Borough Council,http://www.sandwell.gov.uk/info/200202/performance_and_spending/1079/payments_over_500,10-Nov-2021,Childrens Services,REDACTED PERSONAL DATA,Childrens Services,545.45,External Contract Hire,2122P08_CR00202,REDACTED PERSONAL DATA
Sandwell Metropolitan Borough Council,http://www.sandwell.gov.uk/info/200202/performance_and_spending/1079/payments_over_500,10-Nov-2021,Childrens Services,REDACTED PERSONAL DATA,Childrens Services,545.45,External Contract Hire,2122P08_CR00203,REDACTED PERSONAL DATA
Sandwell Metropolitan Borough Council,http://www.sandwell.gov.uk/info/200202/performance_and_spending/1079/payments_over_500,10-Nov-2021,Childrens Services,REDACTED PERSONAL DATA,Childrens Services,545.45,External Contract Hire,2122P08_CR00204,REDACTED PERSONAL DATA
Sandwell Metropolitan Borough Council,http://www.sandwell.gov.uk/info/200202/performance_and_spending/1079/payments_over_500,10-Nov-2021,Childrens Services,REDACTED PERSONAL DATA,Childrens Services,545.45,External Contract Hire,2122P08_CR00205,REDACTED PERSONAL DATA
Sandwell Metropolitan Borough Council,http://www.sandwell.gov.uk/info/200202/performance_and_spending/1079/payments_over_500,10-Nov-2021,Childrens Services,REDACTED PERSONAL DATA,Childrens Services,545.45,External Contract Hire,2122P08_CR00206,REDACTED PERSONAL DATA
Sandwell Metropolitan Borough Council,http://www.sandwell.gov.uk/info/200202/performance_and_spending/1079/payments_over_500,10-Nov-2021,Childrens Services,REDACTED PERSONAL DATA,Childrens Services,727.27,External Contract Hire,2122P08_CR00207,REDACTED PERSONAL DATA
Sandwell Metropolitan Borough Council,http://www.sandwell.gov.uk/info/200202/performance_and_spending/1079/payments_over_500,10-Nov-2021,Childrens Services,REDACTED PERSONAL DATA,Childrens Services,727.27,External Contract Hire,2122P08_CR00208,REDACTED PERSONAL DATA
Sandwell Metropolitan Borough Council,http://www.sandwell.gov.uk/info/200202/performance_and_spending/1079/payments_over_500,10-Nov-2021,Childrens Services,REDACTED PERSONAL DATA,Childrens Services,545.45,External Contract Hire,2122P08_CR00209,REDACTED PERSONAL DATA
Sandwell Metropolitan Borough Council,http://www.sandwell.gov.uk/info/200202/performance_and_spending/1079/payments_over_500,10-Nov-2021,Childrens Services,REDACTED PERSONAL DATA,Childrens Services,727.27,External Contract Hire,2122P08_CR00210,REDACTED PERSONAL DATA
Sandwell Metropolitan Borough Council,http://www.sandwell.gov.uk/info/200202/performance_and_spending/1079/payments_over_500,10-Nov-2021,Childrens Services,REDACTED PERSONAL DATA,Childrens Services,727.27,External Contract Hire,2122P08_CR00211,REDACTED PERSONAL DATA
Sandwell Metropolitan Borough Council,http://www.sandwell.gov.uk/info/200202/performance_and_spending/1079/payments_over_500,10-Nov-2021,Childrens Services,REDACTED PERSONAL DATA,Childrens Services,545.45,External Contract Hire,2122P08_CR00212,REDACTED PERSONAL DATA
Sandwell Metropolitan Borough Council,http://www.sandwell.gov.uk/info/200202/performance_and_spending/1079/payments_over_500,10-Nov-2021,Childrens Services,REDACTED PERSONAL DATA,Childrens Services,727.27,External Contract Hire,2122P08_CR00213,REDACTED PERSONAL DATA
Sandwell Metropolitan Borough Council,http://www.sandwell.gov.uk/info/200202/performance_and_spending/1079/payments_over_500,10-Nov-2021,Childrens Services,REDACTED PERSONAL DATA,Childrens Services,727.27,External Contract Hire,2122P08_CR00214,REDACTED PERSONAL DATA
Sandwell Metropolitan Borough Council,http://www.sandwell.gov.uk/info/200202/performance_and_spending/1079/payments_over_500,10-Nov-2021,Childrens Services,REDACTED PERSONAL DATA,Childrens Services,727.27,External Contract Hire,2122P08_CR00215,REDACTED PERSONAL DATA
Sandwell Metropolitan Borough Council,http://www.sandwell.gov.uk/info/200202/performance_and_spending/1079/payments_over_500,12-Nov-2021,Childrens Services,REDACTED PERSONAL DATA,Childrens Services,667.08,External Contract Hire,2122P08_CR00216,REDACTED PERSONAL DATA
Sandwell Metropolitan Borough Council,http://www.sandwell.gov.uk/info/200202/performance_and_spending/1079/payments_over_500,10-Nov-2021,Childrens Services,REDACTED PERSONAL DATA,Childrens Services,545.45,External Contract Hire,2122P08_CR00217,REDACTED PERSONAL DATA
Sandwell Metropolitan Borough Council,http://www.sandwell.gov.uk/info/200202/performance_and_spending/1079/payments_over_500,10-Nov-2021,Childrens Services,REDACTED PERSONAL DATA,Childrens Services,727.27,External Contract Hire,2122P08_CR00218,REDACTED PERSONAL DATA
Sandwell Metropolitan Borough Council,http://www.sandwell.gov.uk/info/200202/performance_and_spending/1079/payments_over_500,10-Nov-2021,Childrens Services,REDACTED PERSONAL DATA,Childrens Services,545.45,External Contract Hire,2122P08_CR00219,REDACTED PERSONAL DATA
Sandwell Metropolitan Borough Council,http://www.sandwell.gov.uk/info/200202/performance_and_spending/1079/payments_over_500,10-Nov-2021,Childrens Services,REDACTED PERSONAL DATA,Childrens Services,727.27,External Contract Hire,2122P08_CR00220,REDACTED PERSONAL DATA
Sandwell Metropolitan Borough Council,http://www.sandwell.gov.uk/info/200202/performance_and_spending/1079/payments_over_500,23-Nov-2021,Childrens Services,AFRICAN FRENCH SPEAKING COMMUNITY SUPPORT,Childrens Services,3260.00,Grant Payments,2122P08_CR00221,107906
Sandwell Metropolitan Borough Council,http://www.sandwell.gov.uk/info/200202/performance_and_spending/1079/payments_over_500,24-Nov-2021,Childrens Services,ALL STARS WALSALL C.I.C.,Childrens Services,4029.00,Grant Payments,2122P08_CR00222,153410
Sandwell Metropolitan Borough Council,http://www.sandwell.gov.uk/info/200202/performance_and_spending/1079/payments_over_500,24-Nov-2021,Childrens Services,CAPE COMMUNITY CARE DAY CENTRE,Childrens Services,2075.00,Grant Payments,2122P08_CR00223,01693179
Sandwell Metropolitan Borough Council,http://www.sandwell.gov.uk/info/200202/performance_and_spending/1079/payments_over_500,30-Nov-2021,Childrens Services,COMMUNITY ACTION PROJECT,Childrens Services,3435.00,Grant Payments,2122P08_CR00224,01702622
Sandwell Metropolitan Borough Council,http://www.sandwell.gov.uk/info/200202/performance_and_spending/1079/payments_over_500,23-Nov-2021,Childrens Services,FRIAR PARK MILLENNIUM CENTRE,Childrens Services,7764.00,Grant Payments,2122P08_CR00225,28476
Sandwell Metropolitan Borough Council,http://www.sandwell.gov.uk/info/200202/performance_and_spending/1079/payments_over_500,23-Nov-2021,Childrens Services,ILEYS COMMUNITY ASSOCIATION,Childrens Services,3604.00,Grant Payments,2122P08_CR00226,88247
Sandwell Metropolitan Borough Council,http://www.sandwell.gov.uk/info/200202/performance_and_spending/1079/payments_over_500,23-Nov-2021,Childrens Services,LION FARM ACTION CENTRE (SANDWELL) LTD,Childrens Services,4900.00,Grant Payments,2122P08_CR00227,21023409
Sandwell Metropolitan Borough Council,http://www.sandwell.gov.uk/info/200202/performance_and_spending/1079/payments_over_500,23-Nov-2021,Childrens Services,SAM'S HEALTH AND FITNESS SUITE,Childrens Services,2500.00,Grant Payments,2122P08_CR00228,153276
Sandwell Metropolitan Borough Council,http://www.sandwell.gov.uk/info/200202/performance_and_spending/1079/payments_over_500,23-Nov-2021,Childrens Services,SANDWELL DEAF COMMUNITY ASSOCIATION,Childrens Services,2844.00,Grant Payments,2122P08_CR00229,3138
Sandwell Metropolitan Borough Council,http://www.sandwell.gov.uk/info/200202/performance_and_spending/1079/payments_over_500,24-Nov-2021,Childrens Services,SPORTING YOUR FUTURES,Childrens Services,16655.00,Grant Payments,2122P08_CR00230,153219
Sandwell Metropolitan Borough Council,http://www.sandwell.gov.uk/info/200202/performance_and_spending/1079/payments_over_500,25-Nov-2021,Childrens Services,SPORTS 4 LIFE UK,Childrens Services,5682.00,Grant Payments,2122P08_CR00231,153208
Sandwell Metropolitan Borough Council,http://www.sandwell.gov.uk/info/200202/performance_and_spending/1079/payments_over_500,01-Nov-2021,Childrens Services Capital,BRADLEY ENVIRONMENTAL CONSULTANTS LTD,Childrens Services Capital,1226.94,"CIP - New Construction,Conversion, Enhancement & Reno",2122P08_CR00232,01150424
Sandwell Metropolitan Borough Council,http://www.sandwell.gov.uk/info/200202/performance_and_spending/1079/payments_over_500,16-Nov-2021,Childrens Services Capital,BRADLEY ENVIRONMENTAL CONSULTANTS LTD,Childrens Services Capital,4694.36,"CIP - New Construction,Conversion, Enhancement & Reno",2122P08_CR00233,01150424
Sandwell Metropolitan Borough Council,http://www.sandwell.gov.uk/info/200202/performance_and_spending/1079/payments_over_500,01-Nov-2021,Childrens Services Capital,HOME FARM NURSERIES (PINVIN) LIMITED,Childrens Services Capital,3096.98,"CIP - New Construction,Conversion, Enhancement & Reno",2122P08_CR00234,77003445
Sandwell Metropolitan Borough Council,http://www.sandwell.gov.uk/info/200202/performance_and_spending/1079/payments_over_500,01-Nov-2021,Childrens Services Capital,POWELL OFFICE EQUIPMENT LIMITED,Childrens Services Capital,20341.90,CIP - Furniture,2122P08_CR00235,2759
Sandwell Metropolitan Borough Council,http://www.sandwell.gov.uk/info/200202/performance_and_spending/1079/payments_over_500,01-Nov-2021,Childrens Services Capital,POWELL OFFICE EQUIPMENT LIMITED,Childrens Services Capital,2583.00,CIP - Furniture,2122P08_CR00236,2759
Sandwell Metropolitan Borough Council,http://www.sandwell.gov.uk/info/200202/performance_and_spending/1079/payments_over_500,01-Nov-2021,Childrens Services Capital,POWELL OFFICE EQUIPMENT LIMITED,Childrens Services Capital,1575.00,CIP - Furniture,2122P08_CR00237,2759
Sandwell Metropolitan Borough Council,http://www.sandwell.gov.uk/info/200202/performance_and_spending/1079/payments_over_500,15-Nov-2021,Childrens Services Capital,SANDWELL FUTURES LTD,Childrens Services Capital,38450.13,"CIP - New Construction,Conversion, Enhancement & Reno",2122P08_CR00238,88151
Sandwell Metropolitan Borough Council,http://www.sandwell.gov.uk/info/200202/performance_and_spending/1079/payments_over_500,01-Nov-2021,Childrens Services Capital,THE MEADOWS SCHOOL,Childrens Services Capital,3350.00,"CIP - New Construction,Conversion, Enhancement & Reno",2122P08_CR00239,68653
Sandwell Metropolitan Borough Council,http://www.sandwell.gov.uk/info/200202/performance_and_spending/1079/payments_over_500,01-Nov-2021,Childrens Services Capital,THE MEADOWS SCHOOL,Childrens Services Capital,10000.00,"CIP - New Construction,Conversion, Enhancement & Reno",2122P08_CR00240,68653
Sandwell Metropolitan Borough Council,http://www.sandwell.gov.uk/info/200202/performance_and_spending/1079/payments_over_500,05-Nov-2021,Housing & Communities,BOC LTD,Neighbourhoods,1519.67,Equipment & Furniture ,2122P08_CR00241,01070163
Sandwell Metropolitan Borough Council,http://www.sandwell.gov.uk/info/200202/performance_and_spending/1079/payments_over_500,25-Nov-2021,Housing & Communities,BRITISH VEHICLE RENTAL AND LEASING ASSOCIATION,Neighbourhoods,1300.00,Subscriptions,2122P08_CR00242,140905
Sandwell Metropolitan Borough Council,http://www.sandwell.gov.uk/info/200202/performance_and_spending/1079/payments_over_500,16-Nov-2021,Housing & Communities,COOPER MOBILE SERVICES LTD,Neighbourhoods,3521.37,Fire Service Workshops,2122P08_CR00243,01304378
Sandwell Metropolitan Borough Council,http://www.sandwell.gov.uk/info/200202/performance_and_spending/1079/payments_over_500,16-Nov-2021,Housing & Communities,COOPER MOBILE SERVICES LTD,Neighbourhoods,5785.01,Fire Service Workshops,2122P08_CR00244,01304378
Sandwell Metropolitan Borough Council,http://www.sandwell.gov.uk/info/200202/performance_and_spending/1079/payments_over_500,01-Nov-2021,Housing & Communities,DAWSONGROUP VANS,Neighbourhoods,528.55,Vehicle Hiring Charges,2122P08_CR00245,151498
Sandwell Metropolitan Borough Council,http://www.sandwell.gov.uk/info/200202/performance_and_spending/1079/payments_over_500,01-Nov-2021,Housing & Communities,DAWSONGROUP VANS,Neighbourhoods,528.55,Vehicle Hiring Charges,2122P08_CR00246,151498
Sandwell Metropolitan Borough Council,http://www.sandwell.gov.uk/info/200202/performance_and_spending/1079/payments_over_500,01-Nov-2021,Housing & Communities,DAWSONGROUP VANS,Neighbourhoods,627.08,Vehicle Hiring Charges,2122P08_CR00247,151498
Sandwell Metropolitan Borough Council,http://www.sandwell.gov.uk/info/200202/performance_and_spending/1079/payments_over_500,01-Nov-2021,Housing & Communities,DAYS RENTAL,Neighbourhoods,518.94,Vehicle Hiring Charges,2122P08_CR00248,128169
Sandwell Metropolitan Borough Council,http://www.sandwell.gov.uk/info/200202/performance_and_spending/1079/payments_over_500,01-Nov-2021,Housing & Communities,DAYS RENTAL,Neighbourhoods,518.94,Vehicle Hiring Charges,2122P08_CR00249,128169
Sandwell Metropolitan Borough Council,http://www.sandwell.gov.uk/info/200202/performance_and_spending/1079/payments_over_500,01-Nov-2021,Housing & Communities,DAYS RENTAL,Neighbourhoods,890.94,Vehicle Hiring Charges,2122P08_CR00250,128169
Sandwell Metropolitan Borough Council,http://www.sandwell.gov.uk/info/200202/performance_and_spending/1079/payments_over_500,01-Nov-2021,Housing & Communities,DAYS RENTAL,Neighbourhoods,890.94,Vehicle Hiring Charges,2122P08_CR00251,128169
Sandwell Metropolitan Borough Council,http://www.sandwell.gov.uk/info/200202/performance_and_spending/1079/payments_over_500,01-Nov-2021,Housing & Communities,DAYS RENTAL,Neighbourhoods,890.94,Vehicle Hiring Charges,2122P08_CR00252,128169
Sandwell Metropolitan Borough Council,http://www.sandwell.gov.uk/info/200202/performance_and_spending/1079/payments_over_500,16-Nov-2021,Housing & Communities,DENNIS EAGLE LTD,Neighbourhoods,960.72,Fire Service Workshops,2122P08_CR00253,01004865
Sandwell Metropolitan Borough Council,http://www.sandwell.gov.uk/info/200202/performance_and_spending/1079/payments_over_500,09-Nov-2021,Housing & Communities,DENNIS EAGLE LTD,Neighbourhoods,819.55,Fire Service Workshops,2122P08_CR00254,01004865
Sandwell Metropolitan Borough Council,http://www.sandwell.gov.uk/info/200202/performance_and_spending/1079/payments_over_500,03-Nov-2021,Housing & Communities,DENNIS EAGLE LTD,Neighbourhoods,1617.01,Fire Service Workshops,2122P08_CR00255,01004865
Sandwell Metropolitan Borough Council,http://www.sandwell.gov.uk/info/200202/performance_and_spending/1079/payments_over_500,15-Nov-2021,Housing & Communities,DENNIS EAGLE LTD,Neighbourhoods,1520.94,Fire Service Workshops,2122P08_CR00256,01004865
Sandwell Metropolitan Borough Council,http://www.sandwell.gov.uk/info/200202/performance_and_spending/1079/payments_over_500,04-Nov-2021,Housing & Communities,DENNIS EAGLE LTD,Neighbourhoods,619.61,Fire Service Workshops,2122P08_CR00257,01004865
Sandwell Metropolitan Borough Council,http://www.sandwell.gov.uk/info/200202/performance_and_spending/1079/payments_over_500,16-Nov-2021,Housing & Communities,DENNIS EAGLE LTD,Neighbourhoods,796.82,Fire Service Workshops,2122P08_CR00258,01004865
Sandwell Metropolitan Borough Council,http://www.sandwell.gov.uk/info/200202/performance_and_spending/1079/payments_over_500,02-Nov-2021,Housing & Communities,DENNIS EAGLE LTD,Neighbourhoods,830.94,Fire Service Workshops,2122P08_CR00259,01004865
Sandwell Metropolitan Borough Council,http://www.sandwell.gov.uk/info/200202/performance_and_spending/1079/payments_over_500,23-Nov-2021,Housing & Communities,DENNIS EAGLE LTD,Neighbourhoods,1151.46,Fire Service Workshops,2122P08_CR00260,01004865
Sandwell Metropolitan Borough Council,http://www.sandwell.gov.uk/info/200202/performance_and_spending/1079/payments_over_500,02-Nov-2021,Housing & Communities,DENNIS EAGLE LTD,Neighbourhoods,599.90,Fire Service Workshops,2122P08_CR00261,01004865
Sandwell Metropolitan Borough Council,http://www.sandwell.gov.uk/info/200202/performance_and_spending/1079/payments_over_500,02-Nov-2021,Housing & Communities,DIGRAPH TRANSPORT SUPPLIES LIMITED,Neighbourhoods,640.00,Fire Service Workshops,2122P08_CR00262,119139
Sandwell Metropolitan Borough Council,http://www.sandwell.gov.uk/info/200202/performance_and_spending/1079/payments_over_500,01-Nov-2021,Housing & Communities,ENTERPRISE FLEX-E-RENT,Neighbourhoods,3710.00,Vehicle Hiring Charges,2122P08_CR00263,142092
Sandwell Metropolitan Borough Council,http://www.sandwell.gov.uk/info/200202/performance_and_spending/1079/payments_over_500,01-Nov-2021,Housing & Communities,FAROL LIMITED,Neighbourhoods,575.00,Equipment & Furniture ,2122P08_CR00264,99987
Sandwell Metropolitan Borough Council,http://www.sandwell.gov.uk/info/200202/performance_and_spending/1079/payments_over_500,23-Nov-2021,Housing & Communities,FREIGHT TRANSPORT ASSOCIATION,Neighbourhoods,1818.50,Externally Purchased Professional Services ,2122P08_CR00265,10335
Sandwell Metropolitan Borough Council,http://www.sandwell.gov.uk/info/200202/performance_and_spending/1079/payments_over_500,01-Nov-2021,Housing & Communities,FUCHS LUBRICANTS (UK) LTD,Neighbourhoods,1484.00,Fire Service Workshops,2122P08_CR00266,130133
Sandwell Metropolitan Borough Council,http://www.sandwell.gov.uk/info/200202/performance_and_spending/1079/payments_over_500,18-Nov-2021,Housing & Communities,GEESINK NORBA LTD,Neighbourhoods,4631.61,Fire Service Workshops,2122P08_CR00267,102799
Sandwell Metropolitan Borough Council,http://www.sandwell.gov.uk/info/200202/performance_and_spending/1079/payments_over_500,01-Nov-2021,Housing & Communities,GEORGE BROWNS,Neighbourhoods,1266.00,Equipment & Furniture ,2122P08_CR00268,137211
Sandwell Metropolitan Borough Council,http://www.sandwell.gov.uk/info/200202/performance_and_spending/1079/payments_over_500,01-Nov-2021,Housing & Communities,HADLEYS STEAM CLEANING LTD,Neighbourhoods,1354.00,Repairs & Maintenance,2122P08_CR00269,132536
Sandwell Metropolitan Borough Council,http://www.sandwell.gov.uk/info/200202/performance_and_spending/1079/payments_over_500,22-Nov-2021,Housing & Communities,HARTSHORNE MOTOR SERVICES LTD                                   01,Neighbourhoods,850.00,Fire Service Workshops,2122P08_CR00270,01508668
Sandwell Metropolitan Borough Council,http://www.sandwell.gov.uk/info/200202/performance_and_spending/1079/payments_over_500,17-Nov-2021,Housing & Communities,K IRVINE PLANT (UK) LTD,Neighbourhoods,535.00,Vehicle Hiring Charges,2122P08_CR00271,01626135
Sandwell Metropolitan Borough Council,http://www.sandwell.gov.uk/info/200202/performance_and_spending/1079/payments_over_500,01-Nov-2021,Housing & Communities,MACKWORTH VEHICLE CONVERSIONS,Neighbourhoods,728.54,Fire Service Workshops,2122P08_CR00272,124922
Sandwell Metropolitan Borough Council,http://www.sandwell.gov.uk/info/200202/performance_and_spending/1079/payments_over_500,21-Nov-2021,Housing & Communities,MIDLAND GARAGE EQUIPMENT,Neighbourhoods,532.40,Fire Service Workshops,2122P08_CR00273,134241
Sandwell Metropolitan Borough Council,http://www.sandwell.gov.uk/info/200202/performance_and_spending/1079/payments_over_500,23-Nov-2021,Housing & Communities,MOTUS COMMERCIALS HALESOWEN,Neighbourhoods,1149.33,Fire Service Workshops,2122P08_CR00274,142253
Sandwell Metropolitan Borough Council,http://www.sandwell.gov.uk/info/200202/performance_and_spending/1079/payments_over_500,17-Nov-2021,Housing & Communities,MOTUS COMMERCIALS HALESOWEN,Neighbourhoods,740.80,Fire Service Workshops,2122P08_CR00275,142253
Sandwell Metropolitan Borough Council,http://www.sandwell.gov.uk/info/200202/performance_and_spending/1079/payments_over_500,11-Nov-2021,Housing & Communities,MOTUS GROUP LTD,Neighbourhoods,904.68,Fire Service Workshops,2122P08_CR00276,01286345
Sandwell Metropolitan Borough Council,http://www.sandwell.gov.uk/info/200202/performance_and_spending/1079/payments_over_500,01-Nov-2021,Housing & Communities,NORTHGATE VEHICLE HIRE (WEST MIDLANDS) LTD,Neighbourhoods,531.03,Vehicle Hiring Charges,2122P08_CR00277,01057676
Sandwell Metropolitan Borough Council,http://www.sandwell.gov.uk/info/200202/performance_and_spending/1079/payments_over_500,01-Nov-2021,Housing & Communities,OAKLEYS LTD,Neighbourhoods,2398.38,Fire Service Workshops,2122P08_CR00278,01598115
Sandwell Metropolitan Borough Council,http://www.sandwell.gov.uk/info/200202/performance_and_spending/1079/payments_over_500,08-Nov-2021,Housing & Communities,OAKLEYS LTD,Neighbourhoods,2072.83,Repairs & Maintenance,2122P08_CR00279,01598115
Sandwell Metropolitan Borough Council,http://www.sandwell.gov.uk/info/200202/performance_and_spending/1079/payments_over_500,10-Nov-2021,Housing & Communities,OAKLEYS LTD,Neighbourhoods,731.82,Repairs & Maintenance,2122P08_CR00280,01598115
Sandwell Metropolitan Borough Council,http://www.sandwell.gov.uk/info/200202/performance_and_spending/1079/payments_over_500,14-Nov-2021,Housing & Communities,PHS BESAFE,Neighbourhoods,1054.83,Laundry,2122P08_CR00281,124613
Sandwell Metropolitan Borough Council,http://www.sandwell.gov.uk/info/200202/performance_and_spending/1079/payments_over_500,08-Nov-2021,Housing & Communities,ROBINS & DAY PARTS WEST MIDLANDS,Neighbourhoods,532.50,Fire Service Workshops,2122P08_CR00282,118812
Sandwell Metropolitan Borough Council,http://www.sandwell.gov.uk/info/200202/performance_and_spending/1079/payments_over_500,12-Nov-2021,Housing & Communities,ROBINS & DAY PARTS WEST MIDLANDS,Neighbourhoods,858.80,Fire Service Workshops,2122P08_CR00283,118812
Sandwell Metropolitan Borough Council,http://www.sandwell.gov.uk/info/200202/performance_and_spending/1079/payments_over_500,05-Nov-2021,Housing & Communities,ROBINS & DAY PARTS WEST MIDLANDS,Neighbourhoods,638.36,Fire Service Workshops,2122P08_CR00284,118812
Sandwell Metropolitan Borough Council,http://www.sandwell.gov.uk/info/200202/performance_and_spending/1079/payments_over_500,19-Nov-2021,Housing & Communities,RS COMPONENTS LTD,Neighbourhoods,532.40,Fire Service Workshops,2122P08_CR00285,01665835
Sandwell Metropolitan Borough Council,http://www.sandwell.gov.uk/info/200202/performance_and_spending/1079/payments_over_500,01-Nov-2021,Housing & Communities,RVW PUGH LTD,Neighbourhoods,2703.11,Fire Service Workshops,2122P08_CR00286,5902
Sandwell Metropolitan Borough Council,http://www.sandwell.gov.uk/info/200202/performance_and_spending/1079/payments_over_500,19-Nov-2021,Housing & Communities,RYGOR COMMERCIALS LTD,Neighbourhoods,4200.44,Fire Service Workshops,2122P08_CR00287,3345
Sandwell Metropolitan Borough Council,http://www.sandwell.gov.uk/info/200202/performance_and_spending/1079/payments_over_500,23-Nov-2021,Housing & Communities,TAYLOR ENGINEERING & FABRICATIONS LTD,Neighbourhoods,783.97,Fire Service Workshops,2122P08_CR00288,87793
Sandwell Metropolitan Borough Council,http://www.sandwell.gov.uk/info/200202/performance_and_spending/1079/payments_over_500,11-Nov-2021,Housing & Communities,TAYLOR ENGINEERING & FABRICATIONS LTD,Neighbourhoods,517.85,Fire Service Workshops,2122P08_CR00289,87793
Sandwell Metropolitan Borough Council,http://www.sandwell.gov.uk/info/200202/performance_and_spending/1079/payments_over_500,23-Nov-2021,Housing & Communities,TAYLOR ENGINEERING & FABRICATIONS LTD,Neighbourhoods,515.35,Fire Service Workshops,2122P08_CR00290,87793
Sandwell Metropolitan Borough Council,http://www.sandwell.gov.uk/info/200202/performance_and_spending/1079/payments_over_500,04-Nov-2021,Housing & Communities,TERBERG MATEC UK LTD,Neighbourhoods,1722.00,Fire Service Workshops,2122P08_CR00291,21235
Sandwell Metropolitan Borough Council,http://www.sandwell.gov.uk/info/200202/performance_and_spending/1079/payments_over_500,01-Nov-2021,Housing & Communities,TERBERG MATEC UK LTD,Neighbourhoods,689.92,Fire Service Workshops,2122P08_CR00292,21235
Sandwell Metropolitan Borough Council,http://www.sandwell.gov.uk/info/200202/performance_and_spending/1079/payments_over_500,25-Nov-2021,Housing & Communities,TERBERG MATEC UK LTD,Neighbourhoods,875.03,Fire Service Workshops,2122P08_CR00293,21235
Sandwell Metropolitan Borough Council,http://www.sandwell.gov.uk/info/200202/performance_and_spending/1079/payments_over_500,18-Nov-2021,Housing & Communities,TH WHITE LIMITED,Housing & Communities,11450.00,"CIP - Vehicles, Plant & Machinery",2122P08_CR00294,01774713
Sandwell Metropolitan Borough Council,http://www.sandwell.gov.uk/info/200202/performance_and_spending/1079/payments_over_500,18-Nov-2021,Housing & Communities,TH WHITE LIMITED,Neighbourhoods,2003.61,Fire Service Workshops,2122P08_CR00295,01774713
Sandwell Metropolitan Borough Council,http://www.sandwell.gov.uk/info/200202/performance_and_spending/1079/payments_over_500,18-Nov-2021,Housing & Communities,TH WHITE LIMITED,Neighbourhoods,692.00,Fire Service Workshops,2122P08_CR00296,01774713
Sandwell Metropolitan Borough Council,http://www.sandwell.gov.uk/info/200202/performance_and_spending/1079/payments_over_500,21-Nov-2021,Housing & Communities,TH WHITE LIMITED,Neighbourhoods,504.09,Fire Service Workshops,2122P08_CR00297,01774713
Sandwell Metropolitan Borough Council,http://www.sandwell.gov.uk/info/200202/performance_and_spending/1079/payments_over_500,01-Nov-2021,Housing & Communities,TH WHITE LIMITED,Neighbourhoods,3810.03,Fire Service Workshops,2122P08_CR00298,01774713
Sandwell Metropolitan Borough Council,http://www.sandwell.gov.uk/info/200202/performance_and_spending/1079/payments_over_500,01-Nov-2021,Housing & Communities,TH WHITE LIMITED,Neighbourhoods,1440.06,Fire Service Workshops,2122P08_CR00299,01774713
Sandwell Metropolitan Borough Council,http://www.sandwell.gov.uk/info/200202/performance_and_spending/1079/payments_over_500,18-Nov-2021,Housing & Communities,TH WHITE LIMITED,Neighbourhoods,524.00,Repairs & Maintenance,2122P08_CR00300,01774713
Sandwell Metropolitan Borough Council,http://www.sandwell.gov.uk/info/200202/performance_and_spending/1079/payments_over_500,01-Nov-2021,Housing & Communities,MIDLAND FORESTRY LIMITED,Neighbourhoods,-528.00,Externally Purchased Professional Services ,2122P08_CR00301,45812
Sandwell Metropolitan Borough Council,http://www.sandwell.gov.uk/info/200202/performance_and_spending/1079/payments_over_500,01-Nov-2021,Housing & Communities,TOTALENERGIES GAS & POWER LTD,Neighbourhoods,-1732.56,Gas,2122P08_CR00302,107605
Sandwell Metropolitan Borough Council,http://www.sandwell.gov.uk/info/200202/performance_and_spending/1079/payments_over_500,01-Nov-2021,Housing & Communities,CERTAS ENERGY LIMITED,Neighbourhoods,-14758.90,Fuel ,2122P08_CR00303,80421
Sandwell Metropolitan Borough Council,http://www.sandwell.gov.uk/info/200202/performance_and_spending/1079/payments_over_500,01-Nov-2021,Housing & Communities,ADT FIRE & SECURITY PLC,Neighbourhoods,660.34,Security,2122P08_CR00304,01115015
Sandwell Metropolitan Borough Council,http://www.sandwell.gov.uk/info/200202/performance_and_spending/1079/payments_over_500,01-Nov-2021,Housing & Communities,ALLSTAR BUSINESS SOLUTIONS LIMITED,Neighbourhoods,1606.77,Fuel ,2122P08_CR00305,104057
Sandwell Metropolitan Borough Council,http://www.sandwell.gov.uk/info/200202/performance_and_spending/1079/payments_over_500,15-Nov-2021,Housing & Communities,ALLSTAR BUSINESS SOLUTIONS LIMITED,Neighbourhoods,1869.22,Fuel ,2122P08_CR00306,104057
Sandwell Metropolitan Borough Council,http://www.sandwell.gov.uk/info/200202/performance_and_spending/1079/payments_over_500,08-Nov-2021,Housing & Communities,AMETHYST HORTICULTURE LTD,Neighbourhoods,2085.00,Equipment & Furniture ,2122P08_CR00307,148498
Sandwell Metropolitan Borough Council,http://www.sandwell.gov.uk/info/200202/performance_and_spending/1079/payments_over_500,08-Nov-2021,Housing & Communities,AMETHYST HORTICULTURE LTD,Neighbourhoods,5560.00,Equipment & Furniture ,2122P08_CR00308,148498
Sandwell Metropolitan Borough Council,http://www.sandwell.gov.uk/info/200202/performance_and_spending/1079/payments_over_500,17-Nov-2021,Housing & Communities,ANT EVENT MANAGEMENT,Neighbourhoods,4115.03,Civic Events,2122P08_CR00309,155357
Sandwell Metropolitan Borough Council,http://www.sandwell.gov.uk/info/200202/performance_and_spending/1079/payments_over_500,17-Nov-2021,Housing & Communities,ANT EVENT MANAGEMENT,Neighbourhoods,3365.03,Civic Events,2122P08_CR00310,155357
Sandwell Metropolitan Borough Council,http://www.sandwell.gov.uk/info/200202/performance_and_spending/1079/payments_over_500,17-Nov-2021,Housing & Communities,AP MORGAN ESTATE AGENTS,Neighbourhoods,1009.62,Tenants Expenses,2122P08_CR00311,155751
Sandwell Metropolitan Borough Council,http://www.sandwell.gov.uk/info/200202/performance_and_spending/1079/payments_over_500,01-Nov-2021,Housing & Communities,B & S CHAINS (MIDLANDS) LIMITED,Neighbourhoods,5787.50,Operational Services ,2122P08_CR00312,01357251
Sandwell Metropolitan Borough Council,http://www.sandwell.gov.uk/info/200202/performance_and_spending/1079/payments_over_500,01-Nov-2021,Housing & Communities,BCH PROPERTY LIMITED,Neighbourhoods,3864.00,Rents,2122P08_CR00313,01011861
Sandwell Metropolitan Borough Council,http://www.sandwell.gov.uk/info/200202/performance_and_spending/1079/payments_over_500,01-Nov-2021,Housing & Communities,BCH PROPERTY LIMITED,Neighbourhoods,1166.76,Rents,2122P08_CR00314,01011861
Sandwell Metropolitan Borough Council,http://www.sandwell.gov.uk/info/200202/performance_and_spending/1079/payments_over_500,01-Nov-2021,Housing & Communities,BCH PROPERTY LIMITED,Neighbourhoods,600.12,Rents,2122P08_CR00315,01011861
Sandwell Metropolitan Borough Council,http://www.sandwell.gov.uk/info/200202/performance_and_spending/1079/payments_over_500,01-Nov-2021,Housing & Communities,BCH PROPERTY LIMITED,Neighbourhoods,962.64,Rents,2122P08_CR00316,01011861
Sandwell Metropolitan Borough Council,http://www.sandwell.gov.uk/info/200202/performance_and_spending/1079/payments_over_500,01-Nov-2021,Housing & Communities,BCH PROPERTY LIMITED,Neighbourhoods,1000.08,Rents,2122P08_CR00317,01011861
Sandwell Metropolitan Borough Council,http://www.sandwell.gov.uk/info/200202/performance_and_spending/1079/payments_over_500,01-Nov-2021,Housing & Communities,BCH PROPERTY LIMITED,Neighbourhoods,1741.92,Rents,2122P08_CR00318,01011861
Sandwell Metropolitan Borough Council,http://www.sandwell.gov.uk/info/200202/performance_and_spending/1079/payments_over_500,01-Nov-2021,Housing & Communities,BCH PROPERTY LIMITED,Neighbourhoods,2067.08,Rents,2122P08_CR00319,01011861
Sandwell Metropolitan Borough Council,http://www.sandwell.gov.uk/info/200202/performance_and_spending/1079/payments_over_500,01-Nov-2021,Housing & Communities,BCH PROPERTY LIMITED,Neighbourhoods,1166.76,Rents,2122P08_CR00320,01011861
Sandwell Metropolitan Borough Council,http://www.sandwell.gov.uk/info/200202/performance_and_spending/1079/payments_over_500,01-Nov-2021,Housing & Communities,BCH PROPERTY LIMITED,Neighbourhoods,1787.76,Rents,2122P08_CR00321,01011861
Sandwell Metropolitan Borough Council,http://www.sandwell.gov.uk/info/200202/performance_and_spending/1079/payments_over_500,01-Nov-2021,Housing & Communities,BCH PROPERTY LIMITED,Neighbourhoods,1604.40,Rents,2122P08_CR00322,01011861
Sandwell Metropolitan Borough Council,http://www.sandwell.gov.uk/info/200202/performance_and_spending/1079/payments_over_500,01-Nov-2021,Housing & Communities,BCH PROPERTY LIMITED,Neighbourhoods,1650.24,Rents,2122P08_CR00323,01011861
Sandwell Metropolitan Borough Council,http://www.sandwell.gov.uk/info/200202/performance_and_spending/1079/payments_over_500,01-Nov-2021,Housing & Communities,BCH PROPERTY LIMITED,Neighbourhoods,1329.36,Rents,2122P08_CR00324,01011861
Sandwell Metropolitan Borough Council,http://www.sandwell.gov.uk/info/200202/performance_and_spending/1079/payments_over_500,01-Nov-2021,Housing & Communities,BCH PROPERTY LIMITED,Neighbourhoods,1266.92,Rents,2122P08_CR00325,01011861
Sandwell Metropolitan Borough Council,http://www.sandwell.gov.uk/info/200202/performance_and_spending/1079/payments_over_500,01-Nov-2021,Housing & Communities,BEECHWOOD TREES & LANDSCAPE LTD,Neighbourhoods,525.00,Externally Purchased Professional Services ,2122P08_CR00326,93287
Sandwell Metropolitan Borough Council,http://www.sandwell.gov.uk/info/200202/performance_and_spending/1079/payments_over_500,01-Nov-2021,Housing & Communities,BEECHWOOD TREES & LANDSCAPE LTD,Neighbourhoods,4256.00,Externally Purchased Professional Services ,2122P08_CR00327,93287
Sandwell Metropolitan Borough Council,http://www.sandwell.gov.uk/info/200202/performance_and_spending/1079/payments_over_500,01-Nov-2021,Housing & Communities,BEECHWOOD TREES & LANDSCAPE LTD,Neighbourhoods,500.00,Externally Purchased Professional Services ,2122P08_CR00328,93287
Sandwell Metropolitan Borough Council,http://www.sandwell.gov.uk/info/200202/performance_and_spending/1079/payments_over_500,01-Nov-2021,Housing & Communities,BEECHWOOD TREES & LANDSCAPE LTD,Neighbourhoods,1012.50,Externally Purchased Professional Services ,2122P08_CR00329,93287
Sandwell Metropolitan Borough Council,http://www.sandwell.gov.uk/info/200202/performance_and_spending/1079/payments_over_500,01-Nov-2021,Housing & Communities,BEECHWOOD TREES & LANDSCAPE LTD,Neighbourhoods,1010.00,Externally Purchased Professional Services ,2122P08_CR00330,93287
Sandwell Metropolitan Borough Council,http://www.sandwell.gov.uk/info/200202/performance_and_spending/1079/payments_over_500,01-Nov-2021,Housing & Communities,BEECHWOOD TREES & LANDSCAPE LTD,Neighbourhoods,810.00,Externally Purchased Professional Services ,2122P08_CR00331,93287
Sandwell Metropolitan Borough Council,http://www.sandwell.gov.uk/info/200202/performance_and_spending/1079/payments_over_500,01-Nov-2021,Housing & Communities,BEECHWOOD TREES & LANDSCAPE LTD,Neighbourhoods,2200.00,Externally Purchased Professional Services ,2122P08_CR00332,93287
Sandwell Metropolitan Borough Council,http://www.sandwell.gov.uk/info/200202/performance_and_spending/1079/payments_over_500,01-Nov-2021,Housing & Communities,BEECHWOOD TREES & LANDSCAPE LTD,Neighbourhoods,505.00,Externally Purchased Professional Services ,2122P08_CR00333,93287
Sandwell Metropolitan Borough Council,http://www.sandwell.gov.uk/info/200202/performance_and_spending/1079/payments_over_500,12-Nov-2021,Housing & Communities,BEECHWOOD TREES & LANDSCAPE LTD,Neighbourhoods,675.00,Externally Purchased Professional Services ,2122P08_CR00334,93287
Sandwell Metropolitan Borough Council,http://www.sandwell.gov.uk/info/200202/performance_and_spending/1079/payments_over_500,12-Nov-2021,Housing & Communities,BEECHWOOD TREES & LANDSCAPE LTD,Neighbourhoods,800.00,Externally Purchased Professional Services ,2122P08_CR00335,93287
Sandwell Metropolitan Borough Council,http://www.sandwell.gov.uk/info/200202/performance_and_spending/1079/payments_over_500,16-Nov-2021,Housing & Communities,BEECHWOOD TREES & LANDSCAPE LTD,Neighbourhoods,1350.00,Externally Purchased Professional Services ,2122P08_CR00336,93287
Sandwell Metropolitan Borough Council,http://www.sandwell.gov.uk/info/200202/performance_and_spending/1079/payments_over_500,19-Nov-2021,Housing & Communities,BEECHWOOD TREES & LANDSCAPE LTD,Neighbourhoods,2835.00,Externally Purchased Professional Services ,2122P08_CR00337,93287
Sandwell Metropolitan Borough Council,http://www.sandwell.gov.uk/info/200202/performance_and_spending/1079/payments_over_500,19-Nov-2021,Housing & Communities,BEECHWOOD TREES & LANDSCAPE LTD,Neighbourhoods,540.00,Externally Purchased Professional Services ,2122P08_CR00338,93287
Sandwell Metropolitan Borough Council,http://www.sandwell.gov.uk/info/200202/performance_and_spending/1079/payments_over_500,19-Nov-2021,Housing & Communities,BEECHWOOD TREES & LANDSCAPE LTD,Neighbourhoods,5306.00,Externally Purchased Professional Services ,2122P08_CR00339,93287
Sandwell Metropolitan Borough Council,http://www.sandwell.gov.uk/info/200202/performance_and_spending/1079/payments_over_500,18-Nov-2021,Housing & Communities,BGN BOARDS COMPANY LIMITED,Neighbourhoods,1094.92,Materials & Consumables,2122P08_CR00340,01015698
Sandwell Metropolitan Borough Council,http://www.sandwell.gov.uk/info/200202/performance_and_spending/1079/payments_over_500,01-Nov-2021,Housing & Communities,BIRMINGHAM CITY COUNCIL,Neighbourhoods,937.76,Operational Services ,2122P08_CR00341,01622521
Sandwell Metropolitan Borough Council,http://www.sandwell.gov.uk/info/200202/performance_and_spending/1079/payments_over_500,22-Nov-2021,Housing & Communities,BLACK COUNTRY TOURING,Neighbourhoods,13374.00,Civic Events,2122P08_CR00342,01661722
Sandwell Metropolitan Borough Council,http://www.sandwell.gov.uk/info/200202/performance_and_spending/1079/payments_over_500,01-Nov-2021,Housing & Communities,C F BARKER AND SONS (MARQUEES) LTD,Housing & Communities,14394.16,Equipment & Furniture ,2122P08_CR00343,152338
Sandwell Metropolitan Borough Council,http://www.sandwell.gov.uk/info/200202/performance_and_spending/1079/payments_over_500,18-Nov-2021,Housing & Communities,CADEBY TREE TRUST,Neighbourhoods,4650.00,Materials & Consumables,2122P08_CR00344,119501
Sandwell Metropolitan Borough Council,http://www.sandwell.gov.uk/info/200202/performance_and_spending/1079/payments_over_500,21-Nov-2021,Housing & Communities,CADEBY TREE TRUST,Neighbourhoods,5800.00,Materials & Consumables,2122P08_CR00345,119501
Sandwell Metropolitan Borough Council,http://www.sandwell.gov.uk/info/200202/performance_and_spending/1079/payments_over_500,01-Nov-2021,Housing & Communities,CAPITA ESS LTD,Neighbourhoods,20200.00,Externally Purchased Professional Services ,2122P08_CR00346,148415
Sandwell Metropolitan Borough Council,http://www.sandwell.gov.uk/info/200202/performance_and_spending/1079/payments_over_500,01-Nov-2021,Housing & Communities,CBS MIDLANDS LTD,Neighbourhoods,823.20,Operational Services ,2122P08_CR00347,01020138
Sandwell Metropolitan Borough Council,http://www.sandwell.gov.uk/info/200202/performance_and_spending/1079/payments_over_500,01-Nov-2021,Housing & Communities,CERTAS ENERGY LIMITED,Neighbourhoods,738.29,Fuel ,2122P08_CR00348,80421
Sandwell Metropolitan Borough Council,http://www.sandwell.gov.uk/info/200202/performance_and_spending/1079/payments_over_500,01-Nov-2021,Housing & Communities,CERTAS ENERGY LIMITED,Neighbourhoods,1923.32,Fuel ,2122P08_CR00349,80421
Sandwell Metropolitan Borough Council,http://www.sandwell.gov.uk/info/200202/performance_and_spending/1079/payments_over_500,01-Nov-2021,Housing & Communities,CERTAS ENERGY LIMITED,Neighbourhoods,14879.22,Fuel ,2122P08_CR00350,80421
Sandwell Metropolitan Borough Council,http://www.sandwell.gov.uk/info/200202/performance_and_spending/1079/payments_over_500,01-Nov-2021,Housing & Communities,CERTAS ENERGY LIMITED,Neighbourhoods,14758.90,Fuel ,2122P08_CR00351,80421
Sandwell Metropolitan Borough Council,http://www.sandwell.gov.uk/info/200202/performance_and_spending/1079/payments_over_500,10-Nov-2021,Housing & Communities,CERTAS ENERGY LIMITED,Neighbourhoods,5425.58,Fuel ,2122P08_CR00352,80421
Sandwell Metropolitan Borough Council,http://www.sandwell.gov.uk/info/200202/performance_and_spending/1079/payments_over_500,02-Nov-2021,Housing & Communities,CERTAS ENERGY LIMITED,Neighbourhoods,10484.63,Fuel ,2122P08_CR00353,80421
Sandwell Metropolitan Borough Council,http://www.sandwell.gov.uk/info/200202/performance_and_spending/1079/payments_over_500,02-Nov-2021,Housing & Communities,CERTAS ENERGY LIMITED,Neighbourhoods,3172.88,Fuel ,2122P08_CR00354,80421
Sandwell Metropolitan Borough Council,http://www.sandwell.gov.uk/info/200202/performance_and_spending/1079/payments_over_500,01-Nov-2021,Housing & Communities,CERTAS ENERGY LIMITED,Neighbourhoods,11611.55,Fuel ,2122P08_CR00355,80421
Sandwell Metropolitan Borough Council,http://www.sandwell.gov.uk/info/200202/performance_and_spending/1079/payments_over_500,01-Nov-2021,Housing & Communities,CERTAS ENERGY LIMITED,Neighbourhoods,696.10,Fuel ,2122P08_CR00356,80421
Sandwell Metropolitan Borough Council,http://www.sandwell.gov.uk/info/200202/performance_and_spending/1079/payments_over_500,01-Nov-2021,Housing & Communities,CERTAS ENERGY LIMITED,Neighbourhoods,13817.70,Fuel ,2122P08_CR00357,80421
Sandwell Metropolitan Borough Council,http://www.sandwell.gov.uk/info/200202/performance_and_spending/1079/payments_over_500,16-Nov-2021,Housing & Communities,CERTAS ENERGY LIMITED,Neighbourhoods,11715.28,Fuel ,2122P08_CR00358,80421
Sandwell Metropolitan Borough Council,http://www.sandwell.gov.uk/info/200202/performance_and_spending/1079/payments_over_500,01-Nov-2021,Housing & Communities,CERTAS ENERGY LIMITED,Neighbourhoods,735.00,Oil,2122P08_CR00359,80421
Sandwell Metropolitan Borough Council,http://www.sandwell.gov.uk/info/200202/performance_and_spending/1079/payments_over_500,16-Nov-2021,Housing & Communities,CERTAS ENERGY LIMITED,Neighbourhoods,1313.42,Oil,2122P08_CR00360,80421
Sandwell Metropolitan Borough Council,http://www.sandwell.gov.uk/info/200202/performance_and_spending/1079/payments_over_500,01-Nov-2021,Housing & Communities,CITRON HYGIENE UK LTD,Neighbourhoods,1263.12,Materials & Consumables,2122P08_CR00361,140849
Sandwell Metropolitan Borough Council,http://www.sandwell.gov.uk/info/200202/performance_and_spending/1079/payments_over_500,01-Nov-2021,Housing & Communities,CONTRACT LETTINGS LTD,Neighbourhoods,559.86,Rents,2122P08_CR00362,76625
Sandwell Metropolitan Borough Council,http://www.sandwell.gov.uk/info/200202/performance_and_spending/1079/payments_over_500,01-Nov-2021,Housing & Communities,CONTRACT LETTINGS LTD,Neighbourhoods,559.86,Rents,2122P08_CR00363,76625
Sandwell Metropolitan Borough Council,http://www.sandwell.gov.uk/info/200202/performance_and_spending/1079/payments_over_500,01-Nov-2021,Housing & Communities,CONTRACT LETTINGS LTD,Neighbourhoods,763.22,Rents,2122P08_CR00364,76625
Sandwell Metropolitan Borough Council,http://www.sandwell.gov.uk/info/200202/performance_and_spending/1079/payments_over_500,01-Nov-2021,Housing & Communities,CONTRACT LETTINGS LTD,Neighbourhoods,763.22,Rents,2122P08_CR00365,76625
Sandwell Metropolitan Borough Council,http://www.sandwell.gov.uk/info/200202/performance_and_spending/1079/payments_over_500,01-Nov-2021,Housing & Communities,CONTRACT LETTINGS LTD,Neighbourhoods,701.22,Rents,2122P08_CR00366,76625
Sandwell Metropolitan Borough Council,http://www.sandwell.gov.uk/info/200202/performance_and_spending/1079/payments_over_500,01-Nov-2021,Housing & Communities,CONTRACT LETTINGS LTD,Neighbourhoods,701.22,Rents,2122P08_CR00367,76625
Sandwell Metropolitan Borough Council,http://www.sandwell.gov.uk/info/200202/performance_and_spending/1079/payments_over_500,01-Nov-2021,Housing & Communities,CONTRACT LETTINGS LTD,Neighbourhoods,701.22,Rents,2122P08_CR00368,76625
Sandwell Metropolitan Borough Council,http://www.sandwell.gov.uk/info/200202/performance_and_spending/1079/payments_over_500,01-Nov-2021,Housing & Communities,CONTRACT LETTINGS LTD,Neighbourhoods,763.22,Rents,2122P08_CR00369,76625
Sandwell Metropolitan Borough Council,http://www.sandwell.gov.uk/info/200202/performance_and_spending/1079/payments_over_500,01-Nov-2021,Housing & Communities,CONTRACT LETTINGS LTD,Neighbourhoods,701.22,Rents,2122P08_CR00370,76625
Sandwell Metropolitan Borough Council,http://www.sandwell.gov.uk/info/200202/performance_and_spending/1079/payments_over_500,01-Nov-2021,Housing & Communities,CONTRACT LETTINGS LTD,Neighbourhoods,794.22,Rents,2122P08_CR00371,76625
Sandwell Metropolitan Borough Council,http://www.sandwell.gov.uk/info/200202/performance_and_spending/1079/payments_over_500,01-Nov-2021,Housing & Communities,CONTRACT LETTINGS LTD,Neighbourhoods,701.22,Rents,2122P08_CR00372,76625
Sandwell Metropolitan Borough Council,http://www.sandwell.gov.uk/info/200202/performance_and_spending/1079/payments_over_500,01-Nov-2021,Housing & Communities,CONTRACT LETTINGS LTD,Neighbourhoods,701.22,Rents,2122P08_CR00373,76625
Sandwell Metropolitan Borough Council,http://www.sandwell.gov.uk/info/200202/performance_and_spending/1079/payments_over_500,01-Nov-2021,Housing & Communities,CONTRACT LETTINGS LTD,Neighbourhoods,771.90,Rents,2122P08_CR00374,76625
Sandwell Metropolitan Borough Council,http://www.sandwell.gov.uk/info/200202/performance_and_spending/1079/payments_over_500,04-Nov-2021,Housing & Communities,CONTRACT LETTINGS LTD,Neighbourhoods,565.00,Rents,2122P08_CR00375,76625
Sandwell Metropolitan Borough Council,http://www.sandwell.gov.uk/info/200202/performance_and_spending/1079/payments_over_500,04-Nov-2021,Housing & Communities,CONTRACT LETTINGS LTD,Neighbourhoods,559.86,Rents,2122P08_CR00376,76625
Sandwell Metropolitan Borough Council,http://www.sandwell.gov.uk/info/200202/performance_and_spending/1079/payments_over_500,04-Nov-2021,Housing & Communities,CONTRACT LETTINGS LTD,Neighbourhoods,559.86,Rents,2122P08_CR00377,76625
Sandwell Metropolitan Borough Council,http://www.sandwell.gov.uk/info/200202/performance_and_spending/1079/payments_over_500,04-Nov-2021,Housing & Communities,CONTRACT LETTINGS LTD,Neighbourhoods,763.22,Rents,2122P08_CR00378,76625
Sandwell Metropolitan Borough Council,http://www.sandwell.gov.uk/info/200202/performance_and_spending/1079/payments_over_500,04-Nov-2021,Housing & Communities,CONTRACT LETTINGS LTD,Neighbourhoods,771.90,Rents,2122P08_CR00379,76625
Sandwell Metropolitan Borough Council,http://www.sandwell.gov.uk/info/200202/performance_and_spending/1079/payments_over_500,04-Nov-2021,Housing & Communities,CONTRACT LETTINGS LTD,Neighbourhoods,701.22,Rents,2122P08_CR00380,76625
Sandwell Metropolitan Borough Council,http://www.sandwell.gov.uk/info/200202/performance_and_spending/1079/payments_over_500,04-Nov-2021,Housing & Communities,CONTRACT LETTINGS LTD,Neighbourhoods,614.88,Rents,2122P08_CR00381,76625
Sandwell Metropolitan Borough Council,http://www.sandwell.gov.uk/info/200202/performance_and_spending/1079/payments_over_500,04-Nov-2021,Housing & Communities,CONTRACT LETTINGS LTD,Neighbourhoods,701.22,Rents,2122P08_CR00382,76625
Sandwell Metropolitan Borough Council,http://www.sandwell.gov.uk/info/200202/performance_and_spending/1079/payments_over_500,04-Nov-2021,Housing & Communities,CONTRACT LETTINGS LTD,Neighbourhoods,763.22,Rents,2122P08_CR00383,76625
Sandwell Metropolitan Borough Council,http://www.sandwell.gov.uk/info/200202/performance_and_spending/1079/payments_over_500,04-Nov-2021,Housing & Communities,CONTRACT LETTINGS LTD,Neighbourhoods,701.22,Rents,2122P08_CR00384,76625
Sandwell Metropolitan Borough Council,http://www.sandwell.gov.uk/info/200202/performance_and_spending/1079/payments_over_500,04-Nov-2021,Housing & Communities,CONTRACT LETTINGS LTD,Neighbourhoods,701.22,Rents,2122P08_CR00385,76625
Sandwell Metropolitan Borough Council,http://www.sandwell.gov.uk/info/200202/performance_and_spending/1079/payments_over_500,04-Nov-2021,Housing & Communities,CONTRACT LETTINGS LTD,Neighbourhoods,701.22,Rents,2122P08_CR00386,76625
Sandwell Metropolitan Borough Council,http://www.sandwell.gov.uk/info/200202/performance_and_spending/1079/payments_over_500,04-Nov-2021,Housing & Communities,CONTRACT LETTINGS LTD,Neighbourhoods,763.22,Rents,2122P08_CR00387,76625
Sandwell Metropolitan Borough Council,http://www.sandwell.gov.uk/info/200202/performance_and_spending/1079/payments_over_500,01-Nov-2021,Housing & Communities,DATA POWER LTD,Neighbourhoods,2040.00,ICT ,2122P08_CR00388,78780
Sandwell Metropolitan Borough Council,http://www.sandwell.gov.uk/info/200202/performance_and_spending/1079/payments_over_500,01-Nov-2021,Housing & Communities,DORMY HOTEL,Neighbourhoods,5142.86,Rents,2122P08_CR00389,01737052
Sandwell Metropolitan Borough Council,http://www.sandwell.gov.uk/info/200202/performance_and_spending/1079/payments_over_500,11-Nov-2021,Housing & Communities,DURAMAT LTD T/A SOFTFLOOR UK,Neighbourhoods,1196.65,Equipment & Furniture ,2122P08_CR00390,155407
Sandwell Metropolitan Borough Council,http://www.sandwell.gov.uk/info/200202/performance_and_spending/1079/payments_over_500,05-Nov-2021,Housing & Communities,EDUCATION SOFTWARE SOLUTIONS LTD,Neighbourhoods,20200.00,Externally Purchased Professional Services ,2122P08_CR00391,34178
Sandwell Metropolitan Borough Council,http://www.sandwell.gov.uk/info/200202/performance_and_spending/1079/payments_over_500,04-Nov-2021,Housing & Communities,ENCYCLOPEDIA BRITANNICA (UK) LTD,Neighbourhoods,4000.00,Materials & Consumables,2122P08_CR00392,4533
Sandwell Metropolitan Borough Council,http://www.sandwell.gov.uk/info/200202/performance_and_spending/1079/payments_over_500,01-Nov-2021,Housing & Communities,GILANI ENTERPRISES LIMITED,Neighbourhoods,3523.81,Rents,2122P08_CR00393,2696
Sandwell Metropolitan Borough Council,http://www.sandwell.gov.uk/info/200202/performance_and_spending/1079/payments_over_500,01-Nov-2021,Housing & Communities,GILANI ENTERPRISES LIMITED,Neighbourhoods,4228.57,Rents,2122P08_CR00394,2696
Sandwell Metropolitan Borough Council,http://www.sandwell.gov.uk/info/200202/performance_and_spending/1079/payments_over_500,01-Nov-2021,Housing & Communities,GILANI ENTERPRISES LIMITED,Neighbourhoods,3200.00,Rents,2122P08_CR00395,2696
Sandwell Metropolitan Borough Council,http://www.sandwell.gov.uk/info/200202/performance_and_spending/1079/payments_over_500,01-Nov-2021,Housing & Communities,GILANI ENTERPRISES LIMITED,Neighbourhoods,571.43,Rents,2122P08_CR00396,2696
Sandwell Metropolitan Borough Council,http://www.sandwell.gov.uk/info/200202/performance_and_spending/1079/payments_over_500,01-Nov-2021,Housing & Communities,GILANI ENTERPRISES LIMITED,Neighbourhoods,3542.86,Rents,2122P08_CR00397,2696
Sandwell Metropolitan Borough Council,http://www.sandwell.gov.uk/info/200202/performance_and_spending/1079/payments_over_500,01-Nov-2021,Housing & Communities,GILANI ENTERPRISES LIMITED,Neighbourhoods,4476.19,Rents,2122P08_CR00398,2696
Sandwell Metropolitan Borough Council,http://www.sandwell.gov.uk/info/200202/performance_and_spending/1079/payments_over_500,01-Nov-2021,Housing & Communities,GILANI ENTERPRISES LIMITED,Neighbourhoods,571.43,Rents,2122P08_CR00399,2696
Sandwell Metropolitan Borough Council,http://www.sandwell.gov.uk/info/200202/performance_and_spending/1079/payments_over_500,01-Nov-2021,Housing & Communities,GILANI ENTERPRISES LIMITED,Neighbourhoods,761.90,Rents,2122P08_CR00400,2696
Sandwell Metropolitan Borough Council,http://www.sandwell.gov.uk/info/200202/performance_and_spending/1079/payments_over_500,01-Nov-2021,Housing & Communities,GILANI ENTERPRISES LIMITED,Neighbourhoods,2285.71,Rents,2122P08_CR00401,2696
Sandwell Metropolitan Borough Council,http://www.sandwell.gov.uk/info/200202/performance_and_spending/1079/payments_over_500,01-Nov-2021,Housing & Communities,GILANI ENTERPRISES LIMITED,Neighbourhoods,761.90,Rents,2122P08_CR00402,2696
Sandwell Metropolitan Borough Council,http://www.sandwell.gov.uk/info/200202/performance_and_spending/1079/payments_over_500,01-Nov-2021,Housing & Communities,GILANI ENTERPRISES LIMITED,Neighbourhoods,1333.33,Rents,2122P08_CR00403,2696
Sandwell Metropolitan Borough Council,http://www.sandwell.gov.uk/info/200202/performance_and_spending/1079/payments_over_500,01-Nov-2021,Housing & Communities,GILANI ENTERPRISES LIMITED,Neighbourhoods,1371.43,Rents,2122P08_CR00404,2696
Sandwell Metropolitan Borough Council,http://www.sandwell.gov.uk/info/200202/performance_and_spending/1079/payments_over_500,01-Nov-2021,Housing & Communities,GILANI ENTERPRISES LIMITED,Neighbourhoods,914.29,Rents,2122P08_CR00405,2696
Sandwell Metropolitan Borough Council,http://www.sandwell.gov.uk/info/200202/performance_and_spending/1079/payments_over_500,01-Nov-2021,Housing & Communities,GILANI ENTERPRISES LIMITED,Neighbourhoods,2666.67,Rents,2122P08_CR00406,2696
Sandwell Metropolitan Borough Council,http://www.sandwell.gov.uk/info/200202/performance_and_spending/1079/payments_over_500,01-Nov-2021,Housing & Communities,GILANI ENTERPRISES LIMITED,Neighbourhoods,1333.33,Rents,2122P08_CR00407,2696
Sandwell Metropolitan Borough Council,http://www.sandwell.gov.uk/info/200202/performance_and_spending/1079/payments_over_500,01-Nov-2021,Housing & Communities,GILANI ENTERPRISES LIMITED,Neighbourhoods,666.67,Rents,2122P08_CR00408,2696
Sandwell Metropolitan Borough Council,http://www.sandwell.gov.uk/info/200202/performance_and_spending/1079/payments_over_500,19-Nov-2021,Housing & Communities,GREETINGS HOUSE LTD,Neighbourhoods,549.31,Materials & Consumables,2122P08_CR00409,72939
Sandwell Metropolitan Borough Council,http://www.sandwell.gov.uk/info/200202/performance_and_spending/1079/payments_over_500,02-Nov-2021,Housing & Communities,GRESHAM OFFICE FURNITURE LTD,Housing & Communities,1821.60,CIP - Fixtures & Fittings,2122P08_CR00410,93465
Sandwell Metropolitan Borough Council,http://www.sandwell.gov.uk/info/200202/performance_and_spending/1079/payments_over_500,01-Nov-2021,Housing & Communities,HAYSTOUN CONSTRUCTION LTD,Neighbourhoods,8682.38,Operational Services ,2122P08_CR00411,11849
Sandwell Metropolitan Borough Council,http://www.sandwell.gov.uk/info/200202/performance_and_spending/1079/payments_over_500,04-Nov-2021,Housing & Communities,HAYSTOUN CONSTRUCTION LTD,Neighbourhoods,7914.00,Operational Services ,2122P08_CR00412,11849
Sandwell Metropolitan Borough Council,http://www.sandwell.gov.uk/info/200202/performance_and_spending/1079/payments_over_500,08-Nov-2021,Housing & Communities,HAYSTOUN CONSTRUCTION LTD,Neighbourhoods,735.00,Operational Services ,2122P08_CR00413,11849
Sandwell Metropolitan Borough Council,http://www.sandwell.gov.uk/info/200202/performance_and_spending/1079/payments_over_500,16-Nov-2021,Housing & Communities,HILL INTERIOR CONTRACTS LTD,Neighbourhoods,12750.50,Building Maintenance & Improvements,2122P08_CR00414,17158
Sandwell Metropolitan Borough Council,http://www.sandwell.gov.uk/info/200202/performance_and_spending/1079/payments_over_500,01-Nov-2021,Housing & Communities,HOME FARM NURSERIES (PINVIN) LIMITED,Neighbourhoods,2109.89,Operational Services ,2122P08_CR00415,77003445
Sandwell Metropolitan Borough Council,http://www.sandwell.gov.uk/info/200202/performance_and_spending/1079/payments_over_500,01-Nov-2021,Housing & Communities,HOME FARM NURSERIES (PINVIN) LIMITED,Neighbourhoods,5584.97,Operational Services ,2122P08_CR00416,77003445
Sandwell Metropolitan Borough Council,http://www.sandwell.gov.uk/info/200202/performance_and_spending/1079/payments_over_500,01-Nov-2021,Housing & Communities,HOME FARM NURSERIES (PINVIN) LIMITED,Neighbourhoods,797.80,Operational Services ,2122P08_CR00417,77003445
Sandwell Metropolitan Borough Council,http://www.sandwell.gov.uk/info/200202/performance_and_spending/1079/payments_over_500,15-Nov-2021,Housing & Communities,HOME FARM NURSERIES (PINVIN) LIMITED,Neighbourhoods,1516.26,Operational Services ,2122P08_CR00418,77003445
Sandwell Metropolitan Borough Council,http://www.sandwell.gov.uk/info/200202/performance_and_spending/1079/payments_over_500,09-Nov-2021,Housing & Communities,IAN LIVIE T/A IAN LIVIE AND HIS WORLD WIDE DISCO,Neighbourhoods,13000.00,Civic Events,2122P08_CR00419,150369
Sandwell Metropolitan Borough Council,http://www.sandwell.gov.uk/info/200202/performance_and_spending/1079/payments_over_500,19-Nov-2021,Housing & Communities,INSIGHT MEDIA INTERNET LIMITED,Neighbourhoods,1050.00,ICT ,2122P08_CR00420,132525
Sandwell Metropolitan Borough Council,http://www.sandwell.gov.uk/info/200202/performance_and_spending/1079/payments_over_500,04-Nov-2021,Housing & Communities,INTERCLASS PLC,Housing & Communities,209810.42,"CIP - New Construction,Conversion, Enhancement & Reno",2122P08_CR00421,77001959
Sandwell Metropolitan Borough Council,http://www.sandwell.gov.uk/info/200202/performance_and_spending/1079/payments_over_500,04-Nov-2021,Housing & Communities,J MCCANN & CO LIMITED,Housing & Communities,171943.29,CIP - Fixtures & Fittings,2122P08_CR00422,127457
Sandwell Metropolitan Borough Council,http://www.sandwell.gov.uk/info/200202/performance_and_spending/1079/payments_over_500,01-Nov-2021,Housing & Communities,KEYCRAFT,Neighbourhoods,1962.92,Materials & Consumables,2122P08_CR00423,01064066
Sandwell Metropolitan Borough Council,http://www.sandwell.gov.uk/info/200202/performance_and_spending/1079/payments_over_500,10-Nov-2021,Housing & Communities,LIGHTS4FUN LIMITED,Neighbourhoods,568.45,Civic Events,2122P08_CR00424,131942
Sandwell Metropolitan Borough Council,http://www.sandwell.gov.uk/info/200202/performance_and_spending/1079/payments_over_500,01-Nov-2021,Housing & Communities,LINGWOOD SECURITY MANAGEMENT LTD,Neighbourhoods,540.00,Civic Events,2122P08_CR00425,148787
Sandwell Metropolitan Borough Council,http://www.sandwell.gov.uk/info/200202/performance_and_spending/1079/payments_over_500,01-Nov-2021,Housing & Communities,MACE LTD,Neighbourhoods,9060.00,Consultancy,2122P08_CR00426,30882
Sandwell Metropolitan Borough Council,http://www.sandwell.gov.uk/info/200202/performance_and_spending/1079/payments_over_500,18-Nov-2021,Housing & Communities,MANOR ABBEY FOODS LTD,Neighbourhoods,509.10,Catering Provisions,2122P08_CR00427,63063
Sandwell Metropolitan Borough Council,http://www.sandwell.gov.uk/info/200202/performance_and_spending/1079/payments_over_500,09-Nov-2021,Housing & Communities,MDH PROPERTY GROUP LIMITED,Neighbourhoods,780.00,Rents,2122P08_CR00428,155464
Sandwell Metropolitan Borough Council,http://www.sandwell.gov.uk/info/200202/performance_and_spending/1079/payments_over_500,01-Nov-2021,Housing & Communities,MIDLAND FORESTRY LIMITED,Neighbourhoods,704.00,Externally Purchased Professional Services ,2122P08_CR00429,45812
Sandwell Metropolitan Borough Council,http://www.sandwell.gov.uk/info/200202/performance_and_spending/1079/payments_over_500,01-Nov-2021,Housing & Communities,MIDLAND FORESTRY LIMITED,Neighbourhoods,506.00,Externally Purchased Professional Services ,2122P08_CR00430,45812
Sandwell Metropolitan Borough Council,http://www.sandwell.gov.uk/info/200202/performance_and_spending/1079/payments_over_500,01-Nov-2021,Housing & Communities,MIDLAND FORESTRY LIMITED,Neighbourhoods,2880.00,Externally Purchased Professional Services ,2122P08_CR00431,45812
Sandwell Metropolitan Borough Council,http://www.sandwell.gov.uk/info/200202/performance_and_spending/1079/payments_over_500,01-Nov-2021,Housing & Communities,MIDLAND FORESTRY LIMITED,Neighbourhoods,3400.00,Externally Purchased Professional Services ,2122P08_CR00432,45812
Sandwell Metropolitan Borough Council,http://www.sandwell.gov.uk/info/200202/performance_and_spending/1079/payments_over_500,01-Nov-2021,Housing & Communities,MIDLAND FORESTRY LIMITED,Neighbourhoods,528.00,Externally Purchased Professional Services ,2122P08_CR00433,45812
Sandwell Metropolitan Borough Council,http://www.sandwell.gov.uk/info/200202/performance_and_spending/1079/payments_over_500,01-Nov-2021,Housing & Communities,MIDLAND FORESTRY LIMITED,Neighbourhoods,528.00,Externally Purchased Professional Services ,2122P08_CR00434,45812
Sandwell Metropolitan Borough Council,http://www.sandwell.gov.uk/info/200202/performance_and_spending/1079/payments_over_500,04-Nov-2021,Housing & Communities,MIDLAND FORESTRY LIMITED,Neighbourhoods,840.00,Externally Purchased Professional Services ,2122P08_CR00435,45812
Sandwell Metropolitan Borough Council,http://www.sandwell.gov.uk/info/200202/performance_and_spending/1079/payments_over_500,03-Nov-2021,Housing & Communities,MIDLAND FORESTRY LIMITED,Neighbourhoods,792.00,Externally Purchased Professional Services ,2122P08_CR00436,45812
Sandwell Metropolitan Borough Council,http://www.sandwell.gov.uk/info/200202/performance_and_spending/1079/payments_over_500,09-Nov-2021,Housing & Communities,MIDLAND FORESTRY LIMITED,Neighbourhoods,582.00,Externally Purchased Professional Services ,2122P08_CR00437,45812
Sandwell Metropolitan Borough Council,http://www.sandwell.gov.uk/info/200202/performance_and_spending/1079/payments_over_500,09-Nov-2021,Housing & Communities,MIDLAND FORESTRY LIMITED,Neighbourhoods,1860.00,Externally Purchased Professional Services ,2122P08_CR00438,45812
Sandwell Metropolitan Borough Council,http://www.sandwell.gov.uk/info/200202/performance_and_spending/1079/payments_over_500,10-Nov-2021,Housing & Communities,MIDLAND FORESTRY LIMITED,Neighbourhoods,880.00,Externally Purchased Professional Services ,2122P08_CR00439,45812
Sandwell Metropolitan Borough Council,http://www.sandwell.gov.uk/info/200202/performance_and_spending/1079/payments_over_500,12-Nov-2021,Housing & Communities,MIDLAND FORESTRY LIMITED,Neighbourhoods,622.00,Externally Purchased Professional Services ,2122P08_CR00440,45812
Sandwell Metropolitan Borough Council,http://www.sandwell.gov.uk/info/200202/performance_and_spending/1079/payments_over_500,19-Nov-2021,Housing & Communities,MIDLAND FORESTRY LIMITED,Neighbourhoods,1672.00,Externally Purchased Professional Services ,2122P08_CR00441,45812
Sandwell Metropolitan Borough Council,http://www.sandwell.gov.uk/info/200202/performance_and_spending/1079/payments_over_500,01-Nov-2021,Housing & Communities,MIDLAND FORESTRY LIMITED,Neighbourhoods,840.00,Externally Purchased Professional Services ,2122P08_CR00442,45812
Sandwell Metropolitan Borough Council,http://www.sandwell.gov.uk/info/200202/performance_and_spending/1079/payments_over_500,01-Nov-2021,Housing & Communities,NOMIX ENVIRO LTD,Neighbourhoods,2854.00,Materials & Consumables,2122P08_CR00443,37313
Sandwell Metropolitan Borough Council,http://www.sandwell.gov.uk/info/200202/performance_and_spending/1079/payments_over_500,02-Nov-2021,Housing & Communities,P CASEY LTD,Housing & Communities,269064.21,"CIP - New Construction,Conversion, Enhancement & Reno",2122P08_CR00444,149276
Sandwell Metropolitan Borough Council,http://www.sandwell.gov.uk/info/200202/performance_and_spending/1079/payments_over_500,01-Nov-2021,Housing & Communities,PENHAM EXCEL LIMITED,Neighbourhoods,1350.00,Civic Events,2122P08_CR00445,126855
Sandwell Metropolitan Borough Council,http://www.sandwell.gov.uk/info/200202/performance_and_spending/1079/payments_over_500,01-Nov-2021,Housing & Communities,PENNON WATER SERVICES T/A SOURCE FOR BUSINESS,Neighbourhoods,1059.28,Water Services,2122P08_CR00446,131726
Sandwell Metropolitan Borough Council,http://www.sandwell.gov.uk/info/200202/performance_and_spending/1079/payments_over_500,01-Nov-2021,Housing & Communities,PEOPLE POTENTIAL POSSIBILITIES,Neighbourhoods,1350.00,Rents,2122P08_CR00447,76739
Sandwell Metropolitan Borough Council,http://www.sandwell.gov.uk/info/200202/performance_and_spending/1079/payments_over_500,01-Nov-2021,Housing & Communities,PEOPLE POTENTIAL POSSIBILITIES,Neighbourhoods,1800.00,Rents,2122P08_CR00448,76739
Sandwell Metropolitan Borough Council,http://www.sandwell.gov.uk/info/200202/performance_and_spending/1079/payments_over_500,01-Nov-2021,Housing & Communities,PEOPLE POTENTIAL POSSIBILITIES,Neighbourhoods,1575.00,Rents,2122P08_CR00449,76739
Sandwell Metropolitan Borough Council,http://www.sandwell.gov.uk/info/200202/performance_and_spending/1079/payments_over_500,01-Nov-2021,Housing & Communities,PEOPLE POTENTIAL POSSIBILITIES,Neighbourhoods,1260.00,Rents,2122P08_CR00450,76739
Sandwell Metropolitan Borough Council,http://www.sandwell.gov.uk/info/200202/performance_and_spending/1079/payments_over_500,01-Nov-2021,Housing & Communities,PEOPLE POTENTIAL POSSIBILITIES,Neighbourhoods,1395.00,Rents,2122P08_CR00451,76739
Sandwell Metropolitan Borough Council,http://www.sandwell.gov.uk/info/200202/performance_and_spending/1079/payments_over_500,01-Nov-2021,Housing & Communities,PEOPLE POTENTIAL POSSIBILITIES,Neighbourhoods,1260.00,Rents,2122P08_CR00452,76739
Sandwell Metropolitan Borough Council,http://www.sandwell.gov.uk/info/200202/performance_and_spending/1079/payments_over_500,01-Nov-2021,Housing & Communities,PEOPLE POTENTIAL POSSIBILITIES,Neighbourhoods,855.00,Rents,2122P08_CR00453,76739
Sandwell Metropolitan Borough Council,http://www.sandwell.gov.uk/info/200202/performance_and_spending/1079/payments_over_500,01-Nov-2021,Housing & Communities,PEOPLE POTENTIAL POSSIBILITIES,Neighbourhoods,1080.00,Rents,2122P08_CR00454,76739
Sandwell Metropolitan Borough Council,http://www.sandwell.gov.uk/info/200202/performance_and_spending/1079/payments_over_500,01-Nov-2021,Housing & Communities,PEOPLE POTENTIAL POSSIBILITIES,Neighbourhoods,2340.00,Rents,2122P08_CR00455,76739
Sandwell Metropolitan Borough Council,http://www.sandwell.gov.uk/info/200202/performance_and_spending/1079/payments_over_500,01-Nov-2021,Housing & Communities,PEOPLE POTENTIAL POSSIBILITIES,Neighbourhoods,3015.00,Rents,2122P08_CR00456,76739
Sandwell Metropolitan Borough Council,http://www.sandwell.gov.uk/info/200202/performance_and_spending/1079/payments_over_500,01-Nov-2021,Housing & Communities,PHOENIX SOFTWARE LTD,Neighbourhoods,683.04,ICT ,2122P08_CR00457,01504689
Sandwell Metropolitan Borough Council,http://www.sandwell.gov.uk/info/200202/performance_and_spending/1079/payments_over_500,11-Nov-2021,Housing & Communities,PPL PRS LTD,Neighbourhoods,7077.29,Subscriptions,2122P08_CR00458,134302
Sandwell Metropolitan Borough Council,http://www.sandwell.gov.uk/info/200202/performance_and_spending/1079/payments_over_500,19-Nov-2021,Housing & Communities,PRESERVATION EQUIPMENT LTD,Neighbourhoods,980.20,Materials & Consumables,2122P08_CR00459,01350503
Sandwell Metropolitan Borough Council,http://www.sandwell.gov.uk/info/200202/performance_and_spending/1079/payments_over_500,01-Nov-2021,Housing & Communities,PROFILE SECURITY SERVICES LTD,Neighbourhoods,2630.08,Security,2122P08_CR00460,131253
Sandwell Metropolitan Borough Council,http://www.sandwell.gov.uk/info/200202/performance_and_spending/1079/payments_over_500,01-Nov-2021,Housing & Communities,PROFILE SECURITY SERVICES LTD,Neighbourhoods,2437.61,Security,2122P08_CR00461,131253
Sandwell Metropolitan Borough Council,http://www.sandwell.gov.uk/info/200202/performance_and_spending/1079/payments_over_500,01-Nov-2021,Housing & Communities,PROFILE SECURITY SERVICES LTD,Neighbourhoods,631.47,Security,2122P08_CR00462,131253
Sandwell Metropolitan Borough Council,http://www.sandwell.gov.uk/info/200202/performance_and_spending/1079/payments_over_500,01-Nov-2021,Housing & Communities,PROFILE SECURITY SERVICES LTD,Neighbourhoods,811.41,Security,2122P08_CR00463,131253
Sandwell Metropolitan Borough Council,http://www.sandwell.gov.uk/info/200202/performance_and_spending/1079/payments_over_500,01-Nov-2021,Housing & Communities,PROFILE SECURITY SERVICES LTD,Neighbourhoods,2756.74,Security,2122P08_CR00464,131253
Sandwell Metropolitan Borough Council,http://www.sandwell.gov.uk/info/200202/performance_and_spending/1079/payments_over_500,01-Nov-2021,Housing & Communities,PROFILE SECURITY SERVICES LTD,Neighbourhoods,692.58,Security,2122P08_CR00465,131253
Sandwell Metropolitan Borough Council,http://www.sandwell.gov.uk/info/200202/performance_and_spending/1079/payments_over_500,01-Nov-2021,Housing & Communities,PROFILE SECURITY SERVICES LTD,Neighbourhoods,583.94,Security,2122P08_CR00466,131253
Sandwell Metropolitan Borough Council,http://www.sandwell.gov.uk/info/200202/performance_and_spending/1079/payments_over_500,01-Nov-2021,Housing & Communities,PROFILE SECURITY SERVICES LTD,Neighbourhoods,11032.78,Security,2122P08_CR00467,131253
Sandwell Metropolitan Borough Council,http://www.sandwell.gov.uk/info/200202/performance_and_spending/1079/payments_over_500,01-Nov-2021,Housing & Communities,PROFILE SECURITY SERVICES LTD,Neighbourhoods,604.31,Security,2122P08_CR00468,131253
Sandwell Metropolitan Borough Council,http://www.sandwell.gov.uk/info/200202/performance_and_spending/1079/payments_over_500,08-Nov-2021,Housing & Communities,RCS PLANTS LTD,Neighbourhoods,6885.95,Equipment & Furniture ,2122P08_CR00469,130748
Sandwell Metropolitan Borough Council,http://www.sandwell.gov.uk/info/200202/performance_and_spending/1079/payments_over_500,19-Nov-2021,Housing & Communities,REDACTED PERSONAL DATA,Neighbourhoods,514.60,Rents & Accomodation Charges,2122P08_CR00470,REDACTED PERSONAL DATA
Sandwell Metropolitan Borough Council,http://www.sandwell.gov.uk/info/200202/performance_and_spending/1079/payments_over_500,17-Nov-2021,Housing & Communities,REDACTED PERSONAL DATA,Neighbourhoods,1200.00,Tenants Expenses,2122P08_CR00471,REDACTED PERSONAL DATA
Sandwell Metropolitan Borough Council,http://www.sandwell.gov.uk/info/200202/performance_and_spending/1079/payments_over_500,15-Nov-2021,Housing & Communities,REDACTED PERSONAL DATA,Neighbourhoods,875.00,Tenants Expenses,2122P08_CR00472,REDACTED PERSONAL DATA
Sandwell Metropolitan Borough Council,http://www.sandwell.gov.uk/info/200202/performance_and_spending/1079/payments_over_500,17-Nov-2021,Housing & Communities,REDACTED PERSONAL DATA,Neighbourhoods,500.00,Grant Payments,2122P08_CR00473,REDACTED PERSONAL DATA
Sandwell Metropolitan Borough Council,http://www.sandwell.gov.uk/info/200202/performance_and_spending/1079/payments_over_500,01-Nov-2021,Housing & Communities,REDACTED PERSONAL DATA,Neighbourhoods,500.00,Grant Payments,2122P08_CR00474,REDACTED PERSONAL DATA
Sandwell Metropolitan Borough Council,http://www.sandwell.gov.uk/info/200202/performance_and_spending/1079/payments_over_500,01-Nov-2021,Housing & Communities,RENAISSANCE CREATIVE DESIGN & PRINT LTD,Neighbourhoods,695.00,Advertising & Publicity,2122P08_CR00475,97376
Sandwell Metropolitan Borough Council,http://www.sandwell.gov.uk/info/200202/performance_and_spending/1079/payments_over_500,01-Nov-2021,Housing & Communities,SANDWELL & WEST BIRMINGHAM HOSPITALS NHS TRUST,Neighbourhoods,10397.06,Waste Disposal Charges,2122P08_CR00476,1385
Sandwell Metropolitan Borough Council,http://www.sandwell.gov.uk/info/200202/performance_and_spending/1079/payments_over_500,01-Nov-2021,Housing & Communities,SANDWELL LIFT PROJECT COMPANY (NO 3) LIMITED,Neighbourhoods,111833.08,SH Payments,2122P08_CR00477,113986
Sandwell Metropolitan Borough Council,http://www.sandwell.gov.uk/info/200202/performance_and_spending/1079/payments_over_500,03-Nov-2021,Housing & Communities,SAYERA ALI,Neighbourhoods,1350.00,Rents,2122P08_CR00478,155375
Sandwell Metropolitan Borough Council,http://www.sandwell.gov.uk/info/200202/performance_and_spending/1079/payments_over_500,23-Nov-2021,Housing & Communities,SEPHRA EUROPE LTD,Neighbourhoods,4899.11,Catering Equipment,2122P08_CR00479,156267
Sandwell Metropolitan Borough Council,http://www.sandwell.gov.uk/info/200202/performance_and_spending/1079/payments_over_500,01-Nov-2021,Housing & Communities,SERCO LIMITED,Neighbourhoods,725.28,Waste Disposal Charges,2122P08_CR00480,53771
Sandwell Metropolitan Borough Council,http://www.sandwell.gov.uk/info/200202/performance_and_spending/1079/payments_over_500,11-Nov-2021,Housing & Communities,SERCO LIMITED,Neighbourhoods,1550467.08,Waste Disposal Charges,2122P08_CR00481,53771
Sandwell Metropolitan Borough Council,http://www.sandwell.gov.uk/info/200202/performance_and_spending/1079/payments_over_500,11-Nov-2021,Housing & Communities,SERCO LIMITED,Neighbourhoods,12996.12,Waste Disposal Charges,2122P08_CR00482,53771
Sandwell Metropolitan Borough Council,http://www.sandwell.gov.uk/info/200202/performance_and_spending/1079/payments_over_500,01-Nov-2021,Housing & Communities,SHARP,Neighbourhoods,2201.22,Rents,2122P08_CR00483,08280972
Sandwell Metropolitan Borough Council,http://www.sandwell.gov.uk/info/200202/performance_and_spending/1079/payments_over_500,02-Nov-2021,Housing & Communities,SHARP,Neighbourhoods,2201.22,Rents,2122P08_CR00484,08280972
Sandwell Metropolitan Borough Council,http://www.sandwell.gov.uk/info/200202/performance_and_spending/1079/payments_over_500,01-Nov-2021,Housing & Communities,SHARP,Neighbourhoods,2201.22,Rents,2122P08_CR00485,08280972
Sandwell Metropolitan Borough Council,http://www.sandwell.gov.uk/info/200202/performance_and_spending/1079/payments_over_500,09-Nov-2021,Housing & Communities,SHARP,Neighbourhoods,2201.22,Rents,2122P08_CR00486,08280972
Sandwell Metropolitan Borough Council,http://www.sandwell.gov.uk/info/200202/performance_and_spending/1079/payments_over_500,17-Nov-2021,Housing & Communities,SPECTRUM PLASTICS LTD,Neighbourhoods,999.00,"Printing, Stationery & General Office Expenses",2122P08_CR00487,2017
Sandwell Metropolitan Borough Council,http://www.sandwell.gov.uk/info/200202/performance_and_spending/1079/payments_over_500,17-Nov-2021,Housing & Communities,SPECTRUM PLASTICS LTD,Neighbourhoods,782.00,"Printing, Stationery & General Office Expenses",2122P08_CR00488,2017
Sandwell Metropolitan Borough Council,http://www.sandwell.gov.uk/info/200202/performance_and_spending/1079/payments_over_500,12-Nov-2021,Housing & Communities,STAFFORDSHIRE COUNTY COUNCIL,Neighbourhoods,386789.36,Waste Disposal Charges,2122P08_CR00489,01124861
Sandwell Metropolitan Borough Council,http://www.sandwell.gov.uk/info/200202/performance_and_spending/1079/payments_over_500,01-Nov-2021,Housing & Communities,STUDIO LODGE,Neighbourhoods,1425.00,Rents,2122P08_CR00490,138742
Sandwell Metropolitan Borough Council,http://www.sandwell.gov.uk/info/200202/performance_and_spending/1079/payments_over_500,01-Nov-2021,Housing & Communities,SUEZ RECYLING AND RECOVERY HOLDINGS UK LTD,Neighbourhoods,1288.14,Waste Disposal Charges,2122P08_CR00491,129939
Sandwell Metropolitan Borough Council,http://www.sandwell.gov.uk/info/200202/performance_and_spending/1079/payments_over_500,24-Nov-2021,Housing & Communities,TELETRAC NAVMAN (UK) LTD,Neighbourhoods,658.00,External Contract Hire,2122P08_CR00492,129341
Sandwell Metropolitan Borough Council,http://www.sandwell.gov.uk/info/200202/performance_and_spending/1079/payments_over_500,24-Nov-2021,Housing & Communities,TELETRAC NAVMAN (UK) LTD,Neighbourhoods,658.00,External Contract Hire,2122P08_CR00493,129341
Sandwell Metropolitan Borough Council,http://www.sandwell.gov.uk/info/200202/performance_and_spending/1079/payments_over_500,24-Nov-2021,Housing & Communities,TELETRAC NAVMAN (UK) LTD,Neighbourhoods,658.00,External Contract Hire,2122P08_CR00494,129341
Sandwell Metropolitan Borough Council,http://www.sandwell.gov.uk/info/200202/performance_and_spending/1079/payments_over_500,24-Nov-2021,Housing & Communities,TELETRAC NAVMAN (UK) LTD,Neighbourhoods,658.00,External Contract Hire,2122P08_CR00495,129341
Sandwell Metropolitan Borough Council,http://www.sandwell.gov.uk/info/200202/performance_and_spending/1079/payments_over_500,24-Nov-2021,Housing & Communities,TELETRAC NAVMAN (UK) LTD,Neighbourhoods,658.00,External Contract Hire,2122P08_CR00496,129341
Sandwell Metropolitan Borough Council,http://www.sandwell.gov.uk/info/200202/performance_and_spending/1079/payments_over_500,24-Nov-2021,Housing & Communities,TELETRAC NAVMAN (UK) LTD,Neighbourhoods,658.00,External Contract Hire,2122P08_CR00497,129341
Sandwell Metropolitan Borough Council,http://www.sandwell.gov.uk/info/200202/performance_and_spending/1079/payments_over_500,10-Nov-2021,Housing & Communities,THE PLAY INSPECTION COMPANY LIMITED,Neighbourhoods,825.00,Externally Purchased Professional Services ,2122P08_CR00498,73544
Sandwell Metropolitan Borough Council,http://www.sandwell.gov.uk/info/200202/performance_and_spending/1079/payments_over_500,10-Nov-2021,Housing & Communities,THE PLAY INSPECTION COMPANY LIMITED,Neighbourhoods,840.00,Externally Purchased Professional Services ,2122P08_CR00499,73544
Sandwell Metropolitan Borough Council,http://www.sandwell.gov.uk/info/200202/performance_and_spending/1079/payments_over_500,22-Nov-2021,Housing & Communities,TIPTON COMMUNITY ASSOCIATION LTD,Neighbourhoods,3540.00,Grant Payments,2122P08_CR00500,4391
Sandwell Metropolitan Borough Council,http://www.sandwell.gov.uk/info/200202/performance_and_spending/1079/payments_over_500,22-Nov-2021,Housing & Communities,TOMKINSON STAINED GLASS LTD,Neighbourhoods,1400.00,Equipment & Furniture ,2122P08_CR00501,155141
Sandwell Metropolitan Borough Council,http://www.sandwell.gov.uk/info/200202/performance_and_spending/1079/payments_over_500,16-Nov-2021,Housing & Communities,TOTALENERGIES GAS & POWER LTD,Housing & Communities,3487.19,"CIP - New Construction,Conversion, Enhancement & Reno",2122P08_CR00502,107605
Sandwell Metropolitan Borough Council,http://www.sandwell.gov.uk/info/200202/performance_and_spending/1079/payments_over_500,13-Nov-2021,Housing & Communities,TOTALENERGIES GAS & POWER LTD,Neighbourhoods,1197.95,Electricity,2122P08_CR00503,107605
Sandwell Metropolitan Borough Council,http://www.sandwell.gov.uk/info/200202/performance_and_spending/1079/payments_over_500,15-Nov-2021,Housing & Communities,TREDOMEN FARM LTD,Neighbourhoods,761.75,Externally Purchased Professional Services ,2122P08_CR00504,154259
Sandwell Metropolitan Borough Council,http://www.sandwell.gov.uk/info/200202/performance_and_spending/1079/payments_over_500,04-Nov-2021,Housing & Communities,TUDOR ENVIRONMENTAL,Neighbourhoods,650.70,Equipment & Furniture ,2122P08_CR00505,01528713
Sandwell Metropolitan Borough Council,http://www.sandwell.gov.uk/info/200202/performance_and_spending/1079/payments_over_500,01-Nov-2021,Housing & Communities,VALUE HOTELS LIMITED,Neighbourhoods,1125.00,Rents,2122P08_CR00506,146264
Sandwell Metropolitan Borough Council,http://www.sandwell.gov.uk/info/200202/performance_and_spending/1079/payments_over_500,01-Nov-2021,Housing & Communities,VALUE HOTELS LIMITED,Neighbourhoods,1320.00,Rents,2122P08_CR00507,146264
Sandwell Metropolitan Borough Council,http://www.sandwell.gov.uk/info/200202/performance_and_spending/1079/payments_over_500,01-Nov-2021,Housing & Communities,VENDAID LTD,Neighbourhoods,795.87,Catering Provisions,2122P08_CR00508,01045695
Sandwell Metropolitan Borough Council,http://www.sandwell.gov.uk/info/200202/performance_and_spending/1079/payments_over_500,19-Nov-2021,Housing & Communities,VENDAID LTD,Neighbourhoods,2175.80,Catering Provisions,2122P08_CR00509,01045695
Sandwell Metropolitan Borough Council,http://www.sandwell.gov.uk/info/200202/performance_and_spending/1079/payments_over_500,04-Nov-2021,Housing & Communities,VENDAID LTD,Neighbourhoods,1825.78,Materials & Consumables,2122P08_CR00510,01045695
Sandwell Metropolitan Borough Council,http://www.sandwell.gov.uk/info/200202/performance_and_spending/1079/payments_over_500,01-Nov-2021,Housing & Communities,WATER PLUS SELECT LIMITED,Neighbourhoods,680.14,Water Services,2122P08_CR00511,129644
Sandwell Metropolitan Borough Council,http://www.sandwell.gov.uk/info/200202/performance_and_spending/1079/payments_over_500,24-Nov-2021,Housing & Communities,WATER PLUS SELECT LIMITED,Neighbourhoods,771.19,Water Services,2122P08_CR00512,129644
Sandwell Metropolitan Borough Council,http://www.sandwell.gov.uk/info/200202/performance_and_spending/1079/payments_over_500,04-Nov-2021,Housing & Communities,WATES CONSTRUCTION LTD                                 01,Housing & Communities,1116916.86,"CIP - New Construction,Conversion, Enhancement & Reno",2122P08_CR00513,77000882
Sandwell Metropolitan Borough Council,http://www.sandwell.gov.uk/info/200202/performance_and_spending/1079/payments_over_500,13-Nov-2021,Housing & Communities,WATES CONSTRUCTION LTD                                 01,Housing & Communities,986967.11,"CIP - New Construction,Conversion, Enhancement & Reno",2122P08_CR00514,77000882
Sandwell Metropolitan Borough Council,http://www.sandwell.gov.uk/info/200202/performance_and_spending/1079/payments_over_500,04-Nov-2021,Housing & Communities,WELL INFORMED LIMITED,Neighbourhoods,986.00,Materials & Consumables,2122P08_CR00515,103139
Sandwell Metropolitan Borough Council,http://www.sandwell.gov.uk/info/200202/performance_and_spending/1079/payments_over_500,02-Nov-2021,Housing & Communities,WEST BROMWICH TOWN BID COMMUNITY INTEREST COMPANY,Neighbourhoods,17900.00,Grant Payments,2122P08_CR00516,122470
Sandwell Metropolitan Borough Council,http://www.sandwell.gov.uk/info/200202/performance_and_spending/1079/payments_over_500,01-Nov-2021,Housing & Communities,WEST MIDLANDS HOUSING SOLUTIONS LTD,Neighbourhoods,1470.00,Equipment & Furniture ,2122P08_CR00517,150318
Sandwell Metropolitan Borough Council,http://www.sandwell.gov.uk/info/200202/performance_and_spending/1079/payments_over_500,01-Nov-2021,Housing & Communities,WEST MIDLANDS HOUSING SOLUTIONS LTD,Neighbourhoods,1410.00,Equipment & Furniture ,2122P08_CR00518,150318
Sandwell Metropolitan Borough Council,http://www.sandwell.gov.uk/info/200202/performance_and_spending/1079/payments_over_500,01-Nov-2021,Housing & Communities,WEST MIDLANDS HOUSING SOLUTIONS LTD,Neighbourhoods,2365.00,Equipment & Furniture ,2122P08_CR00519,150318
Sandwell Metropolitan Borough Council,http://www.sandwell.gov.uk/info/200202/performance_and_spending/1079/payments_over_500,01-Nov-2021,Housing & Communities,WEST MIDLANDS HOUSING SOLUTIONS LTD,Neighbourhoods,500.00,Equipment & Furniture ,2122P08_CR00520,150318
Sandwell Metropolitan Borough Council,http://www.sandwell.gov.uk/info/200202/performance_and_spending/1079/payments_over_500,01-Nov-2021,Housing & Communities,WEST MIDLANDS HOUSING SOLUTIONS LTD,Neighbourhoods,1440.00,Equipment & Furniture ,2122P08_CR00521,150318
Sandwell Metropolitan Borough Council,http://www.sandwell.gov.uk/info/200202/performance_and_spending/1079/payments_over_500,01-Nov-2021,Housing & Communities,WEST MIDLANDS MARQUEES,Neighbourhoods,1200.00,Equipment & Furniture ,2122P08_CR00522,134805
Sandwell Metropolitan Borough Council,http://www.sandwell.gov.uk/info/200202/performance_and_spending/1079/payments_over_500,01-Nov-2021,Housing & Communities,WYNNSTAY (AGRICULTURAL SUPPLIES) LIMITED,Neighbourhoods,892.36,Externally Purchased Professional Services ,2122P08_CR00523,121165
Sandwell Metropolitan Borough Council,http://www.sandwell.gov.uk/info/200202/performance_and_spending/1079/payments_over_500,01-Nov-2021,Housing & Communities,WYNNSTAY (AGRICULTURAL SUPPLIES) LIMITED,Neighbourhoods,989.24,Materials & Consumables,2122P08_CR00524,121165
Sandwell Metropolitan Borough Council,http://www.sandwell.gov.uk/info/200202/performance_and_spending/1079/payments_over_500,01-Nov-2021,Housing & Communities,WYNNSTAY (AGRICULTURAL SUPPLIES) LIMITED,Neighbourhoods,1358.08,Operational Services ,2122P08_CR00525,121165
Sandwell Metropolitan Borough Council,http://www.sandwell.gov.uk/info/200202/performance_and_spending/1079/payments_over_500,26-Nov-2021,Housing & Communities,A E HUDSON,Neighbourhoods,500.00,Rents,2122P08_CR00526,107342
Sandwell Metropolitan Borough Council,http://www.sandwell.gov.uk/info/200202/performance_and_spending/1079/payments_over_500,26-Nov-2021,Housing & Communities,A PRASHER,Neighbourhoods,500.00,Rents,2122P08_CR00527,112229
Sandwell Metropolitan Borough Council,http://www.sandwell.gov.uk/info/200202/performance_and_spending/1079/payments_over_500,26-Nov-2021,Housing & Communities,BALIJIT KAUR,Neighbourhoods,500.00,Rents,2122P08_CR00528,101860
Sandwell Metropolitan Borough Council,http://www.sandwell.gov.uk/info/200202/performance_and_spending/1079/payments_over_500,26-Nov-2021,Housing & Communities,BALJIT PUREWAL,Neighbourhoods,550.00,Rents,2122P08_CR00529,113595
Sandwell Metropolitan Borough Council,http://www.sandwell.gov.uk/info/200202/performance_and_spending/1079/payments_over_500,26-Nov-2021,Housing & Communities,BALWANT SINGH,Neighbourhoods,500.00,Rents,2122P08_CR00530,84433
Sandwell Metropolitan Borough Council,http://www.sandwell.gov.uk/info/200202/performance_and_spending/1079/payments_over_500,26-Nov-2021,Housing & Communities,CHRISTINE ANN CADDEN,Neighbourhoods,500.00,Rents,2122P08_CR00531,112728
Sandwell Metropolitan Borough Council,http://www.sandwell.gov.uk/info/200202/performance_and_spending/1079/payments_over_500,26-Nov-2021,Housing & Communities,ELEANOR MCGEE,Neighbourhoods,550.00,Rents,2122P08_CR00532,109162
Sandwell Metropolitan Borough Council,http://www.sandwell.gov.uk/info/200202/performance_and_spending/1079/payments_over_500,26-Nov-2021,Housing & Communities,J S GARCHA,Neighbourhoods,500.00,Rents,2122P08_CR00533,106491
Sandwell Metropolitan Borough Council,http://www.sandwell.gov.uk/info/200202/performance_and_spending/1079/payments_over_500,26-Nov-2021,Housing & Communities,K PAREKH,Neighbourhoods,550.00,Rents,2122P08_CR00534,43404
Sandwell Metropolitan Borough Council,http://www.sandwell.gov.uk/info/200202/performance_and_spending/1079/payments_over_500,26-Nov-2021,Housing & Communities,LORNA DOUGLAS,Neighbourhoods,550.00,Rents,2122P08_CR00535,124809
Sandwell Metropolitan Borough Council,http://www.sandwell.gov.uk/info/200202/performance_and_spending/1079/payments_over_500,26-Nov-2021,Housing & Communities,MOHANAD ABBAS,Neighbourhoods,550.00,Rents,2122P08_CR00536,108876
Sandwell Metropolitan Borough Council,http://www.sandwell.gov.uk/info/200202/performance_and_spending/1079/payments_over_500,26-Nov-2021,Housing & Communities,NARINDER SINGH,Neighbourhoods,500.00,Rents,2122P08_CR00537,114091
Sandwell Metropolitan Borough Council,http://www.sandwell.gov.uk/info/200202/performance_and_spending/1079/payments_over_500,26-Nov-2021,Housing & Communities,P WESTWOOD,Neighbourhoods,500.00,Rents,2122P08_CR00538,104861
Sandwell Metropolitan Borough Council,http://www.sandwell.gov.uk/info/200202/performance_and_spending/1079/payments_over_500,26-Nov-2021,Housing & Communities,RINABAHEN PATEL,Neighbourhoods,500.00,Rents,2122P08_CR00539,122295
Sandwell Metropolitan Borough Council,http://www.sandwell.gov.uk/info/200202/performance_and_spending/1079/payments_over_500,26-Nov-2021,Housing & Communities,SAKANDAR SINGH,Neighbourhoods,1000.00,Rents,2122P08_CR00540,117913
Sandwell Metropolitan Borough Council,http://www.sandwell.gov.uk/info/200202/performance_and_spending/1079/payments_over_500,26-Nov-2021,Housing & Communities,SATHEES KUMAR,Neighbourhoods,500.00,Rents,2122P08_CR00541,116332
Sandwell Metropolitan Borough Council,http://www.sandwell.gov.uk/info/200202/performance_and_spending/1079/payments_over_500,01-Nov-2021,Housing & Communities,BRUSHSTROKES,Neighbourhoods,31359.50,Grant Payments,2122P08_CR00542,21029374
Sandwell Metropolitan Borough Council,http://www.sandwell.gov.uk/info/200202/performance_and_spending/1079/payments_over_500,01-Nov-2021,Housing & Communities,SANDWELL CITIZENS ADVICE BUREAUX,Neighbourhoods,349294.00,Grant Payments,2122P08_CR00543,01760899
Sandwell Metropolitan Borough Council,http://www.sandwell.gov.uk/info/200202/performance_and_spending/1079/payments_over_500,01-Nov-2021,Housing & Communities,SMETHWICK PAKISTANI MUSLIM ASSOCIATION LTD,Neighbourhoods,15729.00,Grant Payments,2122P08_CR00544,01715191
Sandwell Metropolitan Borough Council,http://www.sandwell.gov.uk/info/200202/performance_and_spending/1079/payments_over_500,01-Nov-2021,Housing Revenue Account Capital,TERRY GROUP LIMITED,Housing Revenue Account Capital,-12255.00,Deferred Charges/Grant Payments,2122P08_CR00545,77002029
Sandwell Metropolitan Borough Council,http://www.sandwell.gov.uk/info/200202/performance_and_spending/1079/payments_over_500,01-Nov-2021,Housing Revenue Account Capital,ACCORD HOUSING ASSOCIATION LTD                                                    02,Housing Revenue Account Capital,19305.00,SH Payments,2122P08_CR00546,65002859
Sandwell Metropolitan Borough Council,http://www.sandwell.gov.uk/info/200202/performance_and_spending/1079/payments_over_500,09-Nov-2021,Housing Revenue Account Capital,AXIS EUROPE PLC                                                           02,Housing Revenue Account Capital,4465.72,Deferred Charges/Grant Payments,2122P08_CR00547,64946
Sandwell Metropolitan Borough Council,http://www.sandwell.gov.uk/info/200202/performance_and_spending/1079/payments_over_500,09-Nov-2021,Housing Revenue Account Capital,AXIS EUROPE PLC                                                           02,Housing Revenue Account Capital,5326.80,Deferred Charges/Grant Payments,2122P08_CR00548,64946
Sandwell Metropolitan Borough Council,http://www.sandwell.gov.uk/info/200202/performance_and_spending/1079/payments_over_500,09-Nov-2021,Housing Revenue Account Capital,AXIS EUROPE PLC                                                           02,Housing Revenue Account Capital,4379.49,Deferred Charges/Grant Payments,2122P08_CR00549,64946
Sandwell Metropolitan Borough Council,http://www.sandwell.gov.uk/info/200202/performance_and_spending/1079/payments_over_500,01-Nov-2021,Housing Revenue Account Capital,AXIS EUROPE PLC                                                           02,Housing Revenue Account Capital,4636.58,Deferred Charges/Grant Payments,2122P08_CR00550,64946
Sandwell Metropolitan Borough Council,http://www.sandwell.gov.uk/info/200202/performance_and_spending/1079/payments_over_500,01-Nov-2021,Housing Revenue Account Capital,AXIS EUROPE PLC                                                           02,Housing Revenue Account Capital,40000.00,Deferred Charges/Grant Payments,2122P08_CR00551,64946
Sandwell Metropolitan Borough Council,http://www.sandwell.gov.uk/info/200202/performance_and_spending/1079/payments_over_500,01-Nov-2021,Housing Revenue Account Capital,AXIS EUROPE PLC                                                           02,Housing Revenue Account Capital,987.54,Deferred Charges/Grant Payments,2122P08_CR00552,64946
Sandwell Metropolitan Borough Council,http://www.sandwell.gov.uk/info/200202/performance_and_spending/1079/payments_over_500,01-Nov-2021,Housing Revenue Account Capital,AXIS EUROPE PLC                                                           02,Housing Revenue Account Capital,4642.04,Deferred Charges/Grant Payments,2122P08_CR00553,64946
Sandwell Metropolitan Borough Council,http://www.sandwell.gov.uk/info/200202/performance_and_spending/1079/payments_over_500,17-Nov-2021,Housing Revenue Account Capital,AXIS EUROPE PLC                                                           02,Housing Revenue Account Capital,2475.87,Deferred Charges/Grant Payments,2122P08_CR00554,64946
Sandwell Metropolitan Borough Council,http://www.sandwell.gov.uk/info/200202/performance_and_spending/1079/payments_over_500,17-Nov-2021,Housing Revenue Account Capital,AXIS EUROPE PLC                                                           02,Housing Revenue Account Capital,5392.28,Deferred Charges/Grant Payments,2122P08_CR00555,64946
Sandwell Metropolitan Borough Council,http://www.sandwell.gov.uk/info/200202/performance_and_spending/1079/payments_over_500,05-Nov-2021,Housing Revenue Account Capital,AXIS EUROPE PLC                                                           02,Housing Revenue Account Capital,6195.13,Deferred Charges/Grant Payments,2122P08_CR00556,64946
Sandwell Metropolitan Borough Council,http://www.sandwell.gov.uk/info/200202/performance_and_spending/1079/payments_over_500,06-Nov-2021,Housing Revenue Account Capital,AXIS EUROPE PLC                                                           02,Housing Revenue Account Capital,5067.60,Deferred Charges/Grant Payments,2122P08_CR00557,64946
Sandwell Metropolitan Borough Council,http://www.sandwell.gov.uk/info/200202/performance_and_spending/1079/payments_over_500,06-Nov-2021,Housing Revenue Account Capital,AXIS EUROPE PLC                                                           02,Housing Revenue Account Capital,5926.01,Deferred Charges/Grant Payments,2122P08_CR00558,64946
Sandwell Metropolitan Borough Council,http://www.sandwell.gov.uk/info/200202/performance_and_spending/1079/payments_over_500,06-Nov-2021,Housing Revenue Account Capital,AXIS EUROPE PLC                                                           02,Housing Revenue Account Capital,4746.48,Deferred Charges/Grant Payments,2122P08_CR00559,64946
Sandwell Metropolitan Borough Council,http://www.sandwell.gov.uk/info/200202/performance_and_spending/1079/payments_over_500,06-Nov-2021,Housing Revenue Account Capital,AXIS EUROPE PLC                                                           02,Housing Revenue Account Capital,6811.96,Deferred Charges/Grant Payments,2122P08_CR00560,64946
Sandwell Metropolitan Borough Council,http://www.sandwell.gov.uk/info/200202/performance_and_spending/1079/payments_over_500,06-Nov-2021,Housing Revenue Account Capital,AXIS EUROPE PLC                                                           02,Housing Revenue Account Capital,4999.74,Deferred Charges/Grant Payments,2122P08_CR00561,64946
Sandwell Metropolitan Borough Council,http://www.sandwell.gov.uk/info/200202/performance_and_spending/1079/payments_over_500,06-Nov-2021,Housing Revenue Account Capital,AXIS EUROPE PLC                                                           02,Housing Revenue Account Capital,5002.85,Deferred Charges/Grant Payments,2122P08_CR00562,64946
Sandwell Metropolitan Borough Council,http://www.sandwell.gov.uk/info/200202/performance_and_spending/1079/payments_over_500,30-Nov-2021,Housing Revenue Account Capital,AXIS EUROPE PLC                                                           02,Housing Revenue Account Capital,4766.89,Deferred Charges/Grant Payments,2122P08_CR00563,64946
Sandwell Metropolitan Borough Council,http://www.sandwell.gov.uk/info/200202/performance_and_spending/1079/payments_over_500,01-Nov-2021,Housing Revenue Account Capital,B & Q PLC,Housing Revenue Account Capital,690.84,"CIP - New Construction,Conversion, Enhancement & Reno",2122P08_CR00564,28651
Sandwell Metropolitan Borough Council,http://www.sandwell.gov.uk/info/200202/performance_and_spending/1079/payments_over_500,01-Nov-2021,Housing Revenue Account Capital,DOLPHIN LIFTS MIDLANDS LTD,Housing Revenue Account Capital,1007.00,Deferred Charges/Grant Payments,2122P08_CR00565,123852
Sandwell Metropolitan Borough Council,http://www.sandwell.gov.uk/info/200202/performance_and_spending/1079/payments_over_500,09-Nov-2021,Housing Revenue Account Capital,DOLPHIN LIFTS MIDLANDS LTD,Housing Revenue Account Capital,1450.00,Deferred Charges/Grant Payments,2122P08_CR00566,123852
Sandwell Metropolitan Borough Council,http://www.sandwell.gov.uk/info/200202/performance_and_spending/1079/payments_over_500,01-Nov-2021,Housing Revenue Account Capital,DOLPHIN LIFTS MIDLANDS LTD,Housing Revenue Account Capital,6425.00,Deferred Charges/Grant Payments,2122P08_CR00567,123852
Sandwell Metropolitan Borough Council,http://www.sandwell.gov.uk/info/200202/performance_and_spending/1079/payments_over_500,10-Nov-2021,Housing Revenue Account Capital,FIXED FIREFIGHTING SYSTEMS BUREAU LTD,Housing Revenue Account Capital,850.82,Contract Payments,2122P08_CR00568,155527
Sandwell Metropolitan Borough Council,http://www.sandwell.gov.uk/info/200202/performance_and_spending/1079/payments_over_500,23-Nov-2021,Housing Revenue Account Capital,HIGGS & SONS SOLICITORS,Housing Revenue Account Capital,134968.00,CIP - Acquisition of Land & Existing Buildings,2122P08_CR00569,120965
Sandwell Metropolitan Borough Council,http://www.sandwell.gov.uk/info/200202/performance_and_spending/1079/payments_over_500,03-Nov-2021,Housing Revenue Account Capital,HIGGS & SONS SOLICITORS,Housing Revenue Account Capital,155688.54,CIP - Acquisition of Land & Existing Buildings,2122P08_CR00570,120965
Sandwell Metropolitan Borough Council,http://www.sandwell.gov.uk/info/200202/performance_and_spending/1079/payments_over_500,09-Nov-2021,Housing Revenue Account Capital,HIGGS & SONS SOLICITORS,Housing Revenue Account Capital,184408.00,CIP - Acquisition of Land & Existing Buildings,2122P08_CR00571,120965
Sandwell Metropolitan Borough Council,http://www.sandwell.gov.uk/info/200202/performance_and_spending/1079/payments_over_500,10-Nov-2021,Housing Revenue Account Capital,HIGGS & SONS SOLICITORS,Housing Revenue Account Capital,203218.00,CIP - Acquisition of Land & Existing Buildings,2122P08_CR00572,120965
Sandwell Metropolitan Borough Council,http://www.sandwell.gov.uk/info/200202/performance_and_spending/1079/payments_over_500,10-Nov-2021,Housing Revenue Account Capital,HIGGS & SONS SOLICITORS,Housing Revenue Account Capital,134968.00,CIP - Acquisition of Land & Existing Buildings,2122P08_CR00573,120965
Sandwell Metropolitan Borough Council,http://www.sandwell.gov.uk/info/200202/performance_and_spending/1079/payments_over_500,29-Nov-2021,Housing Revenue Account Capital,HILL INTERIOR CONTRACTS LTD,Housing Revenue Account Capital,16020.04,"CIP - New Construction,Conversion, Enhancement & Reno",2122P08_CR00574,17158
Sandwell Metropolitan Borough Council,http://www.sandwell.gov.uk/info/200202/performance_and_spending/1079/payments_over_500,02-Nov-2021,Housing Revenue Account Capital,J.HARPER & SONS (LEOMINSTER) LIMITED,Housing Revenue Account Capital,119552.19,"CIP - New Construction,Conversion, Enhancement & Reno",2122P08_CR00575,111814
Sandwell Metropolitan Borough Council,http://www.sandwell.gov.uk/info/200202/performance_and_spending/1079/payments_over_500,13-Nov-2021,Housing Revenue Account Capital,J.HARPER & SONS (LEOMINSTER) LIMITED,Housing Revenue Account Capital,226845.70,"CIP - New Construction,Conversion, Enhancement & Reno",2122P08_CR00576,111814
Sandwell Metropolitan Borough Council,http://www.sandwell.gov.uk/info/200202/performance_and_spending/1079/payments_over_500,01-Nov-2021,Housing Revenue Account Capital,LIFT & ENGINEERING SERVICES LTD,Housing Revenue Account Capital,595.05,"CIP - New Construction,Conversion, Enhancement & Reno",2122P08_CR00577,77003962
Sandwell Metropolitan Borough Council,http://www.sandwell.gov.uk/info/200202/performance_and_spending/1079/payments_over_500,01-Nov-2021,Housing Revenue Account Capital,LIFT & ENGINEERING SERVICES LTD,Housing Revenue Account Capital,542.36,"CIP - New Construction,Conversion, Enhancement & Reno",2122P08_CR00578,77003962
Sandwell Metropolitan Borough Council,http://www.sandwell.gov.uk/info/200202/performance_and_spending/1079/payments_over_500,01-Nov-2021,Housing Revenue Account Capital,LIFT & ENGINEERING SERVICES LTD,Housing Revenue Account Capital,1173.72,"CIP - New Construction,Conversion, Enhancement & Reno",2122P08_CR00579,77003962
Sandwell Metropolitan Borough Council,http://www.sandwell.gov.uk/info/200202/performance_and_spending/1079/payments_over_500,01-Nov-2021,Housing Revenue Account Capital,LIFT & ENGINEERING SERVICES LTD,Housing Revenue Account Capital,543.36,"CIP - New Construction,Conversion, Enhancement & Reno",2122P08_CR00580,77003962
Sandwell Metropolitan Borough Council,http://www.sandwell.gov.uk/info/200202/performance_and_spending/1079/payments_over_500,04-Nov-2021,Housing Revenue Account Capital,LOVELL PARTNERSHIPS  LTD,Housing Revenue Account Capital,108282.25,"CIP - New Construction,Conversion, Enhancement & Reno",2122P08_CR00581,77007398
Sandwell Metropolitan Borough Council,http://www.sandwell.gov.uk/info/200202/performance_and_spending/1079/payments_over_500,01-Nov-2021,Housing Revenue Account Capital,LOVELL PARTNERSHIPS  LTD,Housing Revenue Account Capital,39580.61,"CIP - New Construction,Conversion, Enhancement & Reno",2122P08_CR00582,77007398
Sandwell Metropolitan Borough Council,http://www.sandwell.gov.uk/info/200202/performance_and_spending/1079/payments_over_500,01-Nov-2021,Housing Revenue Account Capital,LOVELL PARTNERSHIPS  LTD,Housing Revenue Account Capital,765552.97,"CIP - New Construction,Conversion, Enhancement & Reno",2122P08_CR00583,77007398
Sandwell Metropolitan Borough Council,http://www.sandwell.gov.uk/info/200202/performance_and_spending/1079/payments_over_500,11-Nov-2021,Housing Revenue Account Capital,NICHOLLS COLTON & PARTNERS LTD,Housing Revenue Account Capital,6594.00,"CIP - New Construction,Conversion, Enhancement & Reno",2122P08_CR00584,3215
Sandwell Metropolitan Borough Council,http://www.sandwell.gov.uk/info/200202/performance_and_spending/1079/payments_over_500,20-Nov-2021,Housing Revenue Account Capital,POWRED HEATING COMPONENTS LIMITED,Housing Revenue Account Capital,2199.00,Materials & Consumables,2122P08_CR00585,133978
Sandwell Metropolitan Borough Council,http://www.sandwell.gov.uk/info/200202/performance_and_spending/1079/payments_over_500,06-Nov-2021,Housing Revenue Account Capital,POWRED HEATING COMPONENTS LIMITED,Housing Revenue Account Capital,4131.85,Materials & Consumables,2122P08_CR00586,133978
Sandwell Metropolitan Borough Council,http://www.sandwell.gov.uk/info/200202/performance_and_spending/1079/payments_over_500,01-Nov-2021,Housing Revenue Account Capital,POWRED HEATING COMPONENTS LIMITED,Housing Revenue Account Capital,1341.83,Materials & Consumables,2122P08_CR00587,133978
Sandwell Metropolitan Borough Council,http://www.sandwell.gov.uk/info/200202/performance_and_spending/1079/payments_over_500,01-Nov-2021,Housing Revenue Account Capital,POWRED HEATING COMPONENTS LIMITED,Housing Revenue Account Capital,3313.83,Materials & Consumables,2122P08_CR00588,133978
Sandwell Metropolitan Borough Council,http://www.sandwell.gov.uk/info/200202/performance_and_spending/1079/payments_over_500,01-Nov-2021,Housing Revenue Account Capital,POWRED HEATING COMPONENTS LIMITED,Housing Revenue Account Capital,3538.87,Materials & Consumables,2122P08_CR00589,133978
Sandwell Metropolitan Borough Council,http://www.sandwell.gov.uk/info/200202/performance_and_spending/1079/payments_over_500,01-Nov-2021,Housing Revenue Account Capital,PR PROPERTY MAINTENANCE,Housing Revenue Account Capital,1825.00,Deferred Charges/Grant Payments,2122P08_CR00590,33836
Sandwell Metropolitan Borough Council,http://www.sandwell.gov.uk/info/200202/performance_and_spending/1079/payments_over_500,01-Nov-2021,Housing Revenue Account Capital,PR PROPERTY MAINTENANCE,Housing Revenue Account Capital,14145.79,Deferred Charges/Grant Payments,2122P08_CR00591,33836
Sandwell Metropolitan Borough Council,http://www.sandwell.gov.uk/info/200202/performance_and_spending/1079/payments_over_500,17-Nov-2021,Housing Revenue Account Capital,PR PROPERTY MAINTENANCE,Housing Revenue Account Capital,9011.01,Deferred Charges/Grant Payments,2122P08_CR00592,33836
Sandwell Metropolitan Borough Council,http://www.sandwell.gov.uk/info/200202/performance_and_spending/1079/payments_over_500,30-Nov-2021,Housing Revenue Account Capital,PR PROPERTY MAINTENANCE,Housing Revenue Account Capital,8414.72,Deferred Charges/Grant Payments,2122P08_CR00593,33836
Sandwell Metropolitan Borough Council,http://www.sandwell.gov.uk/info/200202/performance_and_spending/1079/payments_over_500,15-Nov-2021,Housing Revenue Account Capital,SEDDON CONSTRUCTION LIMITED,Housing Revenue Account Capital,507659.47,"CIP - New Construction,Conversion, Enhancement & Reno",2122P08_CR00594,132999
Sandwell Metropolitan Borough Council,http://www.sandwell.gov.uk/info/200202/performance_and_spending/1079/payments_over_500,13-Nov-2021,Housing Revenue Account Capital,SEDDON CONSTRUCTION LIMITED,Housing Revenue Account Capital,240981.15,"CIP - New Construction,Conversion, Enhancement & Reno",2122P08_CR00595,132999
Sandwell Metropolitan Borough Council,http://www.sandwell.gov.uk/info/200202/performance_and_spending/1079/payments_over_500,02-Nov-2021,Housing Revenue Account Capital,SPELLER METCALFE MALVERN LIMITED,Housing Revenue Account Capital,154733.64,"CIP - New Construction,Conversion, Enhancement & Reno",2122P08_CR00596,92473
Sandwell Metropolitan Borough Council,http://www.sandwell.gov.uk/info/200202/performance_and_spending/1079/payments_over_500,15-Nov-2021,Housing Revenue Account Capital,SURE MAINTENANCE LIMITED,Housing Revenue Account Capital,4056.15,"CIP - New Construction,Conversion, Enhancement & Reno",2122P08_CR00597,93926
Sandwell Metropolitan Borough Council,http://www.sandwell.gov.uk/info/200202/performance_and_spending/1079/payments_over_500,12-Nov-2021,Housing Revenue Account Capital,SURE MAINTENANCE LIMITED,Housing Revenue Account Capital,356798.20,"CIP - New Construction,Conversion, Enhancement & Reno",2122P08_CR00598,93926
Sandwell Metropolitan Borough Council,http://www.sandwell.gov.uk/info/200202/performance_and_spending/1079/payments_over_500,01-Nov-2021,Housing Revenue Account Capital,TERRY GROUP LIMITED,Housing Revenue Account Capital,8883.50,Deferred Charges/Grant Payments,2122P08_CR00599,77002029
Sandwell Metropolitan Borough Council,http://www.sandwell.gov.uk/info/200202/performance_and_spending/1079/payments_over_500,01-Nov-2021,Housing Revenue Account Capital,TERRY GROUP LIMITED,Housing Revenue Account Capital,9355.00,Deferred Charges/Grant Payments,2122P08_CR00600,77002029
Sandwell Metropolitan Borough Council,http://www.sandwell.gov.uk/info/200202/performance_and_spending/1079/payments_over_500,16-Nov-2021,Housing Revenue Account Capital,TERRY GROUP LIMITED,Housing Revenue Account Capital,9200.00,Deferred Charges/Grant Payments,2122P08_CR00601,77002029
Sandwell Metropolitan Borough Council,http://www.sandwell.gov.uk/info/200202/performance_and_spending/1079/payments_over_500,04-Nov-2021,Housing Revenue Account Capital,VINCI CONSTRUCTION LTD,Housing Revenue Account Capital,108856.53,"CIP - New Construction,Conversion, Enhancement & Reno",2122P08_CR00602,36361
Sandwell Metropolitan Borough Council,http://www.sandwell.gov.uk/info/200202/performance_and_spending/1079/payments_over_500,12-Nov-2021,Housing Revenue Account Capital,VINCI CONSTRUCTION LTD,Housing Revenue Account Capital,467665.98,"CIP - New Construction,Conversion, Enhancement & Reno",2122P08_CR00603,36361
Sandwell Metropolitan Borough Council,http://www.sandwell.gov.uk/info/200202/performance_and_spending/1079/payments_over_500,17-Nov-2021,Housing Revenue Account Capital,VINCI CONSTRUCTION LTD,Housing Revenue Account Capital,4343.98,Deferred Charges/Grant Payments,2122P08_CR00604,36361
Sandwell Metropolitan Borough Council,http://www.sandwell.gov.uk/info/200202/performance_and_spending/1079/payments_over_500,17-Nov-2021,Housing Revenue Account Capital,VINCI CONSTRUCTION LTD,Housing Revenue Account Capital,4603.98,Deferred Charges/Grant Payments,2122P08_CR00605,36361
Sandwell Metropolitan Borough Council,http://www.sandwell.gov.uk/info/200202/performance_and_spending/1079/payments_over_500,17-Nov-2021,Housing Revenue Account Capital,VINCI CONSTRUCTION LTD,Housing Revenue Account Capital,4911.09,Deferred Charges/Grant Payments,2122P08_CR00606,36361
Sandwell Metropolitan Borough Council,http://www.sandwell.gov.uk/info/200202/performance_and_spending/1079/payments_over_500,17-Nov-2021,Housing Revenue Account Capital,VINCI CONSTRUCTION LTD,Housing Revenue Account Capital,5681.13,Deferred Charges/Grant Payments,2122P08_CR00607,36361
Sandwell Metropolitan Borough Council,http://www.sandwell.gov.uk/info/200202/performance_and_spending/1079/payments_over_500,17-Nov-2021,Housing Revenue Account Capital,VINCI CONSTRUCTION LTD,Housing Revenue Account Capital,4701.76,Deferred Charges/Grant Payments,2122P08_CR00608,36361
Sandwell Metropolitan Borough Council,http://www.sandwell.gov.uk/info/200202/performance_and_spending/1079/payments_over_500,17-Nov-2021,Housing Revenue Account Capital,VINCI CONSTRUCTION LTD,Housing Revenue Account Capital,4887.52,Deferred Charges/Grant Payments,2122P08_CR00609,36361
Sandwell Metropolitan Borough Council,http://www.sandwell.gov.uk/info/200202/performance_and_spending/1079/payments_over_500,05-Nov-2021,Housing Revenue Account Capital,VINCI CONSTRUCTION LTD,Housing Revenue Account Capital,5619.52,Deferred Charges/Grant Payments,2122P08_CR00610,36361
Sandwell Metropolitan Borough Council,http://www.sandwell.gov.uk/info/200202/performance_and_spending/1079/payments_over_500,05-Nov-2021,Housing Revenue Account Capital,VINCI CONSTRUCTION LTD,Housing Revenue Account Capital,4494.09,Deferred Charges/Grant Payments,2122P08_CR00611,36361
Sandwell Metropolitan Borough Council,http://www.sandwell.gov.uk/info/200202/performance_and_spending/1079/payments_over_500,05-Nov-2021,Housing Revenue Account Capital,VINCI CONSTRUCTION LTD,Housing Revenue Account Capital,4240.43,Deferred Charges/Grant Payments,2122P08_CR00612,36361
Sandwell Metropolitan Borough Council,http://www.sandwell.gov.uk/info/200202/performance_and_spending/1079/payments_over_500,05-Nov-2021,Housing Revenue Account Capital,VINCI CONSTRUCTION LTD,Housing Revenue Account Capital,5381.16,Deferred Charges/Grant Payments,2122P08_CR00613,36361
Sandwell Metropolitan Borough Council,http://www.sandwell.gov.uk/info/200202/performance_and_spending/1079/payments_over_500,05-Nov-2021,Housing Revenue Account Capital,VINCI CONSTRUCTION LTD,Housing Revenue Account Capital,5100.10,Deferred Charges/Grant Payments,2122P08_CR00614,36361
Sandwell Metropolitan Borough Council,http://www.sandwell.gov.uk/info/200202/performance_and_spending/1079/payments_over_500,05-Nov-2021,Housing Revenue Account Capital,VINCI CONSTRUCTION LTD,Housing Revenue Account Capital,4591.73,Deferred Charges/Grant Payments,2122P08_CR00615,36361
Sandwell Metropolitan Borough Council,http://www.sandwell.gov.uk/info/200202/performance_and_spending/1079/payments_over_500,05-Nov-2021,Housing Revenue Account Capital,VINCI CONSTRUCTION LTD,Housing Revenue Account Capital,5046.60,Deferred Charges/Grant Payments,2122P08_CR00616,36361
Sandwell Metropolitan Borough Council,http://www.sandwell.gov.uk/info/200202/performance_and_spending/1079/payments_over_500,06-Nov-2021,Housing Revenue Account Capital,VINCI CONSTRUCTION LTD,Housing Revenue Account Capital,6540.41,Deferred Charges/Grant Payments,2122P08_CR00617,36361
Sandwell Metropolitan Borough Council,http://www.sandwell.gov.uk/info/200202/performance_and_spending/1079/payments_over_500,06-Nov-2021,Housing Revenue Account Capital,VINCI CONSTRUCTION LTD,Housing Revenue Account Capital,1706.61,Deferred Charges/Grant Payments,2122P08_CR00618,36361
Sandwell Metropolitan Borough Council,http://www.sandwell.gov.uk/info/200202/performance_and_spending/1079/payments_over_500,25-Nov-2021,Housing Revenue Account Capital,FORMBUILD INSTALLATIONS LTD,Housing Revenue Account Capital,11671.70,Deferred Charges/Grant Payments,2122P08_CR00619,153985
Sandwell Metropolitan Borough Council,http://www.sandwell.gov.uk/info/200202/performance_and_spending/1079/payments_over_500,23-Nov-2021,Individual School Budgets With Inclusion,5 STAR DAY NURSERY - OLDBURY,Individual School Budgets With Inclusion,6945.75,Grant Payments,2122P08_CR00620,120730
Sandwell Metropolitan Borough Council,http://www.sandwell.gov.uk/info/200202/performance_and_spending/1079/payments_over_500,23-Nov-2021,Individual School Budgets With Inclusion,5 STAR DAY NURSERY LIMITED,Individual School Budgets With Inclusion,7553.70,Grant Payments,2122P08_CR00621,105382
Sandwell Metropolitan Borough Council,http://www.sandwell.gov.uk/info/200202/performance_and_spending/1079/payments_over_500,23-Nov-2021,Individual School Budgets With Inclusion,ABC DAY NURSERY & PRE SCHOOL LTD,Individual School Budgets With Inclusion,7782.60,Grant Payments,2122P08_CR00622,01472823
Sandwell Metropolitan Borough Council,http://www.sandwell.gov.uk/info/200202/performance_and_spending/1079/payments_over_500,23-Nov-2021,Individual School Budgets With Inclusion,ABIGAIL CRUMPTON,Individual School Budgets With Inclusion,902.94,Grant Payments,2122P08_CR00623,130863
Sandwell Metropolitan Borough Council,http://www.sandwell.gov.uk/info/200202/performance_and_spending/1079/payments_over_500,23-Nov-2021,Individual School Budgets With Inclusion,ADVENTURE QUEST (GREAT BRIDGE) LTD,Individual School Budgets With Inclusion,2975.70,Grant Payments,2122P08_CR00624,153563
Sandwell Metropolitan Borough Council,http://www.sandwell.gov.uk/info/200202/performance_and_spending/1079/payments_over_500,23-Nov-2021,Individual School Budgets With Inclusion,AL KAHIR SCHOOL,Individual School Budgets With Inclusion,1639.05,Grant Payments,2122P08_CR00625,128728
Sandwell Metropolitan Borough Council,http://www.sandwell.gov.uk/info/200202/performance_and_spending/1079/payments_over_500,23-Nov-2021,Individual School Budgets With Inclusion,BANANA MOON DAY NURSERY,Individual School Budgets With Inclusion,8195.25,Grant Payments,2122P08_CR00626,124220
Sandwell Metropolitan Borough Council,http://www.sandwell.gov.uk/info/200202/performance_and_spending/1079/payments_over_500,23-Nov-2021,Individual School Budgets With Inclusion,BLOXCIDGE HOUSE DAY NURSERY,Individual School Budgets With Inclusion,3935.92,Grant Payments,2122P08_CR00627,82862
Sandwell Metropolitan Borough Council,http://www.sandwell.gov.uk/info/200202/performance_and_spending/1079/payments_over_500,23-Nov-2021,Individual School Budgets With Inclusion,BLUEBELLS DAY NURSERY,Individual School Budgets With Inclusion,3241.35,Grant Payments,2122P08_CR00628,01721314
Sandwell Metropolitan Borough Council,http://www.sandwell.gov.uk/info/200202/performance_and_spending/1079/payments_over_500,23-Nov-2021,Individual School Budgets With Inclusion,BOOKWORMS DAYCARE LIMITED,Individual School Budgets With Inclusion,6714.22,Grant Payments,2122P08_CR00629,114741
Sandwell Metropolitan Borough Council,http://www.sandwell.gov.uk/info/200202/performance_and_spending/1079/payments_over_500,23-Nov-2021,Individual School Budgets With Inclusion,BRIGHT LIGHTS DAY NURSERY,Individual School Budgets With Inclusion,2793.00,Grant Payments,2122P08_CR00630,89877
Sandwell Metropolitan Borough Council,http://www.sandwell.gov.uk/info/200202/performance_and_spending/1079/payments_over_500,23-Nov-2021,Individual School Budgets With Inclusion,BUSY BEE NURSERY,Individual School Budgets With Inclusion,4683.00,Grant Payments,2122P08_CR00631,01222577
Sandwell Metropolitan Borough Council,http://www.sandwell.gov.uk/info/200202/performance_and_spending/1079/payments_over_500,23-Nov-2021,Individual School Budgets With Inclusion,CAP DAY NURSERY,Individual School Budgets With Inclusion,5808.60,Grant Payments,2122P08_CR00632,51154
Sandwell Metropolitan Borough Council,http://www.sandwell.gov.uk/info/200202/performance_and_spending/1079/payments_over_500,23-Nov-2021,Individual School Budgets With Inclusion,CARA PRATT,Individual School Budgets With Inclusion,686.70,Grant Payments,2122P08_CR00633,140537
Sandwell Metropolitan Borough Council,http://www.sandwell.gov.uk/info/200202/performance_and_spending/1079/payments_over_500,23-Nov-2021,Individual School Budgets With Inclusion,CAROLINE HENDERSON,Individual School Budgets With Inclusion,686.70,Grant Payments,2122P08_CR00634,129980
Sandwell Metropolitan Borough Council,http://www.sandwell.gov.uk/info/200202/performance_and_spending/1079/payments_over_500,23-Nov-2021,Individual School Budgets With Inclusion,CATHERINE HOUSE DAY NURSERY,Individual School Budgets With Inclusion,926.10,Grant Payments,2122P08_CR00635,08587767
Sandwell Metropolitan Borough Council,http://www.sandwell.gov.uk/info/200202/performance_and_spending/1079/payments_over_500,23-Nov-2021,Individual School Budgets With Inclusion,CONIFERS DAY NURSERY LTD,Individual School Budgets With Inclusion,7871.85,Grant Payments,2122P08_CR00636,131957
Sandwell Metropolitan Borough Council,http://www.sandwell.gov.uk/info/200202/performance_and_spending/1079/payments_over_500,23-Nov-2021,Individual School Budgets With Inclusion,DAFFODILS NURSERY LTD,Individual School Budgets With Inclusion,4069.80,Grant Payments,2122P08_CR00637,120066
Sandwell Metropolitan Borough Council,http://www.sandwell.gov.uk/info/200202/performance_and_spending/1079/payments_over_500,23-Nov-2021,Individual School Budgets With Inclusion,DAWN PERRY,Individual School Budgets With Inclusion,968.10,Grant Payments,2122P08_CR00638,118604
Sandwell Metropolitan Borough Council,http://www.sandwell.gov.uk/info/200202/performance_and_spending/1079/payments_over_500,23-Nov-2021,Individual School Budgets With Inclusion,FAIRYTALES NURSERY LTD,Individual School Budgets With Inclusion,8473.81,Grant Payments,2122P08_CR00639,106247
Sandwell Metropolitan Borough Council,http://www.sandwell.gov.uk/info/200202/performance_and_spending/1079/payments_over_500,23-Nov-2021,Individual School Budgets With Inclusion,FATIMA DAY NURSERY,Individual School Budgets With Inclusion,5093.55,Grant Payments,2122P08_CR00640,131343
Sandwell Metropolitan Borough Council,http://www.sandwell.gov.uk/info/200202/performance_and_spending/1079/payments_over_500,23-Nov-2021,Individual School Budgets With Inclusion,FERNDALE PRIMARY SCHOOL                                    01,Individual School Budgets With Inclusion,2289.00,Grant Payments,2122P08_CR00641,11562
Sandwell Metropolitan Borough Council,http://www.sandwell.gov.uk/info/200202/performance_and_spending/1079/payments_over_500,23-Nov-2021,Individual School Budgets With Inclusion,FIREFLIES NURSERY LIMITED,Individual School Budgets With Inclusion,6556.20,Grant Payments,2122P08_CR00642,124120
Sandwell Metropolitan Borough Council,http://www.sandwell.gov.uk/info/200202/performance_and_spending/1079/payments_over_500,23-Nov-2021,Individual School Budgets With Inclusion,FIRST STEPS DAY NURSERY,Individual School Budgets With Inclusion,5385.45,Grant Payments,2122P08_CR00643,51155
Sandwell Metropolitan Borough Council,http://www.sandwell.gov.uk/info/200202/performance_and_spending/1079/payments_over_500,23-Nov-2021,Individual School Budgets With Inclusion,FIRST STEPS OLDBURY,Individual School Budgets With Inclusion,7408.80,Grant Payments,2122P08_CR00644,118886
Sandwell Metropolitan Borough Council,http://www.sandwell.gov.uk/info/200202/performance_and_spending/1079/payments_over_500,23-Nov-2021,Individual School Budgets With Inclusion,GAIL FAY PREECE,Individual School Budgets With Inclusion,936.60,Grant Payments,2122P08_CR00645,61415
Sandwell Metropolitan Borough Council,http://www.sandwell.gov.uk/info/200202/performance_and_spending/1079/payments_over_500,23-Nov-2021,Individual School Budgets With Inclusion,GEMMA ADAMS,Individual School Budgets With Inclusion,915.60,Grant Payments,2122P08_CR00646,129661
Sandwell Metropolitan Borough Council,http://www.sandwell.gov.uk/info/200202/performance_and_spending/1079/payments_over_500,23-Nov-2021,Individual School Budgets With Inclusion,GNG NURSERY,Individual School Budgets With Inclusion,7258.65,Grant Payments,2122P08_CR00647,114805
Sandwell Metropolitan Borough Council,http://www.sandwell.gov.uk/info/200202/performance_and_spending/1079/payments_over_500,23-Nov-2021,Individual School Budgets With Inclusion,HAPPY DAYS NURSERY (GREETS GREEN),Individual School Budgets With Inclusion,5506.20,Grant Payments,2122P08_CR00648,125840
Sandwell Metropolitan Borough Council,http://www.sandwell.gov.uk/info/200202/performance_and_spending/1079/payments_over_500,23-Nov-2021,Individual School Budgets With Inclusion,HAYLEY GODDARD,Individual School Budgets With Inclusion,726.07,Grant Payments,2122P08_CR00649,139835
Sandwell Metropolitan Borough Council,http://www.sandwell.gov.uk/info/200202/performance_and_spending/1079/payments_over_500,23-Nov-2021,Individual School Budgets With Inclusion,HUMPTY DUMPTYS DAY NURSERY,Individual School Budgets With Inclusion,8429.40,Grant Payments,2122P08_CR00650,08510771
Sandwell Metropolitan Borough Council,http://www.sandwell.gov.uk/info/200202/performance_and_spending/1079/payments_over_500,23-Nov-2021,Individual School Budgets With Inclusion,JAQUELINE CHANCE,Individual School Budgets With Inclusion,1157.62,Grant Payments,2122P08_CR00651,123463
Sandwell Metropolitan Borough Council,http://www.sandwell.gov.uk/info/200202/performance_and_spending/1079/payments_over_500,23-Nov-2021,Individual School Budgets With Inclusion,JENNIE THOMAS,Individual School Budgets With Inclusion,575.50,Grant Payments,2122P08_CR00652,134322
Sandwell Metropolitan Borough Council,http://www.sandwell.gov.uk/info/200202/performance_and_spending/1079/payments_over_500,23-Nov-2021,Individual School Budgets With Inclusion,JENNIFER LOUISE LEATHERLAND,Individual School Budgets With Inclusion,1852.20,Grant Payments,2122P08_CR00653,131850
Sandwell Metropolitan Borough Council,http://www.sandwell.gov.uk/info/200202/performance_and_spending/1079/payments_over_500,23-Nov-2021,Individual School Budgets With Inclusion,JOYFUL CHILDRENS NURSERY,Individual School Budgets With Inclusion,1278.90,Grant Payments,2122P08_CR00654,150961
Sandwell Metropolitan Borough Council,http://www.sandwell.gov.uk/info/200202/performance_and_spending/1079/payments_over_500,23-Nov-2021,Individual School Budgets With Inclusion,JUNIPER'S PRESCHOOL,Individual School Budgets With Inclusion,3180.45,Grant Payments,2122P08_CR00655,154579
Sandwell Metropolitan Borough Council,http://www.sandwell.gov.uk/info/200202/performance_and_spending/1079/payments_over_500,23-Nov-2021,Individual School Budgets With Inclusion,KAI DRUMS,Individual School Budgets With Inclusion,9492.52,Grant Payments,2122P08_CR00656,120729
Sandwell Metropolitan Borough Council,http://www.sandwell.gov.uk/info/200202/performance_and_spending/1079/payments_over_500,23-Nov-2021,Individual School Budgets With Inclusion,KANGAROO POUCH AT GREAT BRIDGE,Individual School Budgets With Inclusion,3935.92,Grant Payments,2122P08_CR00657,129771
Sandwell Metropolitan Borough Council,http://www.sandwell.gov.uk/info/200202/performance_and_spending/1079/payments_over_500,23-Nov-2021,Individual School Budgets With Inclusion,KANGAROO POUCH AT TIVIDALE,Individual School Budgets With Inclusion,5325.07,Grant Payments,2122P08_CR00658,113715
Sandwell Metropolitan Borough Council,http://www.sandwell.gov.uk/info/200202/performance_and_spending/1079/payments_over_500,23-Nov-2021,Individual School Budgets With Inclusion,KANGAROO POUCH CHARLEMONT,Individual School Budgets With Inclusion,3278.10,Grant Payments,2122P08_CR00659,117283
Sandwell Metropolitan Borough Council,http://www.sandwell.gov.uk/info/200202/performance_and_spending/1079/payments_over_500,23-Nov-2021,Individual School Budgets With Inclusion,KANGAROO POUCH LIMITED,Individual School Budgets With Inclusion,3512.25,Grant Payments,2122P08_CR00660,106981
Sandwell Metropolitan Borough Council,http://www.sandwell.gov.uk/info/200202/performance_and_spending/1079/payments_over_500,23-Nov-2021,Individual School Budgets With Inclusion,LAVENDER FARM DAY NURSERY,Individual School Budgets With Inclusion,23883.30,Grant Payments,2122P08_CR00661,65596
Sandwell Metropolitan Borough Council,http://www.sandwell.gov.uk/info/200202/performance_and_spending/1079/payments_over_500,23-Nov-2021,Individual School Budgets With Inclusion,LILLIPUT LODGE CHILDRENS DAY NURSERY,Individual School Budgets With Inclusion,7408.80,Grant Payments,2122P08_CR00662,2980
Sandwell Metropolitan Borough Council,http://www.sandwell.gov.uk/info/200202/performance_and_spending/1079/payments_over_500,23-Nov-2021,Individual School Budgets With Inclusion,LISA HINTON,Individual School Budgets With Inclusion,915.60,Grant Payments,2122P08_CR00663,92923
Sandwell Metropolitan Borough Council,http://www.sandwell.gov.uk/info/200202/performance_and_spending/1079/payments_over_500,23-Nov-2021,Individual School Budgets With Inclusion,LITTLE ACADEMY NURSERY,Individual School Budgets With Inclusion,2107.35,Grant Payments,2122P08_CR00664,81904
Sandwell Metropolitan Borough Council,http://www.sandwell.gov.uk/info/200202/performance_and_spending/1079/payments_over_500,23-Nov-2021,Individual School Budgets With Inclusion,LITTLE ANGELS DAY NURSERY LIMITED,Individual School Budgets With Inclusion,1639.05,Grant Payments,2122P08_CR00665,10207
Sandwell Metropolitan Borough Council,http://www.sandwell.gov.uk/info/200202/performance_and_spending/1079/payments_over_500,23-Nov-2021,Individual School Budgets With Inclusion,LITTLE EXPLORERS (WEST MIDLANDS) LTD,Individual School Budgets With Inclusion,16669.80,Grant Payments,2122P08_CR00666,114804
Sandwell Metropolitan Borough Council,http://www.sandwell.gov.uk/info/200202/performance_and_spending/1079/payments_over_500,23-Nov-2021,Individual School Budgets With Inclusion,LITTLE LEARNERS LTD,Individual School Budgets With Inclusion,4548.60,Grant Payments,2122P08_CR00667,01424133
Sandwell Metropolitan Borough Council,http://www.sandwell.gov.uk/info/200202/performance_and_spending/1079/payments_over_500,23-Nov-2021,Individual School Budgets With Inclusion,LITTLE LEGEND NURSERIES LTD,Individual School Budgets With Inclusion,2236.50,Grant Payments,2122P08_CR00668,117890
Sandwell Metropolitan Borough Council,http://www.sandwell.gov.uk/info/200202/performance_and_spending/1079/payments_over_500,23-Nov-2021,Individual School Budgets With Inclusion,LITTLE SAPLINGS CHILDCARE CENTRES,Individual School Budgets With Inclusion,5385.45,Grant Payments,2122P08_CR00669,131043
Sandwell Metropolitan Borough Council,http://www.sandwell.gov.uk/info/200202/performance_and_spending/1079/payments_over_500,23-Nov-2021,Individual School Budgets With Inclusion,LITTLE STEPPERS,Individual School Budgets With Inclusion,2323.44,Grant Payments,2122P08_CR00670,120240
Sandwell Metropolitan Borough Council,http://www.sandwell.gov.uk/info/200202/performance_and_spending/1079/payments_over_500,23-Nov-2021,Individual School Budgets With Inclusion,LITTLE VALERS PRE SCHOOL,Individual School Budgets With Inclusion,3204.60,Grant Payments,2122P08_CR00671,99107
Sandwell Metropolitan Borough Council,http://www.sandwell.gov.uk/info/200202/performance_and_spending/1079/payments_over_500,23-Nov-2021,Individual School Budgets With Inclusion,LITTLE WENDY HOUSE DAY NURSERY,Individual School Budgets With Inclusion,11941.65,Grant Payments,2122P08_CR00672,91544
Sandwell Metropolitan Borough Council,http://www.sandwell.gov.uk/info/200202/performance_and_spending/1079/payments_over_500,23-Nov-2021,Individual School Budgets With Inclusion,LOLA BELLES PRIVATE DAY NURSERY,Individual School Budgets With Inclusion,7492.80,Grant Payments,2122P08_CR00673,89271
Sandwell Metropolitan Borough Council,http://www.sandwell.gov.uk/info/200202/performance_and_spending/1079/payments_over_500,23-Nov-2021,Individual School Budgets With Inclusion,MAC-E-MOOZ DAYCARE LTD,Individual School Budgets With Inclusion,718.20,Grant Payments,2122P08_CR00674,112058
Sandwell Metropolitan Borough Council,http://www.sandwell.gov.uk/info/200202/performance_and_spending/1079/payments_over_500,23-Nov-2021,Individual School Budgets With Inclusion,MINI MONKEYS LTD,Individual School Budgets With Inclusion,6019.65,Grant Payments,2122P08_CR00675,114818
Sandwell Metropolitan Borough Council,http://www.sandwell.gov.uk/info/200202/performance_and_spending/1079/payments_over_500,23-Nov-2021,Individual School Budgets With Inclusion,MINNS LIMITED,Individual School Budgets With Inclusion,6087.90,Grant Payments,2122P08_CR00676,120067
Sandwell Metropolitan Borough Council,http://www.sandwell.gov.uk/info/200202/performance_and_spending/1079/payments_over_500,23-Nov-2021,Individual School Budgets With Inclusion,MOORLANDS LITTLE LEARNERS PLAYGROUP,Individual School Budgets With Inclusion,7177.27,Grant Payments,2122P08_CR00677,46390
Sandwell Metropolitan Borough Council,http://www.sandwell.gov.uk/info/200202/performance_and_spending/1079/payments_over_500,23-Nov-2021,Individual School Budgets With Inclusion,N & K VARMA LIMITED T/A (KIDDIES PLAYHOUSE TIPTON),Individual School Budgets With Inclusion,2107.35,Grant Payments,2122P08_CR00678,26124
Sandwell Metropolitan Borough Council,http://www.sandwell.gov.uk/info/200202/performance_and_spending/1079/payments_over_500,23-Nov-2021,Individual School Budgets With Inclusion,OUR LADY AND ST HUBERTS CATHOLIC PRIMARY SCHOOL                                      02,Individual School Budgets With Inclusion,11807.77,Grant Payments,2122P08_CR00679,61053
Sandwell Metropolitan Borough Council,http://www.sandwell.gov.uk/info/200202/performance_and_spending/1079/payments_over_500,23-Nov-2021,Individual School Budgets With Inclusion,PERRYFIELDS PRE SCHOOL,Individual School Budgets With Inclusion,6577.06,Grant Payments,2122P08_CR00680,18879
Sandwell Metropolitan Borough Council,http://www.sandwell.gov.uk/info/200202/performance_and_spending/1079/payments_over_500,23-Nov-2021,Individual School Budgets With Inclusion,PITTA PATTA DAYCARE,Individual School Budgets With Inclusion,3980.55,Grant Payments,2122P08_CR00681,114742
Sandwell Metropolitan Borough Council,http://www.sandwell.gov.uk/info/200202/performance_and_spending/1079/payments_over_500,23-Nov-2021,Individual School Budgets With Inclusion,PLAYHOUSE DAY NURSERY,Individual School Budgets With Inclusion,4167.45,Grant Payments,2122P08_CR00682,01586669
Sandwell Metropolitan Borough Council,http://www.sandwell.gov.uk/info/200202/performance_and_spending/1079/payments_over_500,23-Nov-2021,Individual School Budgets With Inclusion,RAK DAY CARE LTD T/A HAPPY VALLEY PRE SCHOOL LTD,Individual School Budgets With Inclusion,8429.40,Grant Payments,2122P08_CR00683,01572212
Sandwell Metropolitan Borough Council,http://www.sandwell.gov.uk/info/200202/performance_and_spending/1079/payments_over_500,23-Nov-2021,Individual School Budgets With Inclusion,RARE WOOD LIMITED,Individual School Budgets With Inclusion,7900.20,Grant Payments,2122P08_CR00684,20167
Sandwell Metropolitan Borough Council,http://www.sandwell.gov.uk/info/200202/performance_and_spending/1079/payments_over_500,23-Nov-2021,Individual School Budgets With Inclusion,ROOTS & SHOOTS PLAYGROUP,Individual School Budgets With Inclusion,4804.80,Grant Payments,2122P08_CR00685,75502
Sandwell Metropolitan Borough Council,http://www.sandwell.gov.uk/info/200202/performance_and_spending/1079/payments_over_500,23-Nov-2021,Individual School Budgets With Inclusion,ROWINA WINDSOR,Individual School Budgets With Inclusion,1048.77,Grant Payments,2122P08_CR00686,138305
Sandwell Metropolitan Borough Council,http://www.sandwell.gov.uk/info/200202/performance_and_spending/1079/payments_over_500,23-Nov-2021,Individual School Budgets With Inclusion,ROWLEY VILLAGE DAY NURSERY,Individual School Budgets With Inclusion,8334.90,Grant Payments,2122P08_CR00687,24228
Sandwell Metropolitan Borough Council,http://www.sandwell.gov.uk/info/200202/performance_and_spending/1079/payments_over_500,23-Nov-2021,Individual School Budgets With Inclusion,SADWICA DAY NURSERY,Individual School Budgets With Inclusion,3990.00,Grant Payments,2122P08_CR00688,01667892
Sandwell Metropolitan Borough Council,http://www.sandwell.gov.uk/info/200202/performance_and_spending/1079/payments_over_500,23-Nov-2021,Individual School Budgets With Inclusion,SANDWELL NHS TRUST DAY NURSERY,Individual School Budgets With Inclusion,11785.55,Grant Payments,2122P08_CR00689,40788
Sandwell Metropolitan Borough Council,http://www.sandwell.gov.uk/info/200202/performance_and_spending/1079/payments_over_500,23-Nov-2021,Individual School Budgets With Inclusion,SANTOS DAY NURSERIES,Individual School Budgets With Inclusion,4120.20,Grant Payments,2122P08_CR00690,129262
Sandwell Metropolitan Borough Council,http://www.sandwell.gov.uk/info/200202/performance_and_spending/1079/payments_over_500,23-Nov-2021,Individual School Budgets With Inclusion,SMARTY PANTS @ LIGHTWOODS HOUSE LTD,Individual School Budgets With Inclusion,6251.17,Grant Payments,2122P08_CR00691,130645
Sandwell Metropolitan Borough Council,http://www.sandwell.gov.uk/info/200202/performance_and_spending/1079/payments_over_500,23-Nov-2021,Individual School Budgets With Inclusion,SMARTY PANTS PRIVATE DAY NURSERY LTD,Individual School Budgets With Inclusion,12409.95,Grant Payments,2122P08_CR00692,74037
Sandwell Metropolitan Borough Council,http://www.sandwell.gov.uk/info/200202/performance_and_spending/1079/payments_over_500,23-Nov-2021,Individual School Budgets With Inclusion,SPON LANE DAY NURSERY LIMITED,Individual School Budgets With Inclusion,6224.40,Grant Payments,2122P08_CR00693,127024
Sandwell Metropolitan Borough Council,http://www.sandwell.gov.uk/info/200202/performance_and_spending/1079/payments_over_500,23-Nov-2021,Individual School Budgets With Inclusion,ST HUBERTS PRE-SCHOOL PLAYGROUP 2,Individual School Budgets With Inclusion,11576.25,Grant Payments,2122P08_CR00694,123074
Sandwell Metropolitan Borough Council,http://www.sandwell.gov.uk/info/200202/performance_and_spending/1079/payments_over_500,23-Nov-2021,Individual School Budgets With Inclusion,ST MICHAELS DAY NURSERY,Individual School Budgets With Inclusion,3872.40,Grant Payments,2122P08_CR00695,01698538
Sandwell Metropolitan Borough Council,http://www.sandwell.gov.uk/info/200202/performance_and_spending/1079/payments_over_500,23-Nov-2021,Individual School Budgets With Inclusion,STEPPING STONES NURSERY,Individual School Budgets With Inclusion,4260.06,Grant Payments,2122P08_CR00696,50029
Sandwell Metropolitan Borough Council,http://www.sandwell.gov.uk/info/200202/performance_and_spending/1079/payments_over_500,23-Nov-2021,Individual School Budgets With Inclusion,THE FAMILY NURSERY COMPANY LTD,Individual School Budgets With Inclusion,7258.65,Grant Payments,2122P08_CR00697,89879
Sandwell Metropolitan Borough Council,http://www.sandwell.gov.uk/info/200202/performance_and_spending/1079/payments_over_500,23-Nov-2021,Individual School Budgets With Inclusion,THE PATCH DAY NURSERY,Individual School Budgets With Inclusion,6790.35,Grant Payments,2122P08_CR00698,126020
Sandwell Metropolitan Borough Council,http://www.sandwell.gov.uk/info/200202/performance_and_spending/1079/payments_over_500,23-Nov-2021,Individual School Budgets With Inclusion,THE RIVERS MULTI ACADEMY TRUST,Individual School Budgets With Inclusion,10302.60,Grant Payments,2122P08_CR00699,61014
Sandwell Metropolitan Borough Council,http://www.sandwell.gov.uk/info/200202/performance_and_spending/1079/payments_over_500,23-Nov-2021,Individual School Budgets With Inclusion,THE TODDLER HOUSE LIMITED,Individual School Budgets With Inclusion,3980.55,Grant Payments,2122P08_CR00700,122166
Sandwell Metropolitan Borough Council,http://www.sandwell.gov.uk/info/200202/performance_and_spending/1079/payments_over_500,23-Nov-2021,Individual School Budgets With Inclusion,THE WONDER YEARS DAY NURSERY LIMITED,Individual School Budgets With Inclusion,10068.45,Grant Payments,2122P08_CR00701,01647249
Sandwell Metropolitan Borough Council,http://www.sandwell.gov.uk/info/200202/performance_and_spending/1079/payments_over_500,23-Nov-2021,Individual School Budgets With Inclusion,TICK TOCK DAY NURSERY LTD,Individual School Budgets With Inclusion,13580.70,Grant Payments,2122P08_CR00702,9391
Sandwell Metropolitan Borough Council,http://www.sandwell.gov.uk/info/200202/performance_and_spending/1079/payments_over_500,23-Nov-2021,Individual School Budgets With Inclusion,TIDDLYWINKS KIDDYS NURSERY LIMITED,Individual School Budgets With Inclusion,7408.80,Grant Payments,2122P08_CR00703,110667
Sandwell Metropolitan Borough Council,http://www.sandwell.gov.uk/info/200202/performance_and_spending/1079/payments_over_500,23-Nov-2021,Individual School Budgets With Inclusion,TIMBERTREE NEIGHBOURHOOD NURSERY,Individual School Budgets With Inclusion,10650.15,Grant Payments,2122P08_CR00704,135664
Sandwell Metropolitan Borough Council,http://www.sandwell.gov.uk/info/200202/performance_and_spending/1079/payments_over_500,23-Nov-2021,Individual School Budgets With Inclusion,TINY TOEZ LIMITED,Individual School Budgets With Inclusion,6409.20,Grant Payments,2122P08_CR00705,23618
Sandwell Metropolitan Borough Council,http://www.sandwell.gov.uk/info/200202/performance_and_spending/1079/payments_over_500,23-Nov-2021,Individual School Budgets With Inclusion,TINY WOODS PRE SCHOOL,Individual School Budgets With Inclusion,17396.40,Grant Payments,2122P08_CR00706,91788
Sandwell Metropolitan Borough Council,http://www.sandwell.gov.uk/info/200202/performance_and_spending/1079/payments_over_500,23-Nov-2021,Individual School Budgets With Inclusion,TIP TOP DAY NURSERY WEDNESBURY,Individual School Budgets With Inclusion,2975.70,Grant Payments,2122P08_CR00707,147082
Sandwell Metropolitan Borough Council,http://www.sandwell.gov.uk/info/200202/performance_and_spending/1079/payments_over_500,23-Nov-2021,Individual School Budgets With Inclusion,TIPTON EXPLORERS NURSERY,Individual School Budgets With Inclusion,5385.45,Grant Payments,2122P08_CR00708,132351
Sandwell Metropolitan Borough Council,http://www.sandwell.gov.uk/info/200202/performance_and_spending/1079/payments_over_500,23-Nov-2021,Individual School Budgets With Inclusion,TIPTON NURSERY,Individual School Budgets With Inclusion,5506.20,Grant Payments,2122P08_CR00709,89881
Sandwell Metropolitan Borough Council,http://www.sandwell.gov.uk/info/200202/performance_and_spending/1079/payments_over_500,23-Nov-2021,Individual School Budgets With Inclusion,TIPTON TODDLERS DAY NURSERY,Individual School Budgets With Inclusion,11941.65,Grant Payments,2122P08_CR00710,4397
Sandwell Metropolitan Borough Council,http://www.sandwell.gov.uk/info/200202/performance_and_spending/1079/payments_over_500,23-Nov-2021,Individual School Budgets With Inclusion,TULIP DAY NURSERY LTD,Individual School Budgets With Inclusion,915.60,Grant Payments,2122P08_CR00711,152250
Sandwell Metropolitan Borough Council,http://www.sandwell.gov.uk/info/200202/performance_and_spending/1079/payments_over_500,23-Nov-2021,Individual School Budgets With Inclusion,TWO STEPS PRE-SCHOOL,Individual School Budgets With Inclusion,1170.75,Grant Payments,2122P08_CR00712,109186
Sandwell Metropolitan Borough Council,http://www.sandwell.gov.uk/info/200202/performance_and_spending/1079/payments_over_500,23-Nov-2021,Individual School Budgets With Inclusion,UNICORN DAY NURSERY,Individual School Budgets With Inclusion,14508.90,Grant Payments,2122P08_CR00713,91543
Sandwell Metropolitan Borough Council,http://www.sandwell.gov.uk/info/200202/performance_and_spending/1079/payments_over_500,23-Nov-2021,Individual School Budgets With Inclusion,UNITED KIDS CHILDCARE,Individual School Budgets With Inclusion,7258.65,Grant Payments,2122P08_CR00714,134806
Sandwell Metropolitan Borough Council,http://www.sandwell.gov.uk/info/200202/performance_and_spending/1079/payments_over_500,23-Nov-2021,Individual School Budgets With Inclusion,UNITED KIDS LIMITED,Individual School Budgets With Inclusion,5093.55,Grant Payments,2122P08_CR00715,136360
Sandwell Metropolitan Borough Council,http://www.sandwell.gov.uk/info/200202/performance_and_spending/1079/payments_over_500,23-Nov-2021,Individual School Budgets With Inclusion,VANESSA BILLINGSLEY,Individual School Budgets With Inclusion,1170.75,Grant Payments,2122P08_CR00716,125216
Sandwell Metropolitan Borough Council,http://www.sandwell.gov.uk/info/200202/performance_and_spending/1079/payments_over_500,23-Nov-2021,Individual School Budgets With Inclusion,VICTORIA HARRISON,Individual School Budgets With Inclusion,1144.50,Grant Payments,2122P08_CR00717,127111
Sandwell Metropolitan Borough Council,http://www.sandwell.gov.uk/info/200202/performance_and_spending/1079/payments_over_500,23-Nov-2021,Individual School Budgets With Inclusion,WENDY MAXWELL,Individual School Budgets With Inclusion,1157.62,Grant Payments,2122P08_CR00718,37344
Sandwell Metropolitan Borough Council,http://www.sandwell.gov.uk/info/200202/performance_and_spending/1079/payments_over_500,23-Nov-2021,Individual School Budgets With Inclusion,WEST BROMWICH & DISTRICT Y.M.C.A. COMMUNITY ENTERPRISES,Individual School Budgets With Inclusion,14603.40,Grant Payments,2122P08_CR00719,01088376
Sandwell Metropolitan Borough Council,http://www.sandwell.gov.uk/info/200202/performance_and_spending/1079/payments_over_500,23-Nov-2021,Individual School Budgets With Inclusion,WIGGLES & GIGGLES LTD,Individual School Budgets With Inclusion,20143.20,Grant Payments,2122P08_CR00720,01674799
Sandwell Metropolitan Borough Council,http://www.sandwell.gov.uk/info/200202/performance_and_spending/1079/payments_over_500,23-Nov-2021,Individual School Budgets With Inclusion,WONDERLAND CHILDRENS DAY NURSERY (UK) LTD,Individual School Budgets With Inclusion,22478.40,Grant Payments,2122P08_CR00721,50852
Sandwell Metropolitan Borough Council,http://www.sandwell.gov.uk/info/200202/performance_and_spending/1079/payments_over_500,17-Nov-2021,Individual School Budgets With Inclusion,SANDWELL FUTURES LTD,Individual School Budgets With Inclusion,-564.40,Private Contractors,2122P08_CR00722,88151
Sandwell Metropolitan Borough Council,http://www.sandwell.gov.uk/info/200202/performance_and_spending/1079/payments_over_500,08-Nov-2021,Individual School Budgets With Inclusion,ACORN CARE AND EDUCATION LIMITED,Individual School Budgets With Inclusion,7321.10,Other Establishments,2122P08_CR00723,115235
Sandwell Metropolitan Borough Council,http://www.sandwell.gov.uk/info/200202/performance_and_spending/1079/payments_over_500,08-Nov-2021,Individual School Budgets With Inclusion,ACORN CARE AND EDUCATION LIMITED,Individual School Budgets With Inclusion,7084.93,Other Establishments,2122P08_CR00724,115235
Sandwell Metropolitan Borough Council,http://www.sandwell.gov.uk/info/200202/performance_and_spending/1079/payments_over_500,01-Nov-2021,Individual School Budgets With Inclusion,ACORN CARE AND EDUCATION LIMITED,Individual School Budgets With Inclusion,15554.34,Other Establishments,2122P08_CR00725,115235
Sandwell Metropolitan Borough Council,http://www.sandwell.gov.uk/info/200202/performance_and_spending/1079/payments_over_500,08-Nov-2021,Individual School Budgets With Inclusion,ACORN CARE AND EDUCATION LIMITED,Individual School Budgets With Inclusion,16500.00,Other Establishments,2122P08_CR00726,115235
Sandwell Metropolitan Borough Council,http://www.sandwell.gov.uk/info/200202/performance_and_spending/1079/payments_over_500,08-Nov-2021,Individual School Budgets With Inclusion,ACORN CARE AND EDUCATION LIMITED,Individual School Budgets With Inclusion,25960.00,Other Establishments,2122P08_CR00727,115235
Sandwell Metropolitan Borough Council,http://www.sandwell.gov.uk/info/200202/performance_and_spending/1079/payments_over_500,08-Nov-2021,Individual School Budgets With Inclusion,ACORN CARE AND EDUCATION LIMITED,Individual School Budgets With Inclusion,17302.00,Other Establishments,2122P08_CR00728,115235
Sandwell Metropolitan Borough Council,http://www.sandwell.gov.uk/info/200202/performance_and_spending/1079/payments_over_500,08-Nov-2021,Individual School Budgets With Inclusion,ACORN CARE AND EDUCATION LIMITED,Individual School Budgets With Inclusion,17302.00,Other Establishments,2122P08_CR00729,115235
Sandwell Metropolitan Borough Council,http://www.sandwell.gov.uk/info/200202/performance_and_spending/1079/payments_over_500,08-Nov-2021,Individual School Budgets With Inclusion,ACORN CARE AND EDUCATION LIMITED,Individual School Budgets With Inclusion,15554.33,Other Establishments,2122P08_CR00730,115235
Sandwell Metropolitan Borough Council,http://www.sandwell.gov.uk/info/200202/performance_and_spending/1079/payments_over_500,01-Nov-2021,Individual School Budgets With Inclusion,ACORN CARE AND EDUCATION LIMITED,Individual School Budgets With Inclusion,25960.00,Other Establishments,2122P08_CR00731,115235
Sandwell Metropolitan Borough Council,http://www.sandwell.gov.uk/info/200202/performance_and_spending/1079/payments_over_500,01-Nov-2021,Individual School Budgets With Inclusion,ACORN CARE AND EDUCATION LIMITED,Individual School Budgets With Inclusion,16500.00,Other Establishments,2122P08_CR00732,115235
Sandwell Metropolitan Borough Council,http://www.sandwell.gov.uk/info/200202/performance_and_spending/1079/payments_over_500,01-Nov-2021,Individual School Budgets With Inclusion,ACORN CARE AND EDUCATION LIMITED,Individual School Budgets With Inclusion,16500.00,Other Establishments,2122P08_CR00733,115235
Sandwell Metropolitan Borough Council,http://www.sandwell.gov.uk/info/200202/performance_and_spending/1079/payments_over_500,01-Nov-2021,Individual School Budgets With Inclusion,ACORN CARE AND EDUCATION LIMITED,Individual School Budgets With Inclusion,16500.00,Other Establishments,2122P08_CR00734,115235
Sandwell Metropolitan Borough Council,http://www.sandwell.gov.uk/info/200202/performance_and_spending/1079/payments_over_500,08-Nov-2021,Individual School Budgets With Inclusion,ACORN CARE AND EDUCATION LIMITED,Individual School Budgets With Inclusion,16166.67,Other Establishments,2122P08_CR00735,115235
Sandwell Metropolitan Borough Council,http://www.sandwell.gov.uk/info/200202/performance_and_spending/1079/payments_over_500,08-Nov-2021,Individual School Budgets With Inclusion,ACORN CARE AND EDUCATION LIMITED,Individual School Budgets With Inclusion,14456.67,Other Establishments,2122P08_CR00736,115235
Sandwell Metropolitan Borough Council,http://www.sandwell.gov.uk/info/200202/performance_and_spending/1079/payments_over_500,08-Nov-2021,Individual School Budgets With Inclusion,ACORN CARE AND EDUCATION LIMITED,Individual School Budgets With Inclusion,14456.66,Other Establishments,2122P08_CR00737,115235
Sandwell Metropolitan Borough Council,http://www.sandwell.gov.uk/info/200202/performance_and_spending/1079/payments_over_500,08-Nov-2021,Individual School Budgets With Inclusion,ACORN CARE AND EDUCATION LIMITED,Individual School Budgets With Inclusion,16166.66,Other Establishments,2122P08_CR00738,115235
Sandwell Metropolitan Borough Council,http://www.sandwell.gov.uk/info/200202/performance_and_spending/1079/payments_over_500,18-Nov-2021,Individual School Budgets With Inclusion,ACORN CARE AND EDUCATION LIMITED,Individual School Budgets With Inclusion,33733.15,Other Establishments,2122P08_CR00739,115235
Sandwell Metropolitan Borough Council,http://www.sandwell.gov.uk/info/200202/performance_and_spending/1079/payments_over_500,08-Nov-2021,Individual School Budgets With Inclusion,ACORN CARE AND EDUCATION LIMITED,Individual School Budgets With Inclusion,34295.37,Other Establishments,2122P08_CR00740,115235
Sandwell Metropolitan Borough Council,http://www.sandwell.gov.uk/info/200202/performance_and_spending/1079/payments_over_500,11-Nov-2021,Individual School Budgets With Inclusion,ATTACHMENT RESEARCH COMMUNITY,Individual School Budgets With Inclusion,891.00,Externally Purchased Professional Services ,2122P08_CR00741,131754
Sandwell Metropolitan Borough Council,http://www.sandwell.gov.uk/info/200202/performance_and_spending/1079/payments_over_500,15-Nov-2021,Individual School Budgets With Inclusion,ATTACHMENT RESEARCH COMMUNITY,Individual School Budgets With Inclusion,1125.00,Externally Purchased Professional Services ,2122P08_CR00742,131754
Sandwell Metropolitan Borough Council,http://www.sandwell.gov.uk/info/200202/performance_and_spending/1079/payments_over_500,19-Nov-2021,Individual School Budgets With Inclusion,ATTACHMENT RESEARCH COMMUNITY,Individual School Budgets With Inclusion,792.00,Externally Purchased Professional Services ,2122P08_CR00743,131754
Sandwell Metropolitan Borough Council,http://www.sandwell.gov.uk/info/200202/performance_and_spending/1079/payments_over_500,09-Nov-2021,Individual School Budgets With Inclusion,BARNET SOUTHGATE COLLEGE,Individual School Budgets With Inclusion,4076.34,Externally Purchased Professional Services ,2122P08_CR00744,141597
Sandwell Metropolitan Borough Council,http://www.sandwell.gov.uk/info/200202/performance_and_spending/1079/payments_over_500,01-Nov-2021,Individual School Budgets With Inclusion,BLACKWATER ACADEMY,Individual School Budgets With Inclusion,7000.00,Other Establishments,2122P08_CR00745,129151
Sandwell Metropolitan Borough Council,http://www.sandwell.gov.uk/info/200202/performance_and_spending/1079/payments_over_500,01-Nov-2021,Individual School Budgets With Inclusion,BLACKWATER ACADEMY,Individual School Budgets With Inclusion,3325.00,Other Establishments,2122P08_CR00746,129151
